"Capital, Revenue or Balance Sheet",Directorate,SERCOP High Level Category,SERCOP Detailed Category,Transaction Number,Date,Service Area,Expenses Type,Amount,Supplier Name,,
Revenue,Regeneration,Planning services,Economic Development,5105711077,17.06.2022,Economic Development Projects,Consultants Fees,"3,780.00",ISLE ACCESS,,
Revenue,Regeneration,Planning services,Economic Development,5105711875,29.06.2022,Wight Innovation ERDF,Professional Services,"2,231.82",ERMC LTD,,
Revenue,Regeneration,Planning services,Economic Development,5105711092,17.06.2022,Wight Innovation ERDF,Professional Services,"6,648.80",RAMORA GLOBAL LIMITED,,
Revenue,Regeneration,Planning services,Economic Development,5105710703,15.06.2022,Town & City Gift Card,Payment to Private Contractors,463.00,MICONEX LTD,,
Revenue,Assistant Chief Executive,Central Services,Support Services,5105708493,08.06.2022,Graphic Design Team,Professional Services,"1,500.00",GETTY IMAGES UK LIMITED,,
Revenue,Assistant Chief Executive,Central Services,Support Services,5105711181,24.06.2022,Print Unit,Printing Costs,"6,003.87",ISLE OF WIGHT NHS TRUST,,
Revenue,Assistant Chief Executive,Central Services,Support Services,5105711181,24.06.2022,Print Unit,Printing Costs,"1,254.60",ISLE OF WIGHT NHS TRUST,,
Revenue,Place,Central Services,Corporate and Democratic Core,5105712307,29.06.2022,Flag Raising Ceremony,Professional Services,53.00,STAGEGEAR RENTALS LTD,,
Revenue,Chief Executive,Adult Social Care,Social Support - Asylum Seeker Support,5105710108,15.06.2022,Ukraine Local Authority Grant,Grants to External Bodies,"10,000.00",COMMUNITY ACTION ISLE OF WIGHT,,
Revenue,Chief Executive,Adult Social Care,Social Support - Asylum Seeker Support,5105711028,20.06.2022,Ukraine - Host Payments,Grants to individuals,350.00,REDACTED PERSONAL DATA,,
Revenue,Chief Executive,Adult Social Care,Social Support - Asylum Seeker Support,5105711289,20.06.2022,Ukraine - Host Payments,Grants to individuals,-350.00,REDACTED PERSONAL DATA,,
Revenue,Chief Executive,Adult Social Care,Social Support - Asylum Seeker Support,5105711023,17.06.2022,Ukraine - Host Payments,Grants to individuals,350.00,REDACTED PERSONAL DATA,,
Revenue,Chief Executive,Adult Social Care,Social Support - Asylum Seeker Support,5105712273,29.06.2022,Ukraine - Host Payments,Grants to individuals,350.00,REDACTED PERSONAL DATA,,
Revenue,Chief Executive,Adult Social Care,Social Support - Asylum Seeker Support,5105711026,17.06.2022,Ukraine - Host Payments,Grants to individuals,350.00,REDACTED PERSONAL DATA,,
Revenue,Chief Executive,Adult Social Care,Social Support - Asylum Seeker Support,5105712276,29.06.2022,Ukraine - Host Payments,Grants to individuals,350.00,REDACTED PERSONAL DATA,,
Revenue,Chief Executive,Adult Social Care,Social Support - Asylum Seeker Support,5105711027,17.06.2022,Ukraine - Host Payments,Grants to individuals,700.00,REDACTED PERSONAL DATA,,
Revenue,Chief Executive,Adult Social Care,Social Support - Asylum Seeker Support,5105712277,29.06.2022,Ukraine - Host Payments,Grants to individuals,350.00,REDACTED PERSONAL DATA,,
Revenue,Chief Executive,Adult Social Care,Social Support - Asylum Seeker Support,5105711021,17.06.2022,Ukraine - Host Payments,Grants to individuals,700.00,REDACTED PERSONAL DATA,,
Revenue,Chief Executive,Adult Social Care,Social Support - Asylum Seeker Support,5105712270,29.06.2022,Ukraine - Host Payments,Grants to individuals,350.00,REDACTED PERSONAL DATA,,
Revenue,Chief Executive,Adult Social Care,Social Support - Asylum Seeker Support,5105711022,17.06.2022,Ukraine - Host Payments,Grants to individuals,700.00,REDACTED PERSONAL DATA,,
Revenue,Chief Executive,Adult Social Care,Social Support - Asylum Seeker Support,5105712272,29.06.2022,Ukraine - Host Payments,Grants to individuals,350.00,REDACTED PERSONAL DATA,,
Revenue,Chief Executive,Adult Social Care,Social Support - Asylum Seeker Support,5105711426,22.06.2022,Ukraine - Host Payments,Grants to individuals,156.10,REDACTED PERSONAL DATA,,
Revenue,Chief Executive,Adult Social Care,Social Support - Asylum Seeker Support,5105712284,29.06.2022,Ukraine - Host Payments,Grants to individuals,350.00,REDACTED PERSONAL DATA,,
Revenue,Chief Executive,Adult Social Care,Social Support - Asylum Seeker Support,5105711424,22.06.2022,Ukraine - Host Payments,Grants to individuals,78.05,REDACTED PERSONAL DATA,,
Revenue,Chief Executive,Adult Social Care,Social Support - Asylum Seeker Support,5105712280,29.06.2022,Ukraine - Host Payments,Grants to individuals,350.00,REDACTED PERSONAL DATA,,
Revenue,Chief Executive,Adult Social Care,Social Support - Asylum Seeker Support,5105711422,22.06.2022,Ukraine - Host Payments,Grants to individuals,78.05,REDACTED PERSONAL DATA,,
Revenue,Chief Executive,Adult Social Care,Social Support - Asylum Seeker Support,5105711422,22.06.2022,Ukraine - Host Payments,Grants to individuals,350.00,REDACTED PERSONAL DATA,,
Revenue,Chief Executive,Adult Social Care,Social Support - Asylum Seeker Support,5105712271,29.06.2022,Ukraine - Host Payments,Grants to individuals,350.00,REDACTED PERSONAL DATA,,
Revenue,Chief Executive,Adult Social Care,Social Support - Asylum Seeker Support,5105711425,22.06.2022,Ukraine - Host Payments,Grants to individuals,11.15,REDACTED PERSONAL DATA,,
Revenue,Chief Executive,Adult Social Care,Social Support - Asylum Seeker Support,5105711425,22.06.2022,Ukraine - Host Payments,Grants to individuals,350.00,REDACTED PERSONAL DATA,,
Revenue,Chief Executive,Adult Social Care,Social Support - Asylum Seeker Support,5105712283,29.06.2022,Ukraine - Host Payments,Grants to individuals,350.00,REDACTED PERSONAL DATA,,
Revenue,Chief Executive,Adult Social Care,Social Support - Asylum Seeker Support,5105711423,22.06.2022,Ukraine - Host Payments,Grants to individuals,133.80,REDACTED PERSONAL DATA,,
Revenue,Chief Executive,Adult Social Care,Social Support - Asylum Seeker Support,5105712278,29.06.2022,Ukraine - Host Payments,Grants to individuals,350.00,REDACTED PERSONAL DATA,,
Revenue,Chief Executive,Adult Social Care,Social Support - Asylum Seeker Support,5105712281,29.06.2022,Ukraine - Host Payments,Grants to individuals,333.79,REDACTED PERSONAL DATA,,
Revenue,Regeneration,Planning services,Economic Development,5105709295,08.06.2022,Director of Regeneration,Computer Software Licencing,339.59,TECHNOLOGY FORGE,,
Revenue,Regeneration,Planning services,Economic Development,5105708537,08.06.2022,Ryde Esplanade Regeneration,Professional Services,"3,000.00",ARC CONSULTING LTD,,
Revenue,Regeneration,Planning services,Economic Development,5105709501,15.06.2022,BAE/Rangefinder House Estate,Grounds Maintenance,799.00,GROUNDSELL CONTRACTING LTD,,
Revenue,Regeneration,Planning services,Economic Development,5105710538,15.06.2022,BAE/Rangefinder House Estate,Grounds Maintenance,799.00,GROUNDSELL CONTRACTING LTD,,
Revenue,Regeneration,Planning services,Economic Development,5105710183,10.06.2022,BAE/Rangefinder House Estate,Legal Fees - Other Parties,788.00,GELDARDS LLP,,
Revenue,Regeneration,Planning services,Economic Development,5105712345,29.06.2022,BAE/Rangefinder House Estate,Legal Fees - Other Parties,560.50,GELDARDS LLP,,
Revenue,Regeneration,Planning services,Economic Development,5105710168,10.06.2022,Island Technology Park,Grounds Maintenance,320.00,GROUNDSELL CONTRACTING LTD,,
Revenue,Regeneration,Planning services,Economic Development,5105709093,10.06.2022,Rangefinder House (Ascensos),Premises Insurance,"3,867.36",BAE SYSTEMS PROPERTIES LTD,,
Revenue,Regeneration,Planning services,Economic Development,5105711792,24.06.2022,Rangefinder House (Ascensos),Electricity,"13,616.60",BAE SYSTEMS PROPERTIES LTD,,
Revenue,Regeneration,Planning services,Economic Development,5105705964,24.06.2022,Rangefinder House (Ascensos),Electricity,121.27,BAE SYSTEMS PROPERTIES LTD,,
Revenue,Regeneration,Planning services,Economic Development,5105710184,10.06.2022,"33 High St, Newport",Advertising & Publicity,120.00,ISLE OF WIGHT OBSERVER LTD,,
Revenue,Regeneration,Planning services,Economic Development,5105710596,15.06.2022,"33 High St, Newport",Advertising & Publicity,150.00,NEWSQUEST MEDIA GROUP LTD,,
Revenue,Regeneration,Planning services,Economic Development,5105711720,24.06.2022,Regeneration Communications,Consultants Fees,"7,000.00",ISLAND IDENTITY CIC,,
Revenue,Regeneration,Planning services,Economic Development,5105709852,08.06.2022,Victoria Quays,Minor Works,70.00,TEMPLE LIFTS LTD,,
Revenue,Regeneration,Planning services,Economic Development,5105710032,08.06.2022,Victoria Quays,Legal Fees - Other Parties,"3,186.44",CROWN ESTATE COMMISSIONERS,,
Revenue,Regeneration,Planning services,Economic Development,5105711470,24.06.2022,Victoria Quays,Security of Buildings,162.00,VECTIS GROUP SECURITY LTD,,
Revenue,Regeneration,Planning services,Economic Development,5105711431,22.06.2022,Victoria Quays,Legal Fees - Other Parties,"1,250.00",BDB PITMANS LLP,,
Revenue,Regeneration,Planning services,Economic Development,5105710171,10.06.2022,High Street Heritage Action Zone,Grounds Maintenance,"1,030.00",WILLIAMS ASSOCIATES (SOUTHERN) LTD,,
Revenue,Regeneration,Planning services,Economic Development,5105711142,22.06.2022,Camp Hill - Regeneration,Payment to Private Contractors,93.69,ISLAND ROADS SERVICES LTD,,
Revenue,Regeneration,Central Services,Central Services to the Public,5105711142,22.06.2022,Welcome Back Fund,General Materials,"8,620.46",ISLAND ROADS SERVICES LTD,,
Revenue,Regeneration,Planning services,Economic Development,5105709262,01.06.2022,Levelling Up Fund bid support,Consultants Fees,"1,800.00",SQW LIMITED,,
Revenue,Resources,Central Services,Corporate and Democratic Core,5105709248,01.06.2022,Committee and Scrutiny Team,Stationery,2.68,BETA PAK LTD,,
Revenue,Resources,Central Services,Corporate and Democratic Core,5105711040,17.06.2022,Committee and Scrutiny Team,Catering Purchases,93.00,FRENCH FRANKS,,
Revenue,Resources,Central Services,Corporate and Democratic Core,5105710635,15.06.2022,Committee and Scrutiny Team,Stationery,1.61,BETA PAK LTD,,
Revenue,Resources,Central Services,Central Services to the Public,5105710087,08.06.2022,Electoral Registration Office,Printing Costs,"2,320.34",ELECTORAL REFORM SERVICES,,
Revenue,Resources,Central Services,Central Services to the Public,5105711044,17.06.2022,Electoral Registration Office,Printing Costs,529.17,ELECTORAL REFORM SERVICES,,
Revenue,Resources,Central Services,Central Services to the Public,5105711826,24.06.2022,Electoral Registration Office,Stationery,13.49,BETA PAK LTD,,
Revenue,Resources,Central Services,Central Services to the Public,5105712318,29.06.2022,Electoral Registration Office,Stationery,5.65,BETA PAK LTD,,
Revenue,Resources,Central Services,Central Services to the Public,5105708264,15.06.2022,Electoral Registration Office,Printing Costs,37.08,DSI BILLING SERVICES LTD,,
Revenue,Resources,Central Services,Central Services to the Public,5105711300,22.06.2022,Electoral Registration Office,Postage,42.06,ROYAL MAIL GROUP PLC,,
Revenue,Resources,Central Services,Central Services to the Public,5105712351,29.06.2022,Electoral Registration Office,Recruitment Advertising,661.00,ASSOCIATION OF ELECTORAL ADMINISTRATORS,,
Revenue,Resources,Central Services,Corporate and Democratic Core,5105711010,17.06.2022,Cabinet Support,Stationery,13.49,BETA PAK LTD,,
Revenue,Resources,Central Services,Corporate and Democratic Core,5105711719,24.06.2022,Democratic Representation & Management,Stationery,26.98,BETA PAK LTD,,
Revenue,Resources,Central Services,Corporate and Democratic Core,5105709829,01.06.2022,Democratic Representation & Management,Professional Services,"1,142.40",RILEY DUNN & WILSON LTD,,
Revenue,Resources,Central Services,Corporate and Democratic Core,5105703797,01.06.2022,Democratic Representation & Management,Stationery,8.74,BATES OFFICE SERVICES LIMITED,,
Revenue,Resources,Central Services,Support Services,5105712116,29.06.2022,Staff Benefits,Payment to Private Contractors,5.00,FUN TO LEARN PRE-SCHOOL,,
Revenue,Resources,Central Services,Support Services,5105712139,29.06.2022,Staff Benefits,Payment to Private Contractors,90.00,KNL CHILDCARE LTD,,
Revenue,Resources,Central Services,Support Services,5105712115,29.06.2022,Staff Benefits,Payment to Private Contractors,120.00,THE ISLAND DAY NURSERY LTD,,
Revenue,Resources,Central Services,Support Services,5105712117,29.06.2022,Staff Benefits,Payment to Private Contractors,80.00,REDACTED PERSONAL DATA,,
Revenue,Resources,Central Services,Support Services,5105712119,29.06.2022,Staff Benefits,Payment to Private Contractors,80.00,OSCARS AFTER SCHOOL CLUB,,
Revenue,Resources,Central Services,Support Services,5105712119,29.06.2022,Staff Benefits,Payment to Private Contractors,40.00,OSCARS AFTER SCHOOL CLUB,,
Revenue,Resources,Central Services,Support Services,5105712116,29.06.2022,Staff Benefits,Payment to Private Contractors,100.00,FUN TO LEARN PRE-SCHOOL,,
Revenue,Resources,Central Services,Support Services,5105712136,29.06.2022,Staff Benefits,Payment to Private Contractors,243.00,YMCA WINCHESTER HOUSE DAY NURSERY,,
Revenue,Resources,Central Services,Support Services,5105712069,29.06.2022,Staff Benefits,Payment to Private Contractors,10.00,LANESEND PRIMARY,,
Revenue,Resources,Central Services,Support Services,5105712123,29.06.2022,Staff Benefits,Payment to Private Contractors,243.00,TOPS DAY NURSERIES PLAYSTATION IOW,,
Revenue,Resources,Central Services,Support Services,5105712142,29.06.2022,Staff Benefits,Payment to Private Contractors,35.00,KCT CHILDCARE LIMITED,,
Revenue,Resources,Central Services,Support Services,5105711344,22.06.2022,Staff Benefits,Payment to Private Contractors,100.00,GURNARD PRIMARY SCHOOL,,
Revenue,Resources,Central Services,Support Services,5105710734,15.06.2022,Staff Benefits,Payment to Private Contractors,"1,400.00",GURNARD PRIMARY SCHOOL,,
Revenue,Resources,Central Services,Support Services,5105710734,15.06.2022,Staff Benefits,Payment to Private Contractors,"1,200.00",GURNARD PRIMARY SCHOOL,,
Revenue,Resources,Central Services,Support Services,5105710734,15.06.2022,Staff Benefits,Payment to Private Contractors,300.00,GURNARD PRIMARY SCHOOL,,
Revenue,Resources,Central Services,Support Services,5105712066,29.06.2022,Staff Benefits,Payment to Private Contractors,100.00,GURNARD PRIMARY SCHOOL,,
Revenue,Resources,Central Services,Support Services,5105712118,29.06.2022,Staff Benefits,Payment to Private Contractors,99.00,LITTLE LADYBIRDS PRIVATE NURSERY PRE-SCHOOL,,
Revenue,Resources,Central Services,Support Services,5105712067,29.06.2022,Staff Benefits,Payment to Private Contractors,243.00,NITON PRE-SCHOOL,,
Revenue,Resources,Central Services,Support Services,5105712065,29.06.2022,Staff Benefits,Payment to Private Contractors,90.00,CARISBROOKE CEP SCHOOL,,
Revenue,Resources,Central Services,Support Services,5105712064,29.06.2022,Staff Benefits,Payment to Private Contractors,243.00,RYDE SCHOOL LTD,,
Revenue,Resources,Central Services,Support Services,5105712068,29.06.2022,Staff Benefits,Payment to Private Contractors,20.00,NORTHWOOD PRIMARY SCHOOL,,
Revenue,Regeneration,Central Services,Support Services,5105711489,24.06.2022,Aylesford Access 420,Professional Services,"1,655.00",SAMAC CONSTRUCTION SERVICES LTD,,
Revenue,Regeneration,Central Services,Support Services,5105711890,29.06.2022,Aylesford Access 420,Professional Services,723.41,CAXTONS COMMERCIAL LIMITED,,
Revenue,Regeneration,Central Services,Support Services,5105710146,08.06.2022,Aylesford Access 420,Legal Fees - Other Parties,"2,000.00",CLYDE & CO LLP,,
Revenue,Resources,Central Services,Support Services,5105709830,01.06.2022,Legal Services Section,Professional Subscriptions,225.00,THE LAW SOCIETY,,
Revenue,Resources,Central Services,Support Services,5105710635,15.06.2022,Legal Services Section,Stationery,5.53,BETA PAK LTD,,
Revenue,Resources,Central Services,Support Services,5105711006,17.06.2022,Legal Services Section,Stationery,53.96,BETA PAK LTD,,
Revenue,Resources,Central Services,Support Services,5105711184,22.06.2022,Legal Services Section,Recruitment Advertising,47.04,NEWSQUEST MEDIA GROUP LTD,,
Revenue,Resources,Central Services,Support Services,5105710370,17.06.2022,Legal Services Section,Stationery,47.76,BETA PAK LTD,,
Revenue,Resources,Central Services,Support Services,5105710586,15.06.2022,Legal Services Section,Sundry Office Expenses,59.97,OD CONSULTANCY LTD,,
Revenue,Resources,Central Services,Support Services,5105703797,01.06.2022,Legal Services Section,Stationery,34.96,BATES OFFICE SERVICES LIMITED,,
Revenue,Resources,Central Services,Support Services,5105709848,01.06.2022,Litigation Costs,Legal Fees - Other Parties,350.00,12 COLLEGE PLACE BARRISTERS,,
Revenue,Resources,Central Services,Support Services,5105709847,01.06.2022,Litigation Costs,Legal Fees - Other Parties,300.00,12 COLLEGE PLACE BARRISTERS,,
Revenue,Resources,Central Services,Support Services,5105709219,15.06.2022,Litigation Costs,Legal Fees - Other Parties,400.00,COLLEGE CHAMBERS BARRISTERS,,
Revenue,Resources,Central Services,Support Services,5105709220,01.06.2022,Litigation Costs,Legal Fees - Other Parties,400.00,COLLEGE CHAMBERS BARRISTERS,,
Revenue,Resources,Central Services,Support Services,5105711045,17.06.2022,Litigation Costs,Legal Fees - Other Parties,300.00,COLLEGE CHAMBERS BARRISTERS,,
Revenue,Resources,Central Services,Support Services,5105710654,15.06.2022,Litigation Costs,Legal Fees - Other Parties,400.00,COLLEGE CHAMBERS BARRISTERS,,
Revenue,Resources,Central Services,Support Services,5105710030,08.06.2022,Litigation Costs,Legal Fees - Other Parties,"1,000.00","180 LANDMARK CHAMBERS, LONDON",,
Revenue,Resources,Central Services,Support Services,5105709849,01.06.2022,Litigation Costs,Legal Fees - Other Parties,"1,188.00",GELDARDS LLP,,
Revenue,Resources,Central Services,Support Services,5105711351,22.06.2022,Litigation Costs,Legal Fees - Other Parties,"1,752.00",GELDARDS LLP,,
Revenue,Resources,Central Services,Support Services,5105711292,22.06.2022,Litigation Costs,Legal Fees - Other Parties,400.00,COLLEGE CHAMBERS BARRISTERS,,
Revenue,Resources,Central Services,Support Services,5105707781,01.06.2022,Litigation Costs,Legal Fees - Other Parties,400.00,COLLEGE CHAMBERS BARRISTERS,,
Revenue,Resources,Central Services,Support Services,5105707783,01.06.2022,Litigation Costs,Legal Fees - Other Parties,400.00,COLLEGE CHAMBERS BARRISTERS,,
Revenue,Resources,Central Services,Support Services,5105708314,01.06.2022,Litigation Costs,Legal Fees - Other Parties,240.00,"PALLANT CHAMBERS, CHICHESTER",,
Revenue,Resources,Central Services,Support Services,5105709104,01.06.2022,Litigation Costs,Legal Fees - Other Parties,410.00,"PALLANT CHAMBERS, CHICHESTER",,
Revenue,Resources,Central Services,Support Services,5105711210,22.06.2022,Litigation Costs,Legal Fees - Other Parties,400.00,COLLEGE CHAMBERS BARRISTERS,,
Revenue,Resources,Central Services,Support Services,5105711204,22.06.2022,Litigation Costs,Legal Fees - Other Parties,400.00,"COLLEGE CHAMBERS, BARRISTERS",,
Revenue,Resources,Central Services,Support Services,5105711261,22.06.2022,Litigation Costs,Legal Fees - Other Parties,600.00,"COLLEGE CHAMBERS, BARRISTERS",,
Revenue,Resources,Central Services,Support Services,5105711200,22.06.2022,Litigation Costs,Legal Fees - Other Parties,400.00,COLLEGE CHAMBERS BARRISTERS,,
Revenue,Resources,Central Services,Support Services,5105711202,22.06.2022,Litigation Costs,Legal Fees - Other Parties,400.00,COLLEGE CHAMBERS BARRISTERS,,
Revenue,Resources,Central Services,Support Services,5105710652,15.06.2022,Litigation Costs,Legal Fees - Other Parties,400.00,COLLEGE CHAMBERS BARRISTERS,,
Revenue,Resources,Central Services,Support Services,5105710653,15.06.2022,Litigation Costs,Legal Fees - Other Parties,400.00,COLLEGE CHAMBERS BARRISTERS,,
Revenue,Resources,Central Services,Support Services,5105710655,15.06.2022,Litigation Costs,Legal Fees - Other Parties,600.00,COLLEGE CHAMBERS BARRISTERS,,
Revenue,Resources,Central Services,Support Services,5105710375,10.06.2022,Litigation Costs,Legal Fees - Other Parties,500.00,"CORNERSTONE BARRISTERS, LONDON",,
Revenue,Resources,Central Services,Support Services,5105711254,22.06.2022,Litigation Costs,Legal Fees - Other Parties,410.00,"PALLANT CHAMBERS, CHICHESTER",,
Revenue,Resources,Central Services,Support Services,5105711290,22.06.2022,Litigation Costs,Legal Fees - Other Parties,400.00,COLLEGE CHAMBERS BARRISTERS,,
Revenue,Resources,Central Services,Support Services,5105711933,29.06.2022,Litigation Costs,Legal Fees - Other Parties,71.00,COURT ENFORCEMENT SERVICES LTD,,
Revenue,Resources,Central Services,Support Services,5105711934,29.06.2022,Litigation Costs,Legal Fees - Other Parties,71.00,COURT ENFORCEMENT SERVICES LTD,,
Revenue,Resources,Central Services,Support Services,5105711986,29.06.2022,Litigation Costs,Legal Fees - Other Parties,"3,000.00","CORNERSTONE BARRISTERS, LONDON",,
Revenue,Neighbourhoods,Central Services,Central Services to the Public,5105711724,24.06.2022,"Registration Of Births,Deaths, Marriages",Stationery,40.47,BETA PAK LTD,,
Revenue,Neighbourhoods,Central Services,Central Services to the Public,5105703793,01.06.2022,"Registration Of Births,Deaths, Marriages",Stationery,1.56,BATES OFFICE SERVICES LIMITED,,
Revenue,Neighbourhoods,Central Services,Central Services to the Public,5105703793,01.06.2022,"Registration Of Births,Deaths, Marriages",Stationery,3.13,BATES OFFICE SERVICES LIMITED,,
Revenue,Resources,Central Services,Support Services,5105711160,22.06.2022,Financial Management Overheads,Professional Subscriptions,"3,689.00",SOCIETY OF COUNTY TREASURERS,,
Revenue,Resources,Central Services,Support Services,5105709295,08.06.2022,Accountancy Team,Computer Software Licencing,339.59,TECHNOLOGY FORGE,,
Revenue,Assistant Chief Executive,Central Services,Corporate and Democratic Core,5105711683,24.06.2022,Assistant Chief Executive,Consultants Fees,"4,686.67",CENTRE FOR LOCAL ECONOMIC STRATEGIES LTD,,
Revenue,Resources,Central Services,Support Services,5105710566,29.06.2022,Human Resources Support Team,Recruitment Advertising,400.00,ISLE OF WIGHT JOBS LIMITED,,
Revenue,Resources,Central Services,Support Services,5105710477,17.06.2022,Occupational Health HR Service,Medical Fees and Staff Welfare,"1,725.00",ISLE OF WIGHT NHS TRUST,,
Revenue,Resources,Central Services,Support Services,5105709295,08.06.2022,Revenues & Benefits Operational Support,Computer Software Licencing,"1,697.95",TECHNOLOGY FORGE,,
Revenue,Resources,Central Services,Support Services,5105711184,22.06.2022,Revenues & Benefits Operational Support,Recruitment Advertising,47.04,NEWSQUEST MEDIA GROUP LTD,,
Revenue,Resources,Central Services,Support Services,5105711826,24.06.2022,Revenues & Benefits Operational Support,Stationery,1.38,BETA PAK LTD,,
Revenue,Resources,Housing Services,Housing Benefits Administration,5105711719,24.06.2022,Housing Benefit,Stationery,13.49,BETA PAK LTD,,
Revenue,Resources,Housing Services,Housing Benefits Administration,5105708264,15.06.2022,Housing Benefit,Postage,"1,251.74",DSI BILLING SERVICES LTD,,
Revenue,Resources,Housing Services,Housing Benefits Administration,5105711377,29.06.2022,Housing Benefit,Postage,250.00,ROYAL MAIL GROUP PLC,,
Revenue,Resources,Central Services,Central Services to the Public,5105711379,29.06.2022,National Non Domestic Rates,Postage,250.00,ROYAL MAIL GROUP PLC,,
Revenue,Resources,Central Services,Central Services to the Public,5105708264,15.06.2022,National Non Domestic Rates,Postage,397.62,DSI BILLING SERVICES LTD,,
Revenue,Resources,Central Services,Central Services to the Public,5105711719,24.06.2022,National Non Domestic Rates,Stationery,13.49,BETA PAK LTD,,
Revenue,Resources,Central Services,Central Services to the Public,5105710587,22.06.2022,National Non Domestic Rates,Vehicle Maintenance Costs,10.00,DASHWITNESS LTD,,
Revenue,Resources,Central Services,Central Services to the Public,5105710587,22.06.2022,Council Tax,Vehicle Maintenance Costs,10.00,DASHWITNESS LTD,,
Revenue,Resources,Central Services,Central Services to the Public,5105711719,24.06.2022,Council Tax,Stationery,13.49,BETA PAK LTD,,
Revenue,Resources,Central Services,Central Services to the Public,5105710717,15.06.2022,Council Tax,Vehicle Maintenance Costs,369.80,DH PRICE MOTORS,,
Revenue,Resources,Central Services,Central Services to the Public,5105710717,15.06.2022,Council Tax,Vehicle Maintenance Costs,33.00,DH PRICE MOTORS,,
Revenue,Resources,Central Services,Central Services to the Public,5105708264,15.06.2022,Council Tax,Postage,"4,745.00",DSI BILLING SERVICES LTD,,
Revenue,Resources,Central Services,Central Services to the Public,5105711375,22.06.2022,Council Tax,Postage,250.00,ROYAL MAIL GROUP PLC,,
Revenue,Resources,Highways and Transport Services,Off Street Parking,5105711259,22.06.2022,Parking Services,Payment to Private Contractors,62.70,CHIPSIDE LIMITED,,
Revenue,Resources,Highways and Transport Services,Off Street Parking,5105712008,29.06.2022,Parking Services,Payment to Private Contractors,"1,489.38",CHIPSIDE LIMITED,,
Revenue,Resources,Central Services,Support Services,5105711719,24.06.2022,Creditor Payments Shared Service Centre,Stationery,26.98,BETA PAK LTD,,
Revenue,Resources,Central Services,Support Services,5105711719,24.06.2022,Customer Accounts Shared Service Centre,Stationery,26.98,BETA PAK LTD,,
Revenue,Resources,Central Services,Support Services,5105711826,24.06.2022,Help Centres Shared Service Centre,Stationery,10.62,BETA PAK LTD,,
Revenue,Resources,Central Services,Support Services,5105711006,17.06.2022,Help Centres Shared Service Centre,Stationery,13.49,BETA PAK LTD,,
Revenue,Resources,Central Services,Support Services,5105709453,15.06.2022,Help Centres Shared Service Centre,Stationery,5.65,BETA PAK LTD,,
Revenue,Resources,Adult Social Care,Physical Support (to be reallocated),5105711719,24.06.2022,Blue Badge Admin Team Shared Services,Stationery,13.49,BETA PAK LTD,,
Revenue,Resources,Adult Social Care,Physical Support (to be reallocated),5105710731,24.06.2022,Blue Badge Admin Team Shared Services,Printing Costs,446.60,VALTECH LTD,,
Revenue,Resources,Adult Social Care,Physical Support (to be reallocated),5105708264,15.06.2022,Blue Badge Admin Team Shared Services,Postage,153.09,DSI BILLING SERVICES LTD,,
Revenue,Resources,Adult Social Care,Physical Support (to be reallocated),5105710663,17.06.2022,Blue Badge Admin Team Shared Services,Printing Costs,810.04,ALLIED PUBLICITY SCVE (MANCHESTER),,
Revenue,Resources,Central Services,Central Services to the Public,5105711376,29.06.2022,Internal Enforcement Team,Postage,250.00,ROYAL MAIL GROUP PLC,,
Revenue,Resources,Central Services,Central Services to the Public,5105711083,17.06.2022,Internal Enforcement Team,Vehicle Maintenance Costs,819.81,DH PRICE MOTORS,,
Revenue,Resources,Central Services,Central Services to the Public,5105711083,17.06.2022,Internal Enforcement Team,Vehicle Maintenance Costs,49.50,DH PRICE MOTORS,,
Revenue,Resources,Central Services,Central Services to the Public,5105711719,24.06.2022,Internal Enforcement Team,Stationery,26.98,BETA PAK LTD,,
Revenue,Resources,Central Services,Central Services to the Public,5105710587,22.06.2022,Internal Enforcement Team,Vehicle Maintenance Costs,10.00,DASHWITNESS LTD,,
Revenue,Resources,Central Services,Support Services,5105709157,08.06.2022,COVID-19 Business Grants,Agency staff,382.62,MATRIX SCM LTD,,
Revenue,Resources,Central Services,Support Services,5105710718,15.06.2022,COVID-19 Business Grants,Agency staff,355.29,MATRIX SCM LTD,,
Revenue,Resources,Central Services,Support Services,5105709479,17.06.2022,COVID-19 Business Grants,Agency staff,"1,127.95",MATRIX SCM LTD,,
Revenue,Resources,Central Services,Support Services,5105709157,08.06.2022,COVID-19 Business Grants,Agency staff,"1,127.95",MATRIX SCM LTD,,
Revenue,Resources,Central Services,Support Services,5105710718,15.06.2022,COVID-19 Business Grants,Agency staff,"1,127.95",MATRIX SCM LTD,,
Revenue,Resources,Central Services,Support Services,5105711395,22.06.2022,COVID-19 Business Grants,Agency staff,"1,275.71",MATRIX SCM LTD,,
Revenue,Resources,Central Services,Support Services,5105709479,17.06.2022,COVID-19 Business Grants,Agency staff,962.10,MATRIX SCM LTD,,
Revenue,Resources,Central Services,Support Services,5105709157,08.06.2022,COVID-19 Business Grants,Agency staff,962.10,MATRIX SCM LTD,,
Revenue,Resources,Central Services,Support Services,5105710718,15.06.2022,COVID-19 Business Grants,Agency staff,962.10,MATRIX SCM LTD,,
Revenue,Resources,Central Services,Support Services,5105711395,22.06.2022,COVID-19 Business Grants,Agency staff,"1,128.04",MATRIX SCM LTD,,
Revenue,Resources,Central Services,Support Services,5105709479,17.06.2022,COVID-19 Business Grants,Agency staff,"1,104.59",MATRIX SCM LTD,,
Revenue,Resources,Central Services,Support Services,5105709157,08.06.2022,COVID-19 Business Grants,Agency staff,662.75,MATRIX SCM LTD,,
Revenue,Resources,Central Services,Support Services,5105711395,22.06.2022,COVID-19 Business Grants,Agency staff,"1,364.49",MATRIX SCM LTD,,
Revenue,Resources,Central Services,Support Services,5105710718,15.06.2022,COVID-19 Business Grants,Agency staff,"1,286.52",MATRIX SCM LTD,,
Revenue,Resources,Central Services,Central Services to the Public,5105708264,15.06.2022,Support for Energy bills,Postage,"3,448.57",DSI BILLING SERVICES LTD,,
Revenue,Resources,Central Services,Central Services to the Public,5105709479,17.06.2022,Support for Energy bills,Agency staff,308.94,MATRIX SCM LTD,,
Revenue,Resources,Central Services,Central Services to the Public,5105710718,15.06.2022,Support for Energy bills,Agency staff,382.11,MATRIX SCM LTD,,
Revenue,Resources,Central Services,Support Services,5105710587,22.06.2022,County Hall Central Mail Room,Vehicle Maintenance Costs,10.00,DASHWITNESS LTD,,
Revenue,Resources,Central Services,Support Services,5105710370,17.06.2022,County Hall Central Mail Room,Stationery,19.18,BETA PAK LTD,,
Revenue,Resources,Central Services,Support Services,5105711006,17.06.2022,Call Centre,Stationery,13.49,BETA PAK LTD,,
Revenue,Resources,Central Services,Support Services,5105710368,10.06.2022,Call Centre,Stationery,17.28,BETA PAK LTD,,
Revenue,Resources,Central Services,Support Services,5105710368,10.06.2022,Call Centre,Stationery,11.06,BETA PAK LTD,,
Revenue,Resources,Central Services,Support Services,5105710368,10.06.2022,Call Centre,Stationery,9.70,BETA PAK LTD,,
Revenue,Resources,Central Services,Support Services,5105709453,15.06.2022,Call Centre,Stationery,5.26,BETA PAK LTD,,
Revenue,Regeneration,Central Services,Support Services,5105709295,08.06.2022,Corporate Property Maintenance Team,Computer Software Licencing,679.18,TECHNOLOGY FORGE,,
Revenue,Regeneration,Central Services,Support Services,5105709295,08.06.2022,Strategic Assets Team,Computer Software Licencing,"1,358.36",TECHNOLOGY FORGE,,
Revenue,Regeneration,Central Services,Support Services,5105703797,01.06.2022,Strategic Assets Team,Stationery,7.42,BATES OFFICE SERVICES LIMITED,,
Revenue,Regeneration,Central Services,Support Services,5105709295,08.06.2022,Property Management,Computer Software Licencing,"1,018.77",TECHNOLOGY FORGE,,
Revenue,Regeneration,Central Services,Support Services,5105708669,10.06.2022,"County Hall,Newport",Property Services - Day to day Maintenance,"2,695.00",TL ELECTRICAL (IOW) LTD,,
Revenue,Regeneration,Central Services,Support Services,5105710117,08.06.2022,"County Hall,Newport",Cleaning Contracts,"5,425.57",N-VIRO,,
Revenue,Regeneration,Central Services,Support Services,5105710117,08.06.2022,"County Hall,Newport",Cleaning Contracts,395.58,N-VIRO,,
Revenue,Regeneration,Central Services,Support Services,5105710118,15.06.2022,"County Hall,Newport",Cleaning Contracts,106.26,N-VIRO,,
Revenue,Regeneration,Central Services,Support Services,5105710020,24.06.2022,"County Hall,Newport",Cleaning Contracts,228.71,PHS GROUP PLC,,
Revenue,Regeneration,Central Services,Support Services,5105707092,01.06.2022,"County Hall,Newport",Cleaning Contracts,234.84,PHS GROUP PLC,,
Revenue,Regeneration,Central Services,Support Services,5105710519,17.06.2022,"County Hall,Newport",Property Services - Day to day Maintenance,248.00,URBAN ENVIRONMENTS LTD,,
Revenue,Regeneration,Central Services,Support Services,5105710520,15.06.2022,"County Hall,Newport",Property Services - Day to day Maintenance,8.00,URBAN ENVIRONMENTS LTD,,
Revenue,Regeneration,Central Services,Support Services,5105710521,17.06.2022,"County Hall,Newport",Property Services - Day to day Maintenance,8.00,URBAN ENVIRONMENTS LTD,,
Revenue,Regeneration,Central Services,Support Services,5105710989,22.06.2022,"County Hall,Newport",Property Services - Day to day Maintenance,240.00,URBAN ENVIRONMENTS LTD,,
Revenue,Regeneration,Central Services,Support Services,5105710992,24.06.2022,"County Hall,Newport",Property Services - Day to day Maintenance,8.00,URBAN ENVIRONMENTS LTD,,
Revenue,Regeneration,Central Services,Support Services,5105707234,15.06.2022,"County Hall,Newport",Property Services - Day to day Maintenance,248.00,URBAN ENVIRONMENTS LTD,,
Revenue,Regeneration,Central Services,Support Services,5105707102,15.06.2022,"County Hall,Newport",Property Services - Day to day Maintenance,8.00,URBAN ENVIRONMENTS LTD,,
Revenue,Regeneration,Central Services,Support Services,5105711139,22.06.2022,"County Hall,Newport",Property Services - Day to day Maintenance,32.00,URBAN ENVIRONMENTS LTD,,
Revenue,Regeneration,Central Services,Support Services,5105711839,29.06.2022,"County Hall,Newport",Property Services - Day to day Maintenance,75.48,MOUNTJOY LTD,,
Revenue,Regeneration,Central Services,Support Services,5105711839,29.06.2022,"County Hall,Newport",Property Services - Day to day Maintenance,140.72,MOUNTJOY LTD,,
Revenue,Regeneration,Central Services,Support Services,5105711839,29.06.2022,"County Hall,Newport",Property Services - Day to day Maintenance,197.67,MOUNTJOY LTD,,
Revenue,Regeneration,Central Services,Support Services,5105709867,08.06.2022,"County Hall,Newport",Property Services - Planned Maintenance,73.33,TEMPLE LIFTS LTD,,
Revenue,Regeneration,Central Services,Support Services,5105709871,08.06.2022,"County Hall,Newport",Property Services - Planned Maintenance,73.33,TEMPLE LIFTS LTD,,
Revenue,Regeneration,Central Services,Support Services,5105709868,08.06.2022,"County Hall,Newport",Property Services - Planned Maintenance,73.33,TEMPLE LIFTS LTD,,
Revenue,Regeneration,Central Services,Support Services,5105709853,08.06.2022,"County Hall,Newport",Property Services - Planned Maintenance,73.33,TEMPLE LIFTS LTD,,
Revenue,Regeneration,Central Services,Support Services,5105709855,08.06.2022,"County Hall,Newport",Property Services - Planned Maintenance,140.00,TEMPLE LIFTS LTD,,
Revenue,Regeneration,Central Services,Support Services,5105709858,08.06.2022,"County Hall,Newport",Property Services - Planned Maintenance,140.00,TEMPLE LIFTS LTD,,
Revenue,Regeneration,Central Services,Support Services,5105706880,01.06.2022,"County Hall,Newport",Cleaning Contracts,-4.16,PHS GROUP PLC,,
Revenue,Regeneration,Central Services,Support Services,5105707236,01.06.2022,"County Hall,Newport",Cleaning Contracts,-6.81,PHS GROUP PLC,,
Revenue,Regeneration,Central Services,Support Services,5105710989,22.06.2022,"Guildhall,Newport",Property Services - Day to day Maintenance,56.00,URBAN ENVIRONMENTS LTD,,
Revenue,Regeneration,Central Services,Support Services,5105710992,24.06.2022,"Guildhall,Newport",Property Services - Day to day Maintenance,8.00,URBAN ENVIRONMENTS LTD,,
Revenue,Regeneration,Central Services,Support Services,5105710519,17.06.2022,"Guildhall,Newport",Property Services - Day to day Maintenance,56.00,URBAN ENVIRONMENTS LTD,,
Revenue,Regeneration,Central Services,Support Services,5105707234,15.06.2022,"Guildhall,Newport",Property Services - Day to day Maintenance,72.00,URBAN ENVIRONMENTS LTD,,
Revenue,Regeneration,Central Services,Support Services,5105707102,15.06.2022,"Guildhall,Newport",Property Services - Day to day Maintenance,8.00,URBAN ENVIRONMENTS LTD,,
Revenue,Regeneration,Central Services,Support Services,5105707092,01.06.2022,"Civic Centre,Sandown",Cleaning Contracts,6.07,PHS GROUP PLC,,
Revenue,Regeneration,Central Services,Support Services,5105710020,24.06.2022,"Civic Centre,Sandown",Cleaning Contracts,6.07,PHS GROUP PLC,,
Revenue,Regeneration,Central Services,Support Services,5105711838,29.06.2022,"Civic Centre,Sandown",Property Services - Planned Maintenance,594.27,MOUNTJOY LTD,,
Revenue,Regeneration,Central Services,Support Services,5105710519,17.06.2022,"Civic Centre,Sandown",Property Services - Day to day Maintenance,64.00,URBAN ENVIRONMENTS LTD,,
Revenue,Regeneration,Central Services,Support Services,5105710992,24.06.2022,"Civic Centre,Sandown",Property Services - Day to day Maintenance,8.00,URBAN ENVIRONMENTS LTD,,
Revenue,Regeneration,Central Services,Support Services,5105710989,22.06.2022,"Civic Centre,Sandown",Property Services - Day to day Maintenance,56.00,URBAN ENVIRONMENTS LTD,,
Revenue,Regeneration,Central Services,Support Services,5105707234,15.06.2022,"Civic Centre,Sandown",Property Services - Day to day Maintenance,40.00,URBAN ENVIRONMENTS LTD,,
Revenue,Regeneration,Central Services,Support Services,5105707233,15.06.2022,"Civic Centre,Sandown",Property Services - Day to day Maintenance,18.50,URBAN ENVIRONMENTS LTD,,
Revenue,Regeneration,Central Services,Support Services,5105707325,15.06.2022,"Civic Centre,Sandown",Property Services - Day to day Maintenance,48.00,URBAN ENVIRONMENTS LTD,,
Revenue,Regeneration,Central Services,Support Services,5105709869,08.06.2022,"Jubilee Stores, Newport",Property Services - Planned Maintenance,70.00,TEMPLE LIFTS LTD,,
Revenue,Regeneration,Central Services,Support Services,5105710117,08.06.2022,"Jubilee Stores, Newport",Cleaning Contracts,624.28,N-VIRO,,
Revenue,Regeneration,Central Services,Support Services,5105710520,15.06.2022,"Jubilee Stores, Newport",Property Services - Day to day Maintenance,8.00,URBAN ENVIRONMENTS LTD,,
Revenue,Regeneration,Central Services,Support Services,5105710519,17.06.2022,"Jubilee Stores, Newport",Property Services - Day to day Maintenance,88.00,URBAN ENVIRONMENTS LTD,,
Revenue,Regeneration,Central Services,Support Services,5105710989,22.06.2022,"Jubilee Stores, Newport",Property Services - Day to day Maintenance,88.00,URBAN ENVIRONMENTS LTD,,
Revenue,Regeneration,Central Services,Support Services,5105707234,15.06.2022,"Jubilee Stores, Newport",Property Services - Day to day Maintenance,88.00,URBAN ENVIRONMENTS LTD,,
Revenue,Regeneration,Central Services,Support Services,5105710117,08.06.2022,"Seaclose Offices, Newport",Cleaning Contracts,"1,249.77",N-VIRO,,
Revenue,Regeneration,Central Services,Support Services,5105710020,24.06.2022,"Seaclose Offices, Newport",Cleaning Contracts,19.06,PHS GROUP PLC,,
Revenue,Regeneration,Central Services,Support Services,5105707092,01.06.2022,"Seaclose Offices, Newport",Cleaning Contracts,19.06,PHS GROUP PLC,,
Revenue,Regeneration,Central Services,Support Services,5105710121,15.06.2022,"Seaclose Offices, Newport",Cleaning Contracts,120.72,N-VIRO,,
Revenue,Regeneration,Central Services,Support Services,5105709878,08.06.2022,"Seaclose Offices, Newport",Property Services - Planned Maintenance,70.00,TEMPLE LIFTS LTD,,
Revenue,Regeneration,Central Services,Support Services,5105711208,29.06.2022,"Seaclose Offices, Newport",Property Services - Day to day Maintenance,"4,322.00",DARES LTD,,
Revenue,Regeneration,Central Services,Support Services,5105711208,29.06.2022,"Seaclose Offices, Newport",Property Services - Day to day Maintenance,220.00,DARES LTD,,
Revenue,Regeneration,Central Services,Support Services,5105711837,29.06.2022,"Seaclose Offices, Newport",Property Services - Day to day Maintenance,135.34,MOUNTJOY LTD,,
Revenue,Regeneration,Central Services,Support Services,5105710519,17.06.2022,"Seaclose Offices, Newport",Property Services - Day to day Maintenance,56.00,URBAN ENVIRONMENTS LTD,,
Revenue,Regeneration,Central Services,Support Services,5105710989,22.06.2022,"Seaclose Offices, Newport",Property Services - Day to day Maintenance,56.00,URBAN ENVIRONMENTS LTD,,
Revenue,Regeneration,Central Services,Support Services,5105707234,15.06.2022,"Seaclose Offices, Newport",Property Services - Day to day Maintenance,56.00,URBAN ENVIRONMENTS LTD,,
Revenue,Regeneration,Central Services,Support Services,5105711139,22.06.2022,"Seaclose Offices, Newport",Property Services - Day to day Maintenance,8.00,URBAN ENVIRONMENTS LTD,,
Revenue,Regeneration,Planning services,Business Support,5105709495,15.06.2022,Dodnor Industrial Estate,Grounds Maintenance,84.40,GROUNDSELL CONTRACTING LTD,,
Revenue,Regeneration,Planning services,Business Support,5105710537,15.06.2022,Dodnor Industrial Estate,Grounds Maintenance,84.40,GROUNDSELL CONTRACTING LTD,,
Revenue,Regeneration,Planning services,Business Support,5105710519,17.06.2022,Dodnor Industrial Estate,Property Services - Day to day Maintenance,32.00,URBAN ENVIRONMENTS LTD,,
Revenue,Regeneration,Planning services,Business Support,5105710989,22.06.2022,Dodnor Industrial Estate,Property Services - Day to day Maintenance,32.00,URBAN ENVIRONMENTS LTD,,
Revenue,Regeneration,Planning services,Business Support,5105707234,15.06.2022,Dodnor Industrial Estate,Property Services - Day to day Maintenance,32.00,URBAN ENVIRONMENTS LTD,,
Revenue,Regeneration,Central Services,Support Services,5105709500,15.06.2022,Properties  - Other Properties,Grounds Maintenance,60.50,GROUNDSELL CONTRACTING LTD,,
Revenue,Regeneration,Central Services,Support Services,5105709496,15.06.2022,Properties  - Other Properties,Grounds Maintenance,75.00,GROUNDSELL CONTRACTING LTD,,
Revenue,Regeneration,Central Services,Support Services,5105709494,15.06.2022,Properties  - Other Properties,Grounds Maintenance,158.00,GROUNDSELL CONTRACTING LTD,,
Revenue,Regeneration,Central Services,Support Services,5105710536,15.06.2022,Properties  - Other Properties,Grounds Maintenance,118.00,GROUNDSELL CONTRACTING LTD,,
Revenue,Regeneration,Central Services,Support Services,5105709497,15.06.2022,Properties  - Other Properties,Grounds Maintenance,45.00,GROUNDSELL CONTRACTING LTD,,
Revenue,Regeneration,Central Services,Support Services,5105709505,15.06.2022,Properties  - Other Properties,Grounds Maintenance,40.00,GROUNDSELL CONTRACTING LTD,,
Revenue,Regeneration,Central Services,Support Services,5105711142,22.06.2022,Properties  - Other Properties,Grounds Maintenance,234.12,ISLAND ROADS SERVICES LTD,,
Revenue,Regeneration,Central Services,Support Services,5105711142,22.06.2022,Properties  - Other Properties,Grounds Maintenance,270.42,ISLAND ROADS SERVICES LTD,,
Revenue,Regeneration,Central Services,Support Services,5105711837,29.06.2022,Properties  - Other Properties,Property Services - Day to day Maintenance,48.57,MOUNTJOY LTD,,
Revenue,Regeneration,Central Services,Support Services,5105711837,29.06.2022,Properties  - Other Properties,Property Services - Day to day Maintenance,95.28,MOUNTJOY LTD,,
Revenue,Regeneration,Central Services,Support Services,5105709510,10.06.2022,Properties  - Other Properties,Grounds Maintenance,75.00,GROUNDSELL CONTRACTING LTD,,
Revenue,Regeneration,Central Services,Support Services,5105706486,08.06.2022,Properties  - Other Properties,Grounds Maintenance,"9,210.00",GROUNDSELL CONTRACTING LTD,,
Revenue,Regeneration,Central Services,Support Services,5105710140,08.06.2022,Properties  - Other Properties,Grounds Maintenance,"-9,210.00",GROUNDSELL CONTRACTING LTD,,
Revenue,Regeneration,Central Services,Support Services,5105709498,15.06.2022,IWC Vacant Sites,Grounds Maintenance,40.00,GROUNDSELL CONTRACTING LTD,,
Revenue,Regeneration,Central Services,Support Services,5105711460,24.06.2022,Public Sector Partnership Costs,Security of Buildings,75.00,VECTIS GROUP SECURITY LTD,,
Revenue,Regeneration,Central Services,Support Services,5105710720,22.06.2022,Public Sector Partnership Costs,Legal Fees - Other Parties,"2,764.80",BEVAN BRITTAN,,
Revenue,Regeneration,Central Services,Support Services,5105707234,15.06.2022,Carisbrooke Depot,Property Services - Day to day Maintenance,48.00,URBAN ENVIRONMENTS LTD,,
Revenue,Regeneration,Central Services,Support Services,5105710989,22.06.2022,Carisbrooke Depot,Property Services - Day to day Maintenance,48.00,URBAN ENVIRONMENTS LTD,,
Revenue,Regeneration,Central Services,Support Services,5105710519,17.06.2022,Carisbrooke Depot,Property Services - Day to day Maintenance,48.00,URBAN ENVIRONMENTS LTD,,
Revenue,Regeneration,Central Services,Support Services,5105710119,15.06.2022,"Westridge, Ryde",Cleaning Contracts,129.12,N-VIRO,,
Revenue,Regeneration,Central Services,Support Services,5105710117,08.06.2022,"Westridge, Ryde",Cleaning Contracts,"1,085.29",N-VIRO,,
Revenue,Regeneration,Central Services,Support Services,5105710123,15.06.2022,"Westridge, Ryde",Cleaning Contracts,51.94,N-VIRO,,
Revenue,Regeneration,Central Services,Support Services,5105711838,29.06.2022,"Westridge, Ryde",Property Services - Day to day Maintenance,110.65,MOUNTJOY LTD,,
Revenue,Regeneration,Central Services,Support Services,5105711682,24.06.2022,"Westridge, Ryde",Security of Buildings,165.00,ADT FIRE AND SECURITY PLC,,
Revenue,Regeneration,Central Services,Support Services,5105711478,24.06.2022,"Westridge, Ryde",Security of Buildings,12.00,VECTIS GROUP SECURITY LTD,,
Revenue,Regeneration,Central Services,Support Services,5105709856,08.06.2022,"Westridge, Ryde",Property Services - Planned Maintenance,65.00,TEMPLE LIFTS LTD,,
Revenue,Regeneration,Central Services,Support Services,5105710656,15.06.2022,"Westridge, Ryde",Property Services - Day to day Maintenance,216.00,WIGHT FIRE CO LTD,,
Revenue,Regeneration,Central Services,Support Services,5105710519,17.06.2022,"Westridge, Ryde",Property Services - Day to day Maintenance,32.00,URBAN ENVIRONMENTS LTD,,
Revenue,Regeneration,Central Services,Support Services,5105710989,22.06.2022,"Westridge, Ryde",Property Services - Day to day Maintenance,40.00,URBAN ENVIRONMENTS LTD,,
Revenue,Regeneration,Central Services,Support Services,5105707234,15.06.2022,"Westridge, Ryde",Property Services - Day to day Maintenance,40.00,URBAN ENVIRONMENTS LTD,,
Revenue,Regeneration,Central Services,Support Services,5105707235,15.06.2022,"Westridge, Ryde",Property Services - Day to day Maintenance,72.00,URBAN ENVIRONMENTS LTD,,
Revenue,Regeneration,Central Services,Support Services,5105709502,15.06.2022,"Mariners Way, Cowes",Grounds Maintenance,80.00,GROUNDSELL CONTRACTING LTD,,
Revenue,Regeneration,Central Services,Support Services,5105711839,29.06.2022,"Mariners Way, Cowes",Property Services - Planned Maintenance,288.15,MOUNTJOY LTD,,
Revenue,Regeneration,Central Services,Support Services,5105707234,15.06.2022,"Mariners Way, Cowes",Property Services - Day to day Maintenance,32.00,URBAN ENVIRONMENTS LTD,,
Revenue,Regeneration,Central Services,Support Services,5105710519,17.06.2022,"Mariners Way, Cowes",Property Services - Day to day Maintenance,32.00,URBAN ENVIRONMENTS LTD,,
Revenue,Regeneration,Central Services,Support Services,5105710989,22.06.2022,"Mariners Way, Cowes",Property Services - Day to day Maintenance,32.00,URBAN ENVIRONMENTS LTD,,
Revenue,Regeneration,Central Services,Support Services,5105709540,15.06.2022,Parklands,Property Services - Planned Maintenance,686.07,WIGHT HEATING LTD,,
Revenue,Regeneration,Central Services,Support Services,5105709504,15.06.2022,Parklands,Grounds Maintenance,361.00,GROUNDSELL CONTRACTING LTD,,
Revenue,Regeneration,Central Services,Support Services,5105710540,15.06.2022,Parklands,Grounds Maintenance,361.00,GROUNDSELL CONTRACTING LTD,,
Revenue,Regeneration,Central Services,Support Services,5105711767,24.06.2022,Elmdon (The Laurels),Security of Buildings,110.00,VECTIS GROUP SECURITY LTD,,
Revenue,Regeneration,Central Services,Support Services,5105711837,29.06.2022,Non-operational buildings,Property Services - Planned Maintenance,130.33,MOUNTJOY LTD,,
Revenue,Regeneration,Central Services,Support Services,5105710521,17.06.2022,Non-operational buildings,Property Services - Day to day Maintenance,24.00,URBAN ENVIRONMENTS LTD,,
Revenue,Regeneration,Central Services,Support Services,5105710520,15.06.2022,Non-operational buildings,Property Services - Day to day Maintenance,8.00,URBAN ENVIRONMENTS LTD,,
Revenue,Regeneration,Central Services,Support Services,5105710519,17.06.2022,Non-operational buildings,Property Services - Day to day Maintenance,16.00,URBAN ENVIRONMENTS LTD,,
Revenue,Regeneration,Central Services,Support Services,5105710520,15.06.2022,Non-operational buildings,Property Services - Day to day Maintenance,16.00,URBAN ENVIRONMENTS LTD,,
Revenue,Regeneration,Central Services,Support Services,5105710522,15.06.2022,Non-operational buildings,Property Services - Day to day Maintenance,16.00,URBAN ENVIRONMENTS LTD,,
Revenue,Regeneration,Central Services,Support Services,5105708382,01.06.2022,Non-operational buildings,Property Services - Day to day Maintenance,233.33,HILLBANS PEST CONTROL LTD,,
Revenue,Assistant Chief Executive,Central Services,Support Services,5105711889,29.06.2022,Organisational Intel,Consultants Fees,"6,375.00",HSO ENTERPISE SOLUTIONS LTD,,
Revenue,Resources,Central Services,Support Services,5105710721,15.06.2022,Corporate Stores,Vehicle Maintenance Costs,107.50,DH PRICE MOTORS,,
Revenue,Resources,Central Services,Support Services,5105710587,22.06.2022,Corporate Stores,Vehicle Maintenance Costs,10.00,DASHWITNESS LTD,,
Revenue,Resources,Central Services,Support Services,5105710117,08.06.2022,ICT Management,Consumable Cleaning Materials,316.94,N-VIRO,,
Revenue,Resources,Central Services,Support Services,5105710070,08.06.2022,ICT Contracts,Computer Purchase & Rental,"5,887.85",AVOIRA LIMITED,,
Revenue,Resources,Central Services,Support Services,5105712346,29.06.2022,ICT Contracts,Computer Purchase & Rental,479.25,STONE COMPUTERS LIMITED,,
Revenue,Resources,Central Services,Support Services,5105711926,29.06.2022,ICT Contracts,Computer Maintenance,"9,865.00",BRAMBLE HUB LIMITED,,
Revenue,Resources,Central Services,Support Services,5105710467,15.06.2022,ICT Contracts,Computer Purchase & Rental,436.30,STONE COMPUTERS LIMITED,,
Revenue,Resources,Central Services,Support Services,5105710467,15.06.2022,ICT Contracts,Computer Purchase & Rental,174.52,STONE COMPUTERS LIMITED,,
Revenue,Resources,Central Services,Support Services,5105710072,08.06.2022,ICT Contracts,Computer Maintenance,758.29,CONDECO LTD,,
Revenue,Resources,Central Services,Support Services,5105710658,15.06.2022,ICT Contracts,Computer Maintenance,"80,959.49",PHOENIX SOFTWARE LTD,,
Revenue,Resources,Central Services,Support Services,5105710659,15.06.2022,ICT Contracts,Computer Maintenance,"9,005.10",PHOENIX SOFTWARE LTD,,
Revenue,Resources,Central Services,Support Services,5105704444,17.06.2022,ICT Contracts,Computer Maintenance,"13,403.52",SOFTCAT PLC,,
Revenue,Resources,Central Services,Support Services,5105709831,15.06.2022,ICT Contracts,Computer Maintenance,"-3,108.00",SOFTCAT PLC,,
Revenue,Resources,Central Services,Support Services,5105710783,17.06.2022,ICT Contracts,Computer Maintenance,"-9,450.00",SOFTCAT PLC,,
Revenue,Resources,Central Services,Support Services,5105710784,15.06.2022,ICT Contracts,Computer Maintenance,"3,108.00",SOFTCAT PLC,,
Revenue,Resources,Central Services,Support Services,5105710785,17.06.2022,ICT Contracts,Computer Maintenance,"-3,108.00",SOFTCAT PLC,,
Revenue,Resources,Central Services,Support Services,5105711091,24.06.2022,ICT Contracts,Computer Software Licencing,"474,361.00",PHOENIX SOFTWARE LTD,,
Revenue,Resources,Central Services,Support Services,5105711093,24.06.2022,ICT Contracts,Computer Software Licencing,"62,698.80",PHOENIX SOFTWARE LTD,,
Revenue,Resources,Central Services,Support Services,5105711095,24.06.2022,ICT Contracts,Computer Software Licencing,"-2,016.00",PHOENIX SOFTWARE LTD,,
Revenue,Resources,Central Services,Support Services,5105710574,15.06.2022,Telecommunications,Computer Maintenance,"17,448.60",CHARTERHOUSE GROUP,,
Capital,Resources,Capital,Capital,5105710167,10.06.2022,Management of Asbestos,Payment to Contractors - Capital,"4,158.00",TL ELECTRICAL (IOW) LTD,,
Capital,Resources,Capital,Capital,5105708549,01.06.2022,Management of Asbestos,Payment to Contractors - Capital,683.70,WIGHT HEATING LTD,,
Capital,Resources,Capital,Capital,5105711350,22.06.2022,Management of Asbestos,Payment to Contractors - Capital,"7,980.00",JOHN NICHOLSON LTD,,
Capital,Resources,Capital,Capital,5105711947,29.06.2022,Management of Asbestos,Payment to Contractors - Capital,"9,745.21",WIGHT HEATING LTD,,
Capital,Resources,Capital,Capital,5105710169,10.06.2022,Management of Asbestos,Payment to Contractors - Capital,"8,750.00",TL ELECTRICAL (IOW) LTD,,
Capital,Resources,Capital,Capital,5105711449,22.06.2022,Management of Asbestos,Payment to Contractors - Capital,"86,400.00",BRIGHT SPARKS VENTURES LTD,,
Capital,Resources,Capital,Capital,5105707967,01.06.2022,Management of Asbestos,Payment to Contractors - Capital,"34,475.56",SOUTHERN ELECTRIC CONTRACTING LTD,,
Capital,Resources,Capital,Capital,5105711839,29.06.2022,Management of Asbestos,Payment to Contractors - Capital,"1,205.29",MOUNTJOY LTD,,
Capital,Resources,Capital,Capital,5105712024,29.06.2022,Management of Asbestos,Payment to Contractors - Capital,"29,931.09",T JONES ELECTRICAL LTD,,
Capital,Resources,Capital,Capital,5105710730,24.06.2022,Management of Asbestos,Payment to Contractors - Capital,"2,250.00",GREEN WOOD BUILDING SERVICES CONSULTANTS,,
Capital,Resources,Capital,Capital,5105710729,24.06.2022,Management of Asbestos,Payment to Contractors - Capital,"2,250.00",GREEN WOOD BUILDING SERVICES CONSULTANTS,,
Capital,Resources,Capital,Capital,5105708618,24.06.2022,Management of Asbestos,Payment to Contractors - Capital,"5,639.00",AMBER HEATING LIMITED,,
Capital,Resources,Capital,Capital,5105708674,10.06.2022,Management of Asbestos,Payment to Contractors - Capital,"15,000.00",TL ELECTRICAL (IOW) LTD,,
Capital,Resources,Capital,Capital,5105711839,29.06.2022,Management of Asbestos,Payment to Contractors - Capital,"1,247.55",MOUNTJOY LTD,,
Capital,Resources,Capital,Capital,5105708856,08.06.2022,Capital Receipts,External Design and Supervision Fees,"5,000.00",EDDISONS INCORPORATING,,
Capital,Resources,Capital,Capital,5105711348,22.06.2022,Capital Receipts,Legal Fees - Other Parties,"1,780.00",FREETHS LLP,,
Capital,Resources,Capital,Capital,5105711428,22.06.2022,Strategic Projects,Payment to Contractors - Capital,"1,665.00",AIRTEK SERVICES IOW LTD,,
Capital,Resources,Capital,Capital,5105711482,24.06.2022,Server Farm,ICT Hardware & Software - Capital,200.00,DATASWIFT NETWORK SERVICES LIMITED,,
Capital,Resources,Capital,Capital,5105711483,24.06.2022,Server Farm,ICT Hardware & Software - Capital,150.00,DATASWIFT NETWORK SERVICES LIMITED,,
Revenue,Adult Services,Housing Services,Homelessness,5105708056,10.06.2022,Housing Needs Team,Consultants Fees,"24,800.00",OUTCOME HOME,,
Revenue,Adult Services,Housing Services,Homelessness,5105710979,22.06.2022,Homelessness Support,Client Expenses,211.20,INNERSPACES SELF STORAGE LIMITED,,
Revenue,Adult Services,Housing Services,Homelessness,5105711094,17.06.2022,Homelessness Support,Medical Fees and Staff Welfare,140.00,NOWMEDICAL,,
Revenue,Adult Services,Housing Services,Homelessness,5105712030,29.06.2022,Homelessness Support,Client Expenses,102.80,VECTIS STORAGE LTD,,
Revenue,Adult Services,Housing Services,Homelessness,5105711119,29.06.2022,Homelessness Support,Client Expenses,137.50,VECTIS STORAGE LTD,,
Revenue,Adult Services,Housing Services,Homelessness,5105712352,29.06.2022,Homelessness Support,Client Expenses,108.33,STORE IT (IOW) LTD,,
Revenue,Adult Services,Housing Services,Homelessness,5105712352,29.06.2022,Homelessness Support,Client Expenses,6.05,STORE IT (IOW) LTD,,
Revenue,Adult Services,Housing Services,Homelessness,5105709090,01.06.2022,Homelessness Support,Client Expenses,89.10,INNERSPACES SELF STORAGE LIMITED,,
Revenue,Adult Services,Housing Services,Homelessness,5105711989,29.06.2022,Homelessness Support,Client Expenses,89.10,INNERSPACES SELF STORAGE LIMITED,,
Revenue,Adult Services,Housing Services,Homelessness,5105709327,08.06.2022,Homelessness Support,Client Expenses,142.81,INNERSPACES SELF STORAGE LIMITED,,
Revenue,Adult Services,Housing Services,Homelessness,5105710180,10.06.2022,Homelessness Support,Client Expenses,89.10,INNERSPACES SELF STORAGE LIMITED,,
Revenue,Adult Services,Housing Services,Homelessness,5105709357,08.06.2022,Homelessness Support,Client Expenses,480.00,COWES MOVERS,,
Revenue,Adult Services,Housing Services,Homelessness,5105710365,10.06.2022,Homelessness Support,Client Expenses,166.67,G DEAN & CO,,
Revenue,Adult Services,Housing Services,Homelessness,5105710365,10.06.2022,Homelessness Support,Client Expenses,12.10,G DEAN & CO,,
Revenue,Adult Services,Housing Services,Homelessness,5105711121,29.06.2022,Homelessness Support,Client Expenses,144.17,VECTIS STORAGE LTD,,
Revenue,Adult Services,Housing Services,Homelessness,5105709087,01.06.2022,Homelessness Support,Client Expenses,153.00,INNERSPACES SELF STORAGE LIMITED,,
Revenue,Adult Services,Housing Services,Homelessness,5105711981,29.06.2022,Homelessness Support,Client Expenses,153.00,INNERSPACES SELF STORAGE LIMITED,,
Revenue,Adult Services,Housing Services,Homelessness,5105709390,08.06.2022,Homelessness Support,Client Expenses,177.00,INNERSPACES SELF STORAGE LIMITED,,
Revenue,Adult Services,Housing Services,Homelessness,5105711982,29.06.2022,Homelessness Support,Client Expenses,177.00,INNERSPACES SELF STORAGE LIMITED,,
Revenue,Adult Services,Housing Services,Homelessness,5105711120,29.06.2022,Homelessness Support,Client Expenses,102.80,VECTIS STORAGE LTD,,
Revenue,Adult Services,Housing Services,Homelessness,5105712029,29.06.2022,Homelessness Support,Client Expenses,-102.80,VECTIS STORAGE LTD,,
Revenue,Adult Services,Housing Services,Homelessness,5105711117,29.06.2022,Homelessness Support,Client Expenses,166.66,VECTIS STORAGE LTD,,
Revenue,Adult Services,Housing Services,Homelessness,5105711107,29.06.2022,Homelessness Support,Client Expenses,96.00,VECTIS STORAGE LTD,,
Revenue,Adult Services,Housing Services,Homelessness,5105711457,24.06.2022,Homelessness Support,Client Expenses,500.00,MEW THE MOVERS,,
Revenue,Adult Services,Housing Services,Homelessness,5105709324,08.06.2022,Homelessness Support,Client Expenses,139.80,INNERSPACES SELF STORAGE LIMITED,,
Revenue,Adult Services,Housing Services,Homelessness,5105711335,22.06.2022,Private Rented Sector Leasing Scheme,Accommodation Costs - Leaseholder Payments,746.81,BRAMBLE LETTINGS,,
Revenue,Adult Services,Housing Services,Homelessness,5105711335,22.06.2022,Private Rented Sector Leasing Scheme,Accommodation Costs - Leaseholder Payments,588.38,BRAMBLE LETTINGS,,
Revenue,Adult Services,Housing Services,Homelessness,5105711335,22.06.2022,Private Rented Sector Leasing Scheme,Accommodation Costs - Leaseholder Payments,746.81,BRAMBLE LETTINGS,,
Revenue,Adult Services,Housing Services,Homelessness,5105711335,22.06.2022,Private Rented Sector Leasing Scheme,Accommodation Costs - Leaseholder Payments,588.38,BRAMBLE LETTINGS,,
Revenue,Adult Services,Housing Services,Homelessness,5105711335,22.06.2022,Private Rented Sector Leasing Scheme,Accommodation Costs - Leaseholder Payments,746.81,BRAMBLE LETTINGS,,
Revenue,Adult Services,Housing Services,Homelessness,5105711335,22.06.2022,Private Rented Sector Leasing Scheme,Accommodation Costs - Leaseholder Payments,588.38,BRAMBLE LETTINGS,,
Revenue,Adult Services,Housing Services,Homelessness,5105711335,22.06.2022,Private Rented Sector Leasing Scheme,Accommodation Costs - Leaseholder Payments,746.81,BRAMBLE LETTINGS,,
Revenue,Adult Services,Housing Services,Homelessness,5105711335,22.06.2022,Private Rented Sector Leasing Scheme,Accommodation Costs - Leaseholder Payments,588.38,BRAMBLE LETTINGS,,
Revenue,Adult Services,Housing Services,Homelessness,5105711335,22.06.2022,Private Rented Sector Leasing Scheme,Accommodation Costs - Leaseholder Payments,746.81,BRAMBLE LETTINGS,,
Revenue,Adult Services,Housing Services,Homelessness,5105711335,22.06.2022,Private Rented Sector Leasing Scheme,Accommodation Costs - Leaseholder Payments,588.38,BRAMBLE LETTINGS,,
Revenue,Adult Services,Housing Services,Homelessness,5105711335,22.06.2022,Private Rented Sector Leasing Scheme,Accommodation Costs - Leaseholder Payments,746.81,BRAMBLE LETTINGS,,
Revenue,Adult Services,Housing Services,Homelessness,5105711335,22.06.2022,Private Rented Sector Leasing Scheme,Accommodation Costs - Leaseholder Payments,588.38,BRAMBLE LETTINGS,,
Revenue,Adult Services,Housing Services,Homelessness,5105711335,22.06.2022,Private Rented Sector Leasing Scheme,Accommodation Costs - Leaseholder Payments,746.81,BRAMBLE LETTINGS,,
Revenue,Adult Services,Housing Services,Homelessness,5105711335,22.06.2022,Private Rented Sector Leasing Scheme,Accommodation Costs - Leaseholder Payments,769.43,BRAMBLE LETTINGS,,
Revenue,Adult Services,Housing Services,Homelessness,5105711335,22.06.2022,Private Rented Sector Leasing Scheme,Accommodation Costs - Leaseholder Payments,746.81,BRAMBLE LETTINGS,,
Revenue,Adult Services,Housing Services,Homelessness,5105711335,22.06.2022,Private Rented Sector Leasing Scheme,Accommodation Costs - Leaseholder Payments,746.81,BRAMBLE LETTINGS,,
Revenue,Adult Services,Housing Services,Homelessness,5105711335,22.06.2022,Private Rented Sector Leasing Scheme,Accommodation Costs - Leaseholder Payments,746.81,BRAMBLE LETTINGS,,
Revenue,Adult Services,Housing Services,Homelessness,5105711335,22.06.2022,Private Rented Sector Leasing Scheme,Accommodation Costs - Leaseholder Payments,746.81,BRAMBLE LETTINGS,,
Revenue,Adult Services,Housing Services,Homelessness,5105711335,22.06.2022,Private Rented Sector Leasing Scheme,Accommodation Costs - Leaseholder Payments,746.81,BRAMBLE LETTINGS,,
Revenue,Adult Services,Housing Services,Homelessness,5105711335,22.06.2022,Private Rented Sector Leasing Scheme,Accommodation Costs - Leaseholder Payments,746.81,BRAMBLE LETTINGS,,
Revenue,Adult Services,Housing Services,Homelessness,5105711335,22.06.2022,Private Rented Sector Leasing Scheme,Accommodation Costs - Leaseholder Payments,746.81,BRAMBLE LETTINGS,,
Revenue,Adult Services,Housing Services,Homelessness,5105711335,22.06.2022,Private Rented Sector Leasing Scheme,Accommodation Costs - Leaseholder Payments,746.81,BRAMBLE LETTINGS,,
Revenue,Adult Services,Housing Services,Homelessness,5105711335,22.06.2022,Private Rented Sector Leasing Scheme,Accommodation Costs - Leaseholder Payments,281.66,BRAMBLE LETTINGS,,
Revenue,Adult Services,Housing Services,Homelessness,5105711335,22.06.2022,Private Rented Sector Leasing Scheme,Accommodation Costs - Leaseholder Payments,216.66,BRAMBLE LETTINGS,,
Revenue,Adult Services,Housing Services,Homelessness,5105711334,22.06.2022,Private Rented Sector Leasing Scheme,Accommodation Costs - Leaseholder Payments,888.33,ISLAND LETTINGS LTD,,
Revenue,Adult Services,Housing Services,Homelessness,5105711336,22.06.2022,Private Rented Sector Leasing Scheme,Accommodation Costs - Leaseholder Payments,695.89,REDACTED PERSONAL DATA,,
Revenue,Adult Services,Housing Services,Homelessness,5105711336,22.06.2022,Private Rented Sector Leasing Scheme,Accommodation Costs - Leaseholder Payments,695.89,REDACTED PERSONAL DATA,,
Revenue,Adult Services,Housing Services,Homelessness,5105711313,22.06.2022,Private Rented Sector Leasing Scheme,Accommodation Costs - Leaseholder Payments,881.44,HUNNYHILL PROPERTIES LTD,,
Revenue,Adult Services,Housing Services,Homelessness,5105711313,22.06.2022,Private Rented Sector Leasing Scheme,Accommodation Costs - Leaseholder Payments,695.89,HUNNYHILL PROPERTIES LTD,,
Revenue,Adult Services,Housing Services,Homelessness,5105711314,22.06.2022,Private Rented Sector Leasing Scheme,Accommodation Costs - Leaseholder Payments,695.89,REDACTED PERSONAL DATA,,
Revenue,Adult Services,Housing Services,Homelessness,5105711314,22.06.2022,Private Rented Sector Leasing Scheme,Accommodation Costs - Leaseholder Payments,695.89,REDACTED PERSONAL DATA,,
Revenue,Adult Services,Housing Services,Homelessness,5105711314,22.06.2022,Private Rented Sector Leasing Scheme,Accommodation Costs - Leaseholder Payments,695.89,REDACTED PERSONAL DATA,,
Revenue,Adult Services,Housing Services,Homelessness,5105711314,22.06.2022,Private Rented Sector Leasing Scheme,Accommodation Costs - Leaseholder Payments,695.89,REDACTED PERSONAL DATA,,
Revenue,Adult Services,Housing Services,Homelessness,5105711314,22.06.2022,Private Rented Sector Leasing Scheme,Accommodation Costs - Leaseholder Payments,695.89,REDACTED PERSONAL DATA,,
Revenue,Adult Services,Housing Services,Homelessness,5105711315,22.06.2022,Private Rented Sector Leasing Scheme,Accommodation Costs - Leaseholder Payments,780.00,REDACTED PERSONAL DATA,,
Revenue,Adult Services,Housing Services,Homelessness,5105711316,22.06.2022,Private Rented Sector Leasing Scheme,Accommodation Costs - Leaseholder Payments,859.95,REDACTED PERSONAL DATA,,
Revenue,Adult Services,Housing Services,Homelessness,5105711317,22.06.2022,Private Rented Sector Leasing Scheme,Accommodation Costs - Leaseholder Payments,866.67,REDACTED PERSONAL DATA,,
Revenue,Adult Services,Housing Services,Homelessness,5105711318,22.06.2022,Private Rented Sector Leasing Scheme,Accommodation Costs - Leaseholder Payments,788.67,REDACTED PERSONAL DATA,,
Revenue,Adult Services,Housing Services,Homelessness,5105711319,22.06.2022,Private Rented Sector Leasing Scheme,Accommodation Costs - Leaseholder Payments,649.83,REDACTED PERSONAL DATA,,
Revenue,Adult Services,Housing Services,Homelessness,5105711320,22.06.2022,Private Rented Sector Leasing Scheme,Accommodation Costs - Leaseholder Payments,814.71,REDACTED PERSONAL DATA,,
Revenue,Adult Services,Housing Services,Homelessness,5105711320,22.06.2022,Private Rented Sector Leasing Scheme,Accommodation Costs - Leaseholder Payments,649.83,REDACTED PERSONAL DATA,,
Revenue,Adult Services,Housing Services,Homelessness,5105711320,22.06.2022,Private Rented Sector Leasing Scheme,Accommodation Costs - Leaseholder Payments,649.83,REDACTED PERSONAL DATA,,
Revenue,Adult Services,Housing Services,Homelessness,5105711320,22.06.2022,Private Rented Sector Leasing Scheme,Accommodation Costs - Leaseholder Payments,649.83,REDACTED PERSONAL DATA,,
Revenue,Adult Services,Housing Services,Homelessness,5105711320,22.06.2022,Private Rented Sector Leasing Scheme,Accommodation Costs - Leaseholder Payments,789.01,REDACTED PERSONAL DATA,,
Revenue,Adult Services,Housing Services,Homelessness,5105711320,22.06.2022,Private Rented Sector Leasing Scheme,Accommodation Costs - Leaseholder Payments,649.83,REDACTED PERSONAL DATA,,
Revenue,Adult Services,Housing Services,Homelessness,5105711320,22.06.2022,Private Rented Sector Leasing Scheme,Accommodation Costs - Leaseholder Payments,649.83,REDACTED PERSONAL DATA,,
Revenue,Adult Services,Housing Services,Homelessness,5105711320,22.06.2022,Private Rented Sector Leasing Scheme,Accommodation Costs - Leaseholder Payments,789.01,REDACTED PERSONAL DATA,,
Revenue,Adult Services,Housing Services,Homelessness,5105711320,22.06.2022,Private Rented Sector Leasing Scheme,Accommodation Costs - Leaseholder Payments,789.01,REDACTED PERSONAL DATA,,
Revenue,Adult Services,Housing Services,Homelessness,5105711320,22.06.2022,Private Rented Sector Leasing Scheme,Accommodation Costs - Leaseholder Payments,789.01,REDACTED PERSONAL DATA,,
Revenue,Adult Services,Housing Services,Homelessness,5105711320,22.06.2022,Private Rented Sector Leasing Scheme,Accommodation Costs - Leaseholder Payments,814.71,REDACTED PERSONAL DATA,,
Revenue,Adult Services,Housing Services,Homelessness,5105711320,22.06.2022,Private Rented Sector Leasing Scheme,Accommodation Costs - Leaseholder Payments,835.08,REDACTED PERSONAL DATA,,
Revenue,Adult Services,Housing Services,Homelessness,5105711320,22.06.2022,Private Rented Sector Leasing Scheme,Accommodation Costs - Leaseholder Payments,649.83,REDACTED PERSONAL DATA,,
Revenue,Adult Services,Housing Services,Homelessness,5105711320,22.06.2022,Private Rented Sector Leasing Scheme,Accommodation Costs - Leaseholder Payments,600.00,REDACTED PERSONAL DATA,,
Revenue,Adult Services,Housing Services,Homelessness,5105711321,22.06.2022,Private Rented Sector Leasing Scheme,Accommodation Costs - Leaseholder Payments,742.26,REDACTED PERSONAL DATA,,
Revenue,Adult Services,Housing Services,Homelessness,5105711322,22.06.2022,Private Rented Sector Leasing Scheme,Accommodation Costs - Leaseholder Payments,799.50,REDACTED PERSONAL DATA,,
Revenue,Adult Services,Housing Services,Homelessness,5105711322,22.06.2022,Private Rented Sector Leasing Scheme,Accommodation Costs - Leaseholder Payments,799.50,REDACTED PERSONAL DATA,,
Revenue,Adult Services,Housing Services,Homelessness,5105711322,22.06.2022,Private Rented Sector Leasing Scheme,Accommodation Costs - Leaseholder Payments,977.17,REDACTED PERSONAL DATA,,
Revenue,Adult Services,Housing Services,Homelessness,5105711322,22.06.2022,Private Rented Sector Leasing Scheme,Accommodation Costs - Leaseholder Payments,927.85,REDACTED PERSONAL DATA,,
Revenue,Adult Services,Housing Services,Homelessness,5105711322,22.06.2022,Private Rented Sector Leasing Scheme,Accommodation Costs - Leaseholder Payments,799.50,REDACTED PERSONAL DATA,,
Revenue,Adult Services,Housing Services,Homelessness,5105711322,22.06.2022,Private Rented Sector Leasing Scheme,Accommodation Costs - Leaseholder Payments,799.50,REDACTED PERSONAL DATA,,
Revenue,Adult Services,Housing Services,Homelessness,5105711323,22.06.2022,Private Rented Sector Leasing Scheme,Accommodation Costs - Leaseholder Payments,510.25,REDACTED PERSONAL DATA,,
Revenue,Adult Services,Housing Services,Homelessness,5105711323,22.06.2022,Private Rented Sector Leasing Scheme,Accommodation Costs - Leaseholder Payments,510.25,REDACTED PERSONAL DATA,,
Revenue,Adult Services,Housing Services,Homelessness,5105711323,22.06.2022,Private Rented Sector Leasing Scheme,Accommodation Costs - Leaseholder Payments,510.25,REDACTED PERSONAL DATA,,
Revenue,Adult Services,Housing Services,Homelessness,5105711323,22.06.2022,Private Rented Sector Leasing Scheme,Accommodation Costs - Leaseholder Payments,510.25,REDACTED PERSONAL DATA,,
Revenue,Adult Services,Housing Services,Homelessness,5105711323,22.06.2022,Private Rented Sector Leasing Scheme,Accommodation Costs - Leaseholder Payments,510.25,REDACTED PERSONAL DATA,,
Revenue,Adult Services,Housing Services,Homelessness,5105711323,22.06.2022,Private Rented Sector Leasing Scheme,Accommodation Costs - Leaseholder Payments,510.25,REDACTED PERSONAL DATA,,
Revenue,Adult Services,Housing Services,Homelessness,5105711323,22.06.2022,Private Rented Sector Leasing Scheme,Accommodation Costs - Leaseholder Payments,510.25,REDACTED PERSONAL DATA,,
Revenue,Adult Services,Housing Services,Homelessness,5105711324,22.06.2022,Private Rented Sector Leasing Scheme,Accommodation Costs - Leaseholder Payments,835.08,REDACTED PERSONAL DATA,,
Revenue,Adult Services,Housing Services,Homelessness,5105711325,22.06.2022,Private Rented Sector Leasing Scheme,Accommodation Costs - Leaseholder Payments,799.50,REDACTED PERSONAL DATA,,
Revenue,Adult Services,Housing Services,Homelessness,5105711327,22.06.2022,Private Rented Sector Leasing Scheme,Accommodation Costs - Leaseholder Payments,799.50,REDACTED PERSONAL DATA,,
Revenue,Adult Services,Housing Services,Homelessness,5105711328,22.06.2022,Private Rented Sector Leasing Scheme,Accommodation Costs - Leaseholder Payments,799.50,REDACTED PERSONAL DATA,,
Revenue,Adult Services,Housing Services,Homelessness,5105711326,22.06.2022,Private Rented Sector Leasing Scheme,Accommodation Costs - Leaseholder Payments,866.67,2K PROPERTY,,
Revenue,Adult Services,Housing Services,Homelessness,5105711329,22.06.2022,Private Rented Sector Leasing Scheme,Accommodation Costs - Leaseholder Payments,799.50,REDACTED PERSONAL DATA,,
Revenue,Adult Services,Housing Services,Homelessness,5105711332,22.06.2022,Private Rented Sector Leasing Scheme,Accommodation Costs - Leaseholder Payments,780.00,REDACTED PERSONAL DATA,,
Revenue,Adult Services,Housing Services,Homelessness,5105711330,22.06.2022,Private Rented Sector Leasing Scheme,Accommodation Costs - Leaseholder Payments,780.00,REDACTED PERSONAL DATA,,
Revenue,Adult Services,Housing Services,Homelessness,5105711330,22.06.2022,Private Rented Sector Leasing Scheme,Accommodation Costs - Leaseholder Payments,780.00,REDACTED PERSONAL DATA,,
Revenue,Adult Services,Housing Services,Homelessness,5105711330,22.06.2022,Private Rented Sector Leasing Scheme,Accommodation Costs - Leaseholder Payments,780.00,REDACTED PERSONAL DATA,,
Revenue,Adult Services,Housing Services,Homelessness,5105711330,22.06.2022,Private Rented Sector Leasing Scheme,Accommodation Costs - Leaseholder Payments,742.26,REDACTED PERSONAL DATA,,
Revenue,Adult Services,Housing Services,Homelessness,5105711333,22.06.2022,Private Rented Sector Leasing Scheme,Accommodation Costs - Leaseholder Payments,769.43,REDACTED PERSONAL DATA,,
Revenue,Adult Services,Housing Services,Homelessness,5105711331,22.06.2022,Private Rented Sector Leasing Scheme,Accommodation Costs - Leaseholder Payments,780.00,REDACTED PERSONAL DATA,,
Revenue,Adult Services,Housing Services,Homelessness,5105711331,22.06.2022,Private Rented Sector Leasing Scheme,Accommodation Costs - Leaseholder Payments,780.00,REDACTED PERSONAL DATA,,
Revenue,Adult Services,Housing Services,Homelessness,5105711343,22.06.2022,Private Rented Sector Leasing Scheme,Accommodation Costs - Leaseholder Payments,749.83,MAHER ROSS LTD,,
Revenue,Adult Services,Housing Services,Homelessness,5105711343,22.06.2022,Private Rented Sector Leasing Scheme,Accommodation Costs - Leaseholder Payments,969.01,MAHER ROSS LTD,,
Revenue,Adult Services,Housing Services,Homelessness,5105711343,22.06.2022,Private Rented Sector Leasing Scheme,Accommodation Costs - Leaseholder Payments,"1,015.08",MAHER ROSS LTD,,
Revenue,Adult Services,Housing Services,Homelessness,5105711343,22.06.2022,Private Rented Sector Leasing Scheme,Accommodation Costs - Leaseholder Payments,880.00,MAHER ROSS LTD,,
Revenue,Adult Services,Housing Services,Homelessness,5105711342,22.06.2022,Private Rented Sector Leasing Scheme,Accommodation Costs - Leaseholder Payments,780.00,REDACTED PERSONAL DATA,,
Revenue,Adult Services,Housing Services,Homelessness,5105711340,22.06.2022,Private Rented Sector Leasing Scheme,Accommodation Costs - Leaseholder Payments,626.30,KANDY COMMERCIAL LTD,,
Revenue,Adult Services,Housing Services,Homelessness,5105711340,22.06.2022,Private Rented Sector Leasing Scheme,Accommodation Costs - Leaseholder Payments,765.48,KANDY COMMERCIAL LTD,,
Revenue,Adult Services,Housing Services,Homelessness,5105711340,22.06.2022,Private Rented Sector Leasing Scheme,Accommodation Costs - Leaseholder Payments,579.89,KANDY COMMERCIAL LTD,,
Revenue,Adult Services,Housing Services,Homelessness,5105711340,22.06.2022,Private Rented Sector Leasing Scheme,Accommodation Costs - Leaseholder Payments,579.89,KANDY COMMERCIAL LTD,,
Revenue,Adult Services,Housing Services,Homelessness,5105711340,22.06.2022,Private Rented Sector Leasing Scheme,Accommodation Costs - Leaseholder Payments,672.66,KANDY COMMERCIAL LTD,,
Revenue,Adult Services,Housing Services,Homelessness,5105711340,22.06.2022,Private Rented Sector Leasing Scheme,Accommodation Costs - Leaseholder Payments,672.66,KANDY COMMERCIAL LTD,,
Revenue,Adult Services,Housing Services,Homelessness,5105711340,22.06.2022,Private Rented Sector Leasing Scheme,Accommodation Costs - Leaseholder Payments,672.66,KANDY COMMERCIAL LTD,,
Revenue,Adult Services,Housing Services,Homelessness,5105711340,22.06.2022,Private Rented Sector Leasing Scheme,Accommodation Costs - Leaseholder Payments,"5,930.16",KANDY COMMERCIAL LTD,,
Revenue,Adult Services,Housing Services,Homelessness,5105711339,22.06.2022,Private Rented Sector Leasing Scheme,Accommodation Costs - Leaseholder Payments,780.00,REDACTED PERSONAL DATA,,
Revenue,Adult Services,Housing Services,Homelessness,5105711339,22.06.2022,Private Rented Sector Leasing Scheme,Accommodation Costs - Leaseholder Payments,799.50,REDACTED PERSONAL DATA,,
Revenue,Adult Services,Housing Services,Homelessness,5105711338,22.06.2022,Private Rented Sector Leasing Scheme,Accommodation Costs - Leaseholder Payments,780.00,REDACTED PERSONAL DATA,,
Revenue,Adult Services,Housing Services,Homelessness,5105711338,22.06.2022,Private Rented Sector Leasing Scheme,Accommodation Costs - Leaseholder Payments,799.50,REDACTED PERSONAL DATA,,
Revenue,Adult Services,Housing Services,Homelessness,5105711341,22.06.2022,Private Rented Sector Leasing Scheme,Accommodation Costs - Leaseholder Payments,977.17,REDACTED PERSONAL DATA,,
Revenue,Adult Services,Housing Services,Homelessness,5105711337,22.06.2022,Private Rented Sector Leasing Scheme,Accommodation Costs - Leaseholder Payments,675.00,PEACOCK HOMES IW LTD,,
Revenue,Adult Services,Housing Services,Homelessness,5105711312,22.06.2022,B&B Properties,Accommodation Costs - Bed & Breakfast,"5,869.50",REDACTED PERSONAL DATA,,
Revenue,Adult Services,Housing Services,Homelessness,5105710461,22.06.2022,B&B Properties,Accommodation Costs - Bed & Breakfast,"17,964.00",SOUTHERN HOUSING GROUP LTD,,
Revenue,Adult Services,Housing Services,Homelessness,5105710626,22.06.2022,B&B Properties,Accommodation Costs - Bed & Breakfast,700.00,REDACTED PERSONAL DATA,,
Revenue,Adult Services,Housing Services,Homelessness,5105711207,22.06.2022,B&B Properties,Accommodation Costs - Bed & Breakfast,"1,933.33",SUNNYCOTT CARAVAN PARK,,
Revenue,Adult Services,Housing Services,Homelessness,5105711209,22.06.2022,B&B Properties,Accommodation Costs - Bed & Breakfast,"1,933.33",SUNNYCOTT CARAVAN PARK,,
Revenue,Adult Services,Housing Services,Homelessness,5105711219,22.06.2022,B&B Properties,Accommodation Costs - Bed & Breakfast,"1,933.33",SUNNYCOTT CARAVAN PARK,,
Revenue,Adult Services,Housing Services,Homelessness,5105711220,22.06.2022,B&B Properties,Accommodation Costs - Bed & Breakfast,"1,933.33",SUNNYCOTT CARAVAN PARK,,
Revenue,Adult Services,Housing Services,Homelessness,5105711222,22.06.2022,B&B Properties,Accommodation Costs - Bed & Breakfast,"1,933.33",SUNNYCOTT CARAVAN PARK,,
Revenue,Adult Services,Housing Services,Homelessness,5105711223,22.06.2022,B&B Properties,Accommodation Costs - Bed & Breakfast,"2,058.33",SUNNYCOTT CARAVAN PARK,,
Revenue,Adult Services,Housing Services,Homelessness,5105711224,22.06.2022,B&B Properties,Accommodation Costs - Bed & Breakfast,"1,933.33",SUNNYCOTT CARAVAN PARK,,
Revenue,Adult Services,Housing Services,Homelessness,5105711225,22.06.2022,B&B Properties,Accommodation Costs - Bed & Breakfast,"1,933.33",SUNNYCOTT CARAVAN PARK,,
Revenue,Adult Services,Housing Services,Homelessness,5105711211,22.06.2022,B&B Properties,Accommodation Costs - Bed & Breakfast,"1,933.33",SUNNYCOTT CARAVAN PARK,,
Revenue,Adult Services,Housing Services,Homelessness,5105711212,22.06.2022,B&B Properties,Accommodation Costs - Bed & Breakfast,"1,933.33",SUNNYCOTT CARAVAN PARK,,
Revenue,Adult Services,Housing Services,Homelessness,5105711213,22.06.2022,B&B Properties,Accommodation Costs - Bed & Breakfast,"1,933.33",SUNNYCOTT CARAVAN PARK,,
Revenue,Adult Services,Housing Services,Homelessness,5105711214,22.06.2022,B&B Properties,Accommodation Costs - Bed & Breakfast,"1,933.33",SUNNYCOTT CARAVAN PARK,,
Revenue,Adult Services,Housing Services,Homelessness,5105711215,22.06.2022,B&B Properties,Accommodation Costs - Bed & Breakfast,"1,933.33",SUNNYCOTT CARAVAN PARK,,
Revenue,Adult Services,Housing Services,Homelessness,5105711218,22.06.2022,B&B Properties,Accommodation Costs - Bed & Breakfast,"1,933.33",SUNNYCOTT CARAVAN PARK,,
Revenue,Adult Services,Housing Services,Homelessness,5105711079,22.06.2022,B&B Properties,Accommodation Costs - Bed & Breakfast,"8,450.00",BERTRAM LODGE,,
Revenue,Adult Services,Housing Services,Homelessness,5105709538,15.06.2022,Rough Sleeping Initiative Grant,Accommodation Costs - Bed & Breakfast,"1,820.00",PARKER HOSPITALITY,,
Revenue,Adult Services,Housing Services,Homelessness,5105711739,29.06.2022,Rough Sleeping Initiative Grant,Accommodation Costs - Bed & Breakfast,840.00,PARKER HOSPITALITY,,
Revenue,Adult Services,Housing Services,Homelessness,5105708850,22.06.2022,Rough Sleeping Initiative Grant,Accommodation Costs - Bed & Breakfast,"2,075.00",MARINA BAY HOTEL / OYO MARINA,,
Revenue,Adult Services,Housing Services,Homelessness,5105710482,22.06.2022,Rough Sleeping Initiative Grant,Accommodation Costs - Bed & Breakfast,80.00,MARINA BAY HOTEL / OYO MARINA,,
Revenue,Adult Services,Housing Services,Homelessness,5105710483,22.06.2022,Rough Sleeping Initiative Grant,Accommodation Costs - Bed & Breakfast,"7,875.00",MARINA BAY HOTEL / OYO MARINA,,
Revenue,Adult Services,Housing Services,Homelessness,5105709298,22.06.2022,Rough Sleeping Initiative Grant,Accommodation Costs - Bed & Breakfast,"7,875.00",MARINA BAY HOTEL / OYO MARINA,,
Revenue,Adult Services,Housing Services,Homelessness,5105711041,22.06.2022,Rough Sleeping Initiative Grant,Accommodation Costs - Bed & Breakfast,"7,875.00",MARINA BAY HOTEL / OYO MARINA,,
Revenue,Adult Services,Housing Services,Homelessness,5105711904,29.06.2022,Rough Sleeping Initiative Grant,Accommodation Costs - Bed & Breakfast,"7,875.00",MARINA BAY HOTEL / OYO MARINA,,
Revenue,Adult Services,Housing Services,Homelessness,5105711304,22.06.2022,Rough Sleeping Initiative Grant,Accommodation Costs - Bed & Breakfast,250.00,MARINA BAY HOTEL / OYO MARINA,,
Revenue,Adult Services,Housing Services,Homelessness,5105711302,24.06.2022,Rough Sleeping Initiative Grant,Accommodation Costs - Bed & Breakfast,750.00,MARINA BAY HOTEL / OYO MARINA,,
Revenue,Adult Services,Housing Services,Homelessness,5105711305,22.06.2022,Rough Sleeping Initiative Grant,Accommodation Costs - Bed & Breakfast,"1,088.00",MARINA BAY HOTEL / OYO MARINA,,
Revenue,Adult Services,Housing Services,Homelessness,5105709084,08.06.2022,Housing Association Leasing Scheme,Accommodation Costs - Leaseholder Payments,"8,768.93",VECTIS HOUSING ASSOCIATION LTD,,
Revenue,Adult Services,Housing Services,Homelessness,5105709086,08.06.2022,Housing Association Leasing Scheme,Accommodation Costs - Leaseholder Payments,"1,513.05",VECTIS HOUSING ASSOCIATION LTD,,
Revenue,Adult Services,Housing Services,Homelessness,5105712004,29.06.2022,Housing Association Leasing Scheme,Accommodation Costs - Leaseholder Payments,"8,486.06",VECTIS HOUSING ASSOCIATION LTD,,
Revenue,Adult Services,Housing Services,Homelessness,5105709074,08.06.2022,Find a Home Scheme,Payment to Private Contractors,250.00,NEWSQUEST MEDIA GROUP LTD,,
Revenue,Adult Services,Housing Services,Homelessness,5105710989,22.06.2022,Howard House,Payment to Private Contractors,64.00,URBAN ENVIRONMENTS LTD,,
Revenue,Adult Services,Housing Services,Homelessness,5105711138,22.06.2022,Howard House,Payment to Private Contractors,24.00,URBAN ENVIRONMENTS LTD,,
Revenue,Adult Services,Housing Services,Homelessness,5105710519,17.06.2022,Howard House,Payment to Private Contractors,48.00,URBAN ENVIRONMENTS LTD,,
Revenue,Adult Services,Housing Services,Homelessness,5105707233,15.06.2022,Howard House,Payment to Private Contractors,55.50,URBAN ENVIRONMENTS LTD,,
Revenue,Adult Services,Housing Services,Homelessness,5105707234,15.06.2022,Howard House,Payment to Private Contractors,40.00,URBAN ENVIRONMENTS LTD,,
Revenue,Adult Services,Housing Services,Homelessness,5105707325,15.06.2022,Howard House,Payment to Private Contractors,48.00,URBAN ENVIRONMENTS LTD,,
Revenue,Adult Services,Housing Services,Homelessness,5105711139,22.06.2022,Howard House,Payment to Private Contractors,40.00,URBAN ENVIRONMENTS LTD,,
Revenue,Adult Services,Housing Services,Supporting People,5105710514,15.06.2022,Supporting People Homelessness,Payment to Private Contractors,"6,923.04",IW CITIZENS ADVICE BUREAU,,
Revenue,Adult Services,Housing Services,Supporting People,5105710395,10.06.2022,Supporting People Homelessness,Payment to Private Contractors,"6,538.24",WIGHT DASH,,
Revenue,Adult Services,Housing Services,Supporting People,5105711859,29.06.2022,Supporting People Homelessness,Payment to Private Contractors,"28,402.20",SALVATION ARMY TRUSTEE CO,,
Revenue,Adult Services,Housing Services,Supporting People,5105711860,29.06.2022,Supporting People Homelessness,Payment to Private Contractors,"19,140.64",SALVATION ARMY TRUSTEE CO,,
Revenue,Adult Services,Housing Services,Supporting People,5105711864,29.06.2022,Supporting People Homelessness,Payment to Private Contractors,"12,456.00",SOUTHERN HOUSING GROUP - HOUSING BENEFIT,,
Revenue,Adult Services,Housing Services,Supporting People,5105711865,29.06.2022,Supporting People Homelessness,Payment to Private Contractors,"5,536.00",SOUTHERN HOUSING GROUP - HOUSING BENEFIT,,
Revenue,Adult Services,Housing Services,Supporting People,5105711855,29.06.2022,Supporting People Homelessness,Payment to Private Contractors,"2,233.76",TWO SAINTS LIMITED,,
Revenue,Adult Services,Housing Services,Supporting People,5105711856,29.06.2022,Supporting People Homelessness,Payment to Private Contractors,"8,376.92",TWO SAINTS LIMITED,,
Revenue,Adult Services,Housing Services,Supporting People,5105711857,29.06.2022,Supporting People Homelessness,Payment to Private Contractors,"5,584.40",TWO SAINTS LIMITED,,
Revenue,Adult Services,Housing Services,Supporting People,5105711854,29.06.2022,Supporting People Homelessness,Payment to Private Contractors,"18,325.80",SOVEREIGN HOUSING ASSOCIATION,,
Revenue,Adult Services,Housing Services,Supporting People,5105711853,29.06.2022,Supporting People Homelessness,Payment to Private Contractors,"6,923.04",IW LAW CENTRE LTD,,
Revenue,Adult Services,Housing Services,Supporting People,5105711861,29.06.2022,Supporting People Homelessness,Payment to Private Contractors,"4,848.00",SOUTHERN HOUSING GROUP - HOUSING BENEFIT,,
Revenue,Adult Services,Housing Services,Supporting People,5105711862,29.06.2022,Supporting People Homelessness,Payment to Private Contractors,"4,040.00",SOUTHERN HOUSING GROUP - HOUSING BENEFIT,,
Revenue,Adult Services,Housing Services,Supporting People,5105711858,29.06.2022,Supporting People Homelessness,Payment to Private Contractors,"2,330.54",SALVATION ARMY TRUSTEE CO,,
Revenue,Adult Services,Housing Services,Supporting People,5105711863,29.06.2022,Supporting People Homelessness,Payment to Private Contractors,"1,764.00",SOUTHERN HOUSING GROUP - HOUSING BENEFIT,,
Revenue,Adult Services,Housing Services,Supporting People,5105711852,29.06.2022,Supporting People Teenage Pregnancy,Payment to Private Contractors,"2,035.68",YMCA FAIRTHORNE GROUP,,
Revenue,Adult Services,Adult Social Care,Commissioning & Service Delivery,5105711006,17.06.2022,Director of Adult Social Services,Stationery,13.49,BETA PAK LTD,,
Revenue,Adult Services,Adult Social Care,Commissioning & Service Delivery,5105711826,24.06.2022,Director of Adult Social Services,Stationery,13.49,BETA PAK LTD,,
Revenue,Adult Services,Adult Social Care,Commissioning & Service Delivery,5105711719,24.06.2022,Director of Adult Social Services,Stationery,26.98,BETA PAK LTD,,
Revenue,Adult Services,Adult Social Care,Commissioning & Service Delivery,5105709479,17.06.2022,Director of Adult Social Services,Agency staff,"3,686.34",MATRIX SCM LTD,,
Revenue,Adult Services,Adult Social Care,Commissioning & Service Delivery,5105711071,22.06.2022,Advocacy Services (IMCA & IMHA),Payment to Private Contractors,"49,977.50",SOUTH WEST ADVOCACY NETWORK,,
Revenue,Adult Services,Adult Social Care,Commissioning & Service Delivery,5105709825,10.06.2022,Pre-Paid Cards,Payment to Private Contractors,"2,192.14",PREPAID FINANCIAL SERVICES LTD,,
Revenue,Adult Services,Adult Social Care,Commissioning & Service Delivery,5105711378,22.06.2022,Pre-Paid Cards,Payment to Private Contractors,"2,146.11",PREPAID FINANCIAL SERVICES LTD,,
Revenue,Adult Services,Adult Social Care,Commissioning & Service Delivery,5105709826,10.06.2022,Pre-Paid Cards,Payment to Private Contractors,"1,809.01",PREPAID FINANCIAL SERVICES LTD,,
Revenue,Adult Services,Adult Social Care,Commissioning & Service Delivery,5105709825,10.06.2022,Pre-Paid Cards,Payment to Private Contractors,20.40,PREPAID FINANCIAL SERVICES LTD,,
Revenue,Adult Services,Adult Social Care,Commissioning & Service Delivery,5105709826,10.06.2022,Pre-Paid Cards,Payment to Private Contractors,23.50,PREPAID FINANCIAL SERVICES LTD,,
Revenue,Adult Services,Adult Social Care,Commissioning & Service Delivery,5105711378,22.06.2022,Pre-Paid Cards,Payment to Private Contractors,22.50,PREPAID FINANCIAL SERVICES LTD,,
Revenue,Adult Services,Adult Social Care,Social Care Activities,5105710709,15.06.2022,BCF Occupational Therapy Service,Payment to Private Contractors,"4,652.17",NOTTINGHAM REHAB LTD,,
Revenue,Adult Services,Adult Social Care,Social Care Activities,5105710708,15.06.2022,BCF Occupational Therapy Service,Payment to Private Contractors,"41,485.75",NOTTINGHAM REHAB LTD,,
Revenue,Adult Services,Adult Social Care,Assistive Equipment & Technology,5105709492,15.06.2022,BCF Community Equipment Store,Grounds Maintenance,65.00,GROUNDSELL CONTRACTING LTD,,
Revenue,Adult Services,Adult Social Care,Assistive Equipment & Technology,5105710656,15.06.2022,BCF Community Equipment Store,Property Services - Day to day Maintenance,174.25,WIGHT FIRE CO LTD,,
Revenue,Adult Services,Adult Social Care,Assistive Equipment & Technology,5105710625,15.06.2022,BCF Community Equipment Store,Rent of Buildings and Rooms,"10,108.75",MJH DEVELOPMENTS LTD,,
Revenue,Adult Services,Adult Social Care,Assistive Equipment & Technology,5105710069,24.06.2022,BCF Community Equipment Store,Operational Equipment,16.99,PATTERSON MEDICAL LTD,,
Revenue,Adult Services,Adult Social Care,Assistive Equipment & Technology,5105710753,15.06.2022,BCF Community Equipment Store,Operational Equipment,84.00,R82 UK LTD,,
Revenue,Adult Services,Adult Social Care,Assistive Equipment & Technology,5105711221,29.06.2022,BCF Community Equipment Store,Operational Equipment,-125.00,JAMES LECKEY DESIGN LTD,,
Revenue,Adult Services,Adult Social Care,Assistive Equipment & Technology,5105710657,15.06.2022,BCF Community Equipment Store,Operational Equipment,130.37,R82 UK LTD,,
Revenue,Adult Services,Adult Social Care,Assistive Equipment & Technology,5105710683,15.06.2022,BCF Community Equipment Store,Operational Equipment,295.00,ISLAND MOBILITY,,
Revenue,Adult Services,Adult Social Care,Assistive Equipment & Technology,5105712301,29.06.2022,BCF Community Equipment Store,Vehicle Maintenance Costs,117.00,DH PRICE MOTORS,,
Revenue,Adult Services,Adult Social Care,Assistive Equipment & Technology,5105712301,29.06.2022,BCF Community Equipment Store,Vehicle Maintenance Costs,40.00,DH PRICE MOTORS,,
Revenue,Adult Services,Adult Social Care,Assistive Equipment & Technology,5105710151,08.06.2022,BCF Community Equipment Store,Operational Equipment,"1,007.50",THEO DAVIES & SONS,,
Revenue,Adult Services,Adult Social Care,Assistive Equipment & Technology,5105705865,01.06.2022,BCF Community Equipment Store,Operational Equipment,49.68,IDML,,
Revenue,Adult Services,Adult Social Care,Assistive Equipment & Technology,5105710117,08.06.2022,BCF Community Equipment Store,Consumable Cleaning Materials,418.19,N-VIRO,,
Revenue,Adult Services,Adult Social Care,Assistive Equipment & Technology,5105712382,29.06.2022,BCF Community Equipment Store,Operational Equipment,316.00,LISCLARE LIMITED,,
Revenue,Adult Services,Adult Social Care,Assistive Equipment & Technology,5105710020,24.06.2022,BCF Community Equipment Store,Cleaning Contracts,2.70,PHS GROUP PLC,,
Revenue,Adult Services,Adult Social Care,Assistive Equipment & Technology,5105707092,01.06.2022,BCF Community Equipment Store,Cleaning Contracts,2.70,PHS GROUP PLC,,
Revenue,Adult Services,Adult Social Care,Assistive Equipment & Technology,5105710594,15.06.2022,BCF Community Equipment Store,Operational Equipment,460.00,W HURST & SON (IW) LTD,,
Revenue,Adult Services,Adult Social Care,Assistive Equipment & Technology,5105710594,15.06.2022,BCF Community Equipment Store,Operational Equipment,228.40,W HURST & SON (IW) LTD,,
Revenue,Adult Services,Adult Social Care,Assistive Equipment & Technology,5105710594,15.06.2022,BCF Community Equipment Store,Operational Equipment,266.40,W HURST & SON (IW) LTD,,
Revenue,Adult Services,Adult Social Care,Assistive Equipment & Technology,5105710594,15.06.2022,BCF Community Equipment Store,Operational Equipment,375.00,W HURST & SON (IW) LTD,,
Revenue,Adult Services,Adult Social Care,Assistive Equipment & Technology,5105710594,15.06.2022,BCF Community Equipment Store,Operational Equipment,560.50,W HURST & SON (IW) LTD,,
Revenue,Adult Services,Adult Social Care,Assistive Equipment & Technology,5105710594,15.06.2022,BCF Community Equipment Store,Operational Equipment,10.00,W HURST & SON (IW) LTD,,
Revenue,Adult Services,Adult Social Care,Assistive Equipment & Technology,5105710601,15.06.2022,BCF Community Equipment Store,Operational Equipment,3.38,W HURST & SON (IW) LTD,,
Revenue,Adult Services,Adult Social Care,Assistive Equipment & Technology,5105710584,15.06.2022,BCF Community Equipment Store,Operational Equipment,-5.00,W HURST & SON (IW) LTD,,
Revenue,Adult Services,Adult Social Care,Assistive Equipment & Technology,5105710587,22.06.2022,BCF Community Equipment Store,Vehicle Maintenance Costs,10.00,DASHWITNESS LTD,,
Revenue,Adult Services,Adult Social Care,Assistive Equipment & Technology,5105710587,22.06.2022,BCF Community Equipment Store,Vehicle Maintenance Costs,10.00,DASHWITNESS LTD,,
Revenue,Adult Services,Adult Social Care,Assistive Equipment & Technology,5105710587,22.06.2022,BCF Community Equipment Store,Vehicle Maintenance Costs,10.00,DASHWITNESS LTD,,
Revenue,Adult Services,Adult Social Care,Assistive Equipment & Technology,5105710587,22.06.2022,BCF Community Equipment Store,Vehicle Maintenance Costs,10.00,DASHWITNESS LTD,,
Revenue,Adult Services,Adult Social Care,Assistive Equipment & Technology,5105710587,22.06.2022,BCF Community Equipment Store,Vehicle Maintenance Costs,10.00,DASHWITNESS LTD,,
Revenue,Adult Services,Adult Social Care,Assistive Equipment & Technology,5105710587,22.06.2022,BCF Community Equipment Store,Vehicle Maintenance Costs,10.00,DASHWITNESS LTD,,
Revenue,Adult Services,Adult Social Care,Assistive Equipment & Technology,5105710439,29.06.2022,BCF Community Equipment Store,Operational Equipment,"1,678.00",JAMES LECKEY DESIGN LTD,,
Revenue,Adult Services,Adult Social Care,Assistive Equipment & Technology,5105711103,17.06.2022,BCF Community Equipment Store,Operational Equipment,670.96,NATIONAL ASSOCIATION EQUIPMENT PROVIDERS,,
Revenue,Adult Services,Adult Social Care,Assistive Equipment & Technology,5105709335,01.06.2022,BCF Community Equipment Store,Operational Equipment,"5,435.00",ACCORA  LIMITED,,
Revenue,Adult Services,Adult Social Care,Assistive Equipment & Technology,5105711370,22.06.2022,BCF Community Equipment Store,Operational Equipment,530.00,SMIRTHWAITE LTD,,
Revenue,Adult Services,Adult Social Care,Assistive Equipment & Technology,5105709912,08.06.2022,BCF Community Equipment Store,Operational Equipment,"3,918.42",DRIVE MEDICAL LTD,,
Revenue,Adult Services,Adult Social Care,Assistive Equipment & Technology,5105709912,08.06.2022,BCF Community Equipment Store,Operational Equipment,"4,718.00",DRIVE MEDICAL LTD,,
Revenue,Adult Services,Adult Social Care,Assistive Equipment & Technology,5105709912,08.06.2022,BCF Community Equipment Store,Operational Equipment,928.10,DRIVE MEDICAL LTD,,
Revenue,Adult Services,Adult Social Care,Assistive Equipment & Technology,5105710470,15.06.2022,BCF Community Equipment Store,Operational Equipment,"3,563.40",QUEST 88 LTD,,
Revenue,Adult Services,Adult Social Care,Assistive Equipment & Technology,5105710603,15.06.2022,BCF Community Equipment Store,Operational Equipment,920.00,W HURST & SON (IW) LTD,,
Revenue,Adult Services,Adult Social Care,Assistive Equipment & Technology,5105710603,15.06.2022,BCF Community Equipment Store,Operational Equipment,16.48,W HURST & SON (IW) LTD,,
Revenue,Adult Services,Adult Social Care,Assistive Equipment & Technology,5105710775,17.06.2022,BCF Community Equipment Store,Operational Equipment,90.10,ITS TOOLS IOW LTD,,
Revenue,Adult Services,Adult Social Care,Assistive Equipment & Technology,5105711802,24.06.2022,BCF Community Equipment Store,Operational Equipment,203.20,CPC,,
Revenue,Adult Services,Adult Social Care,Assistive Equipment & Technology,5105710989,22.06.2022,BCF Community Equipment Store,Minor Works,64.00,URBAN ENVIRONMENTS LTD,,
Revenue,Adult Services,Adult Social Care,Assistive Equipment & Technology,5105710519,17.06.2022,BCF Community Equipment Store,Minor Works,64.00,URBAN ENVIRONMENTS LTD,,
Revenue,Adult Services,Adult Social Care,Assistive Equipment & Technology,5105707095,15.06.2022,BCF Community Equipment Store,Minor Works,24.00,URBAN ENVIRONMENTS LTD,,
Revenue,Adult Services,Adult Social Care,Assistive Equipment & Technology,5105707234,15.06.2022,BCF Community Equipment Store,Minor Works,72.00,URBAN ENVIRONMENTS LTD,,
Revenue,Adult Services,Adult Social Care,Assistive Equipment & Technology,5105711913,29.06.2022,BCF Community Equipment Store,Operational Equipment,306.32,LAKE LAUNDRY SERVICES LIMITED,,
Revenue,Adult Services,Adult Social Care,Assistive Equipment & Technology,5105712009,29.06.2022,BCF Community Equipment Store,Operational Equipment,"2,451.20","LANGHAM, GORDON ELLIS & CO",,
Revenue,Adult Services,Adult Social Care,Assistive Equipment & Technology,5105711692,24.06.2022,BCF Community Equipment Store,Operational Equipment,"3,129.95",PRISM MEDICAL UK,,
Revenue,Adult Services,Adult Social Care,Assistive Equipment & Technology,5105710367,10.06.2022,BCF Community Equipment Store,Operational Equipment,174.96,IDML,,
Revenue,Adult Services,Adult Social Care,Assistive Equipment & Technology,5105710366,10.06.2022,BCF Community Equipment Store,Operational Equipment,34.30,IDML,,
Revenue,Adult Services,Adult Social Care,Assistive Equipment & Technology,5105711710,24.06.2022,BCF Community Equipment Store,Operational Equipment,62.39,IDML,,
Revenue,Adult Services,Adult Social Care,Assistive Equipment & Technology,5105711708,24.06.2022,BCF Community Equipment Store,Operational Equipment,225.27,IDML,,
Revenue,Adult Services,Adult Social Care,Assistive Equipment & Technology,5105711706,24.06.2022,BCF Community Equipment Store,Operational Equipment,79.16,IDML,,
Revenue,Adult Services,Adult Social Care,Assistive Equipment & Technology,5105711458,24.06.2022,BCF Community Equipment Store,Operational Equipment,210.95,B.E.S REHAB LTD,,
Revenue,Adult Services,Adult Social Care,Commissioning & Service Delivery,5105711717,29.06.2022,Commissioning Manager for Adult Social Care,Payments to Hants & IW Partnership CCG,"2,500.00","NHS HAMPSHIRE, SOUTHAMPTON & IOW",,
Revenue,Adult Services,Adult Social Care,Learning Disab Supp (to be reallocated),5105711104,17.06.2022,Plean Dene,Catering Purchases,6.79,BOOKER CASH & CARRY LTD,,
Revenue,Adult Services,Adult Social Care,Learning Disab Supp (to be reallocated),5105711196,22.06.2022,Plean Dene,Catering Purchases,104.01,BOOKER CASH & CARRY LTD,,
Revenue,Adult Services,Adult Social Care,Learning Disab Supp (to be reallocated),5105711197,22.06.2022,Plean Dene,Catering Purchases,12.94,BOOKER CASH & CARRY LTD,,
Revenue,Adult Services,Adult Social Care,Learning Disab Supp (to be reallocated),5105709866,08.06.2022,Plean Dene,Catering Purchases,10.63,BOOKER CASH & CARRY LTD,,
Revenue,Adult Services,Adult Social Care,Learning Disab Supp (to be reallocated),5105710093,08.06.2022,Plean Dene,Catering Purchases,18.38,BOOKER CASH & CARRY LTD,,
Revenue,Adult Services,Adult Social Care,Learning Disab Supp (to be reallocated),5105710094,08.06.2022,Plean Dene,Catering Purchases,113.42,BOOKER CASH & CARRY LTD,,
Revenue,Adult Services,Adult Social Care,Learning Disab Supp (to be reallocated),5105710390,10.06.2022,Plean Dene,Catering Purchases,6.88,BOOKER CASH & CARRY LTD,,
Revenue,Adult Services,Adult Social Care,Learning Disab Supp (to be reallocated),5105710589,15.06.2022,Plean Dene,Catering Purchases,151.99,BOOKER CASH & CARRY LTD,,
Revenue,Adult Services,Adult Social Care,Learning Disab Supp (to be reallocated),5105711782,29.06.2022,Plean Dene,Catering Purchases,26.05,BOOKER CASH & CARRY LTD,,
Revenue,Adult Services,Adult Social Care,Learning Disab Supp (to be reallocated),5105711836,24.06.2022,Plean Dene,Catering Purchases,7.49,BOOKER CASH & CARRY LTD,,
Revenue,Adult Services,Adult Social Care,Learning Disab Supp (to be reallocated),5105711939,29.06.2022,Plean Dene,Catering Purchases,136.53,BOOKER CASH & CARRY LTD,,
Revenue,Adult Services,Adult Social Care,Learning Disab Supp (to be reallocated),5105712061,29.06.2022,Plean Dene,Catering Purchases,4.49,BOOKER CASH & CARRY LTD,,
Revenue,Adult Services,Adult Social Care,Learning Disab Supp (to be reallocated),5105710589,15.06.2022,Plean Dene,Catering Purchases,3.49,BOOKER CASH & CARRY LTD,,
Revenue,Adult Services,Adult Social Care,Learning Disab Supp (to be reallocated),5105711197,22.06.2022,Plean Dene,Catering Purchases,5.60,BOOKER CASH & CARRY LTD,,
Revenue,Adult Services,Adult Social Care,Learning Disab Supp (to be reallocated),5105711196,22.06.2022,Plean Dene,Catering Purchases,15.08,BOOKER CASH & CARRY LTD,,
Revenue,Adult Services,Adult Social Care,Learning Disab Supp (to be reallocated),5105711841,29.06.2022,Plean Dene,Catering Purchases,39.00,CHAPEL NURSERIES,,
Revenue,Adult Services,Adult Social Care,Learning Disab Supp (to be reallocated),5105711842,29.06.2022,Plean Dene,Catering Purchases,36.00,CHAPEL NURSERIES,,
Revenue,Adult Services,Adult Social Care,Learning Disab Supp (to be reallocated),5105711843,29.06.2022,Plean Dene,Catering Purchases,40.10,CHAPEL NURSERIES,,
Revenue,Adult Services,Adult Social Care,Learning Disab Supp (to be reallocated),5105711109,17.06.2022,Plean Dene,Catering Purchases,45.60,CHAPEL NURSERIES,,
Revenue,Adult Services,Adult Social Care,Learning Disab Supp (to be reallocated),5105711111,17.06.2022,Plean Dene,Catering Purchases,35.40,CHAPEL NURSERIES,,
Revenue,Adult Services,Adult Social Care,Learning Disab Supp (to be reallocated),5105710382,10.06.2022,Plean Dene,Consumable Cleaning Materials,114.78,LAKE CLEANING & CATERING SUPPLIES,,
Revenue,Adult Services,Adult Social Care,Learning Disab Supp (to be reallocated),5105710701,15.06.2022,Plean Dene,Consumable Cleaning Materials,26.44,LAKE CLEANING & CATERING SUPPLIES,,
Revenue,Adult Services,Adult Social Care,Learning Disab Supp (to be reallocated),5105711029,17.06.2022,Plean Dene,Consumable Cleaning Materials,16.73,LAKE CLEANING & CATERING SUPPLIES,,
Revenue,Adult Services,Adult Social Care,Learning Disab Supp (to be reallocated),5105711984,29.06.2022,Plean Dene,Consumable Cleaning Materials,7.50,LAKE CLEANING & CATERING SUPPLIES,,
Revenue,Adult Services,Adult Social Care,Learning Disab Supp (to be reallocated),5105711988,29.06.2022,Plean Dene,Consumable Cleaning Materials,54.47,LAKE CLEANING & CATERING SUPPLIES,,
Revenue,Adult Services,Adult Social Care,Learning Disab Supp (to be reallocated),5105710024,10.06.2022,Plean Dene,Catering Purchases,57.07,MEDINA FOODSERVICE T/A MEDINA QUAY MEATS,,
Revenue,Adult Services,Adult Social Care,Learning Disab Supp (to be reallocated),5105710163,10.06.2022,Plean Dene,Catering Purchases,62.99,MEDINA FOODSERVICE T/A MEDINA QUAY MEATS,,
Revenue,Adult Services,Adult Social Care,Learning Disab Supp (to be reallocated),5105710761,15.06.2022,Plean Dene,Catering Purchases,56.53,MEDINA FOODSERVICE T/A MEDINA QUAY MEATS,,
Revenue,Adult Services,Adult Social Care,Learning Disab Supp (to be reallocated),5105710780,17.06.2022,Plean Dene,Catering Purchases,171.25,MEDINA FOODSERVICE T/A MEDINA QUAY MEATS,,
Revenue,Adult Services,Adult Social Care,Learning Disab Supp (to be reallocated),5105712058,29.06.2022,Plean Dene,Catering Purchases,70.18,MEDINA FOODSERVICE T/A MEDINA QUAY MEATS,,
Revenue,Adult Services,Adult Social Care,Learning Disab Supp (to be reallocated),5105712388,29.06.2022,Plean Dene,Catering Purchases,92.46,MEDINA FOODSERVICE T/A MEDINA QUAY MEATS,,
Revenue,Adult Services,Adult Social Care,Learning Disab Supp (to be reallocated),5105711715,24.06.2022,Plean Dene,Catering Purchases,86.88,MEDINA FOODSERVICE T/A MEDINA QUAY MEATS,,
Revenue,Adult Services,Adult Social Care,Learning Disab Supp (to be reallocated),5105711684,24.06.2022,Plean Dene,Catering Purchases,77.64,MEDINA FOODSERVICE T/A MEDINA QUAY MEATS,,
Revenue,Adult Services,Adult Social Care,Learning Disab Supp (to be reallocated),5105711684,24.06.2022,Plean Dene,Catering Purchases,3.16,MEDINA FOODSERVICE T/A MEDINA QUAY MEATS,,
Revenue,Adult Services,Adult Social Care,Learning Disab Supp (to be reallocated),5105711715,24.06.2022,Plean Dene,Catering Purchases,7.07,MEDINA FOODSERVICE T/A MEDINA QUAY MEATS,,
Revenue,Adult Services,Adult Social Care,Learning Disab Supp (to be reallocated),5105712388,29.06.2022,Plean Dene,Catering Purchases,19.58,MEDINA FOODSERVICE T/A MEDINA QUAY MEATS,,
Revenue,Adult Services,Adult Social Care,Learning Disab Supp (to be reallocated),5105710780,17.06.2022,Plean Dene,Catering Purchases,7.98,MEDINA FOODSERVICE T/A MEDINA QUAY MEATS,,
Revenue,Adult Services,Adult Social Care,Learning Disab Supp (to be reallocated),5105712058,29.06.2022,Plean Dene,Catering Purchases,19.58,MEDINA FOODSERVICE T/A MEDINA QUAY MEATS,,
Revenue,Adult Services,Adult Social Care,Learning Disab Supp (to be reallocated),5105710024,10.06.2022,Plean Dene,Catering Purchases,11.14,MEDINA FOODSERVICE T/A MEDINA QUAY MEATS,,
Revenue,Adult Services,Adult Social Care,Learning Disab Supp (to be reallocated),5105710622,17.06.2022,Plean Dene,Operational Equipment,162.17,BETA PAK LTD,,
Revenue,Adult Services,Adult Social Care,Learning Disab Supp (to be reallocated),5105710640,15.06.2022,Plean Dene,Operational Equipment,180.17,BETA PAK LTD,,
Revenue,Adult Services,Adult Social Care,Learning Disab Supp (to be reallocated),5105711017,17.06.2022,Plean Dene,Operational Equipment,18.00,BETA PAK LTD,,
Revenue,Adult Services,Adult Social Care,Learning Disab Supp (to be reallocated),5105711191,29.06.2022,Plean Dene,Operational Equipment,-180.17,BETA PAK LTD,,
Revenue,Adult Services,Adult Social Care,Learning Disab Supp (to be reallocated),5105710068,08.06.2022,Plean Dene,Operational Equipment,37.47,BETA PAK LTD,,
Revenue,Adult Services,Adult Social Care,Learning Disab Supp (to be reallocated),5105711383,22.06.2022,Plean Dene,Agency staff,317.48,NEWCROSS HEALTHCARE SOLUTIONS LTD,,
Revenue,Adult Services,Adult Social Care,Learning Disab Supp (to be reallocated),5105712033,29.06.2022,Plean Dene,Agency staff,297.74,NEWCROSS HEALTHCARE SOLUTIONS LTD,,
Revenue,Adult Services,Adult Social Care,Learning Disab Supp (to be reallocated),5105709257,01.06.2022,Plean Dene,Minor Works,338.97,CATER WIGHT,,
Revenue,Adult Services,Adult Social Care,Learning Disab Supp (to be reallocated),5105709323,10.06.2022,Plean Dene,Minor Works,"1,094.05",ARJO UK LTD,,
Revenue,Adult Services,Adult Social Care,Learning Disab Supp (to be reallocated),5105707092,01.06.2022,Plean Dene,Cleaning Contracts,134.14,PHS GROUP PLC,,
Revenue,Adult Services,Adult Social Care,Learning Disab Supp (to be reallocated),5105710020,24.06.2022,Plean Dene,Cleaning Contracts,134.14,PHS GROUP PLC,,
Revenue,Adult Services,Adult Social Care,Learning Disab Supp (to be reallocated),5105710020,24.06.2022,Saxonbury,Cleaning Contracts,86.36,PHS GROUP PLC,,
Revenue,Adult Services,Adult Social Care,Learning Disab Supp (to be reallocated),5105707092,01.06.2022,Saxonbury,Cleaning Contracts,86.36,PHS GROUP PLC,,
Revenue,Adult Services,Adult Social Care,Learning Disab Supp (to be reallocated),5105710388,10.06.2022,Saxonbury,Minor Works,90.00,CHANT LOCK & SECURITY SERVICE,,
Revenue,Adult Services,Adult Social Care,Learning Disab Supp (to be reallocated),5105710685,15.06.2022,Saxonbury,Agency staff,358.83,NEWCROSS HEALTHCARE SOLUTIONS LTD,,
Revenue,Adult Services,Adult Social Care,Learning Disab Supp (to be reallocated),5105711386,22.06.2022,Saxonbury,Agency staff,"1,093.64",NEWCROSS HEALTHCARE SOLUTIONS LTD,,
Revenue,Adult Services,Adult Social Care,Learning Disab Supp (to be reallocated),5105712034,29.06.2022,Saxonbury,Agency staff,809.17,NEWCROSS HEALTHCARE SOLUTIONS LTD,,
Revenue,Adult Services,Adult Social Care,Learning Disab Supp (to be reallocated),5105711016,17.06.2022,Saxonbury,Operational Equipment,353.58,BETA PAK LTD,,
Revenue,Adult Services,Adult Social Care,Learning Disab Supp (to be reallocated),5105711840,29.06.2022,Saxonbury,Catering Purchases,22.80,CHAPEL NURSERIES,,
Revenue,Adult Services,Adult Social Care,Learning Disab Supp (to be reallocated),5105712146,29.06.2022,Saxonbury,Rent of Buildings and Rooms,"1,264.91",SOUTHERN HOUSING GROUP - MISCELLANEOUS RENT,,
Revenue,Adult Services,Adult Social Care,Commissioning & Service Delivery,5105712055,29.06.2022,Group Manager Leaning Disability Homes,Stationery,29.10,BETA PAK LTD,,
Revenue,Adult Services,Adult Social Care,Commissioning & Service Delivery,5105712055,29.06.2022,Group Manager Leaning Disability Homes,Stationery,1.77,BETA PAK LTD,,
Revenue,Adult Services,Adult Social Care,Commissioning & Service Delivery,5105712056,29.06.2022,Group Manager Leaning Disability Homes,Stationery,16.80,BETA PAK LTD,,
Revenue,Adult Services,Adult Social Care,Commissioning & Service Delivery,5105709279,10.06.2022,Group Manager Leaning Disability Homes,Publications,64.94,AGORA BUSINESS PUBLICATIONS LLP,,
Revenue,Adult Services,Adult Social Care,Commissioning & Service Delivery,5105711718,24.06.2022,Group Manager Leaning Disability Homes,Stationery,13.49,BETA PAK LTD,,
Revenue,Adult Services,Adult Social Care,Commissioning & Service Delivery,5105711718,24.06.2022,Group Manager Leaning Disability Homes,Stationery,3.18,BETA PAK LTD,,
Revenue,Adult Services,Adult Social Care,Commissioning & Service Delivery,5105712054,29.06.2022,Group Manager Leaning Disability Homes,Stationery,5.59,BETA PAK LTD,,
Revenue,Adult Services,Adult Social Care,Commissioning & Service Delivery,5105711283,22.06.2022,Group Manager Leaning Disability Homes,Stationery,21.23,BETA PAK LTD,,
Revenue,Adult Services,Adult Social Care,Commissioning & Service Delivery,5105710618,15.06.2022,Group Manager Leaning Disability Homes,Stationery,17.28,BETA PAK LTD,,
Revenue,Adult Services,Adult Social Care,Commissioning & Service Delivery,5105710618,15.06.2022,Group Manager Leaning Disability Homes,Stationery,6.63,BETA PAK LTD,,
Revenue,Adult Services,Adult Social Care,Commissioning & Service Delivery,5105711401,22.06.2022,Group Manager Leaning Disability Homes,Stationery,25.18,BETA PAK LTD,,
Revenue,Adult Services,Adult Social Care,Commissioning & Service Delivery,5105710618,15.06.2022,Group Manager Leaning Disability Homes,Stationery,1.34,BETA PAK LTD,,
Revenue,Adult Services,Adult Social Care,Commissioning & Service Delivery,5105711036,17.06.2022,Group Manager Leaning Disability Homes,Stationery,1.82,BETA PAK LTD,,
Revenue,Adult Services,Adult Social Care,Commissioning & Service Delivery,5105711112,17.06.2022,Group Manager Leaning Disability Homes,Stationery,2.55,BETA PAK LTD,,
Revenue,Adult Services,Adult Social Care,Commissioning & Service Delivery,5105710618,15.06.2022,Group Manager Leaning Disability Homes,Stationery,0.61,BETA PAK LTD,,
Revenue,Adult Services,Adult Social Care,Commissioning & Service Delivery,5105710618,15.06.2022,Group Manager Leaning Disability Homes,Stationery,4.31,BETA PAK LTD,,
Revenue,Adult Services,Adult Social Care,Commissioning & Service Delivery,5105710618,15.06.2022,Group Manager Leaning Disability Homes,Stationery,13.14,BETA PAK LTD,,
Revenue,Adult Services,Adult Social Care,Commissioning & Service Delivery,5105710624,15.06.2022,Group Manager Leaning Disability Homes,Stationery,37.78,BETA PAK LTD,,
Revenue,Adult Services,Adult Social Care,Commissioning & Service Delivery,5105711826,24.06.2022,PA Hub,Stationery,8.92,BETA PAK LTD,,
Revenue,Adult Services,Adult Social Care,Commissioning & Service Delivery,5105711445,24.06.2022,PA Hub,Hire of facilities,95.00,THE QUAY ARTS TRADING COMPANY LTD,,
Revenue,Adult Services,Adult Social Care,Commissioning & Service Delivery,5105711445,24.06.2022,PA Hub,Catering Purchases,93.75,THE QUAY ARTS TRADING COMPANY LTD,,
Revenue,Adult Services,Adult Social Care,Commissioning & Service Delivery,5105709942,08.06.2022,CHC Residential Care,Charges from Independent Providers,"9,704.24",ISLAND HEALTHCARE LTD,,
Revenue,Adult Services,Adult Social Care,Commissioning & Service Delivery,5105709958,08.06.2022,CHC Residential Care,Charges from Independent Providers,"3,390.24",EDEN HOUSE,,
Revenue,Adult Services,Adult Social Care,Commissioning & Service Delivery,5105709942,08.06.2022,CHC Residential Care,Charges from Independent Providers,"3,095.12",ISLAND HEALTHCARE LTD,,
Revenue,Adult Services,Adult Social Care,Commissioning & Service Delivery,5105709952,08.06.2022,CHC Residential Care,Charges from Independent Providers,"3,849.16",ISLAND HEALTHCARE LTD,,
Revenue,Adult Services,Adult Social Care,Commissioning & Service Delivery,5105709998,08.06.2022,CHC Residential Care,Charges from Independent Providers,"11,061.96",RYDE HOUSE LTD,,
Revenue,Adult Services,Adult Social Care,Commissioning & Service Delivery,5105710001,08.06.2022,CHC Residential Care,Charges from Independent Providers,"23,203.60",WINSLOW COURT LIMITED,,
Revenue,Adult Services,Adult Social Care,Commissioning & Service Delivery,5105709937,08.06.2022,CHC Residential Care,Charges from Independent Providers,"3,847.48",THE LIMES TRUST,,
Revenue,Adult Services,Adult Social Care,Commissioning & Service Delivery,5105709999,08.06.2022,CHC Residential Care,Charges from Independent Providers,"11,924.08",CHOICE CARE (WOODLANDS),,
Revenue,Adult Services,Adult Social Care,Commissioning & Service Delivery,5105709944,08.06.2022,CHC Residential Care,Charges from Independent Providers,"3,104.64",ISLAND HEALTHCARE LTD,,
Revenue,Adult Services,Adult Social Care,Commissioning & Service Delivery,5105709944,08.06.2022,CHC Residential Care,Charges from Independent Providers,"3,095.12",ISLAND HEALTHCARE LTD,,
Revenue,Adult Services,Adult Social Care,Commissioning & Service Delivery,5105709998,08.06.2022,CHC Residential Care,Charges from Independent Providers,"12,872.16",RYDE HOUSE LTD,,
Revenue,Adult Services,Adult Social Care,Commissioning & Service Delivery,5105709998,08.06.2022,CHC Residential Care,Charges from Independent Providers,"7,149.52",RYDE HOUSE LTD,,
Revenue,Adult Services,Adult Social Care,Commissioning & Service Delivery,5105709998,08.06.2022,CHC Residential Care,Charges from Independent Providers,"9,445.80",RYDE HOUSE LTD,,
Revenue,Adult Services,Adult Social Care,Commissioning & Service Delivery,5105709998,08.06.2022,CHC Residential Care,Charges from Independent Providers,"23,395.12",RYDE HOUSE LTD,,
Revenue,Adult Services,Adult Social Care,Commissioning & Service Delivery,5105709960,08.06.2022,CHC Residential Care,Charges from Independent Providers,"8,949.36",ISLAND HEALTHCARE LTD,,
Revenue,Adult Services,Adult Social Care,Commissioning & Service Delivery,5105709939,08.06.2022,CHC Residential Care,Charges from Independent Providers,"2,653.56",THE BRIARS RESIDENTIAL HOME,,
Revenue,Adult Services,Adult Social Care,Commissioning & Service Delivery,5105709942,08.06.2022,CHC Residential Care,Charges from Independent Providers,"4,662.00",ISLAND HEALTHCARE LTD,,
Revenue,Adult Services,Adult Social Care,Commissioning & Service Delivery,5105709942,08.06.2022,CHC Residential Care,Charges from Independent Providers,"6,244.00",ISLAND HEALTHCARE LTD,,
Revenue,Adult Services,Adult Social Care,Commissioning & Service Delivery,5105709960,08.06.2022,CHC Residential Care,Charges from Independent Providers,"3,670.80",ISLAND HEALTHCARE LTD,,
Revenue,Adult Services,Adult Social Care,Commissioning & Service Delivery,5105709942,08.06.2022,CHC Residential Care,Charges from Independent Providers,"9,428.16",ISLAND HEALTHCARE LTD,,
Revenue,Adult Services,Adult Social Care,Commissioning & Service Delivery,5105709980,08.06.2022,CHC Residential Care,Charges from Independent Providers,"2,653.56",IN SAFE HANDS RESIDENTIAL LTD,,
Revenue,Adult Services,Adult Social Care,Commissioning & Service Delivery,5105709980,08.06.2022,CHC Residential Care,Charges from Independent Providers,"13,977.60",IN SAFE HANDS RESIDENTIAL LTD,,
Revenue,Adult Services,Adult Social Care,Commissioning & Service Delivery,5105710043,08.06.2022,CHC Residential Care,Charges from Independent Providers,"6,714.12",ISLAND HEALTHCARE LTD,,
Revenue,Adult Services,Adult Social Care,Commissioning & Service Delivery,5105709942,08.06.2022,CHC Residential Care,Charges from Independent Providers,"3,900.12",ISLAND HEALTHCARE LTD,,
Revenue,Adult Services,Adult Social Care,Commissioning & Service Delivery,5105709620,01.06.2022,CHC Residential Care,Charges from Independent Providers,"1,671.48",ISLAND HEALTHCARE LTD,,
Revenue,Adult Services,Adult Social Care,Commissioning & Service Delivery,5105709620,01.06.2022,CHC Residential Care,Charges from Independent Providers,"3,900.12",ISLAND HEALTHCARE LTD,,
Revenue,Adult Services,Adult Social Care,Commissioning & Service Delivery,5105709952,08.06.2022,CHC Residential Care,Charges from Independent Providers,"3,900.12",ISLAND HEALTHCARE LTD,,
Revenue,Adult Services,Adult Social Care,Commissioning & Service Delivery,5105709944,08.06.2022,CHC Residential Care,Charges from Independent Providers,"4,176.20",ISLAND HEALTHCARE LTD,,
Revenue,Adult Services,Adult Social Care,Commissioning & Service Delivery,5105709949,08.06.2022,CHC Nursing Care,Charges from Independent Providers,"3,704.96",SANDOWN NURSING HOME,,
Revenue,Adult Services,Adult Social Care,Commissioning & Service Delivery,5105709945,08.06.2022,CHC Nursing Care,Charges from Independent Providers,"3,704.96",WOODSIDE HALL NURSING HOME,,
Revenue,Adult Services,Adult Social Care,Commissioning & Service Delivery,5105709618,01.06.2022,CHC Nursing Care,Charges from Independent Providers,"2,944.44",ISLAND HEALTHCARE LTD,,
Revenue,Adult Services,Adult Social Care,Commissioning & Service Delivery,5105709618,01.06.2022,CHC Nursing Care,Charges from Independent Providers,"4,580.24",ISLAND HEALTHCARE LTD,,
Revenue,Adult Services,Adult Social Care,Commissioning & Service Delivery,5105709944,08.06.2022,CHC Nursing Care,Charges from Independent Providers,"4,580.24",ISLAND HEALTHCARE LTD,,
Revenue,Adult Services,Adult Social Care,Commissioning & Service Delivery,5105710131,08.06.2022,CHC Nursing Care,Charges from Independent Providers,"1,624.92",WOODSIDE HALL NURSING HOME,,
Revenue,Adult Services,Adult Social Care,Commissioning & Service Delivery,5105709954,08.06.2022,CHC Nursing Care,Charges from Independent Providers,"3,585.40",WARD HOUSE LTD,,
Revenue,Adult Services,Adult Social Care,Commissioning & Service Delivery,5105710013,08.06.2022,CHC Nursing Care,Charges from Independent Providers,"6,312.60",BARCHESTER HEALTHCARE,,
Revenue,Adult Services,Adult Social Care,Commissioning & Service Delivery,5105709945,08.06.2022,CHC Nursing Care,Charges from Independent Providers,"3,704.96",WOODSIDE HALL NURSING HOME,,
Revenue,Adult Services,Adult Social Care,Commissioning & Service Delivery,5105709945,08.06.2022,CHC Nursing Care,Charges from Independent Providers,"3,704.96",WOODSIDE HALL NURSING HOME,,
Revenue,Adult Services,Adult Social Care,Commissioning & Service Delivery,5105709949,08.06.2022,CHC Nursing Care,Charges from Independent Providers,"3,704.96",SANDOWN NURSING HOME,,
Revenue,Adult Services,Adult Social Care,Commissioning & Service Delivery,5105709984,08.06.2022,CHC Nursing Care,Charges from Independent Providers,"13,423.76",REDACTED PERSONAL DATA,,
Revenue,Adult Services,Adult Social Care,Commissioning & Service Delivery,5105709971,08.06.2022,CHC Nursing Care,Charges from Independent Providers,"3,704.96",LONDON RESIDENTIAL HEALTHCARE,,
Revenue,Adult Services,Adult Social Care,Commissioning & Service Delivery,5105709945,08.06.2022,CHC Nursing Care,Charges from Independent Providers,"3,704.96",WOODSIDE HALL NURSING HOME,,
Revenue,Adult Services,Adult Social Care,Commissioning & Service Delivery,5105709945,08.06.2022,CHC Nursing Care,Charges from Independent Providers,"3,704.96",WOODSIDE HALL NURSING HOME,,
Revenue,Adult Services,Adult Social Care,Commissioning & Service Delivery,5105709945,08.06.2022,CHC Nursing Care,Charges from Independent Providers,"3,704.96",WOODSIDE HALL NURSING HOME,,
Revenue,Adult Services,Adult Social Care,Commissioning & Service Delivery,5105709971,08.06.2022,CHC Nursing Care,Charges from Independent Providers,"3,704.96",LONDON RESIDENTIAL HEALTHCARE,,
Revenue,Adult Services,Adult Social Care,Commissioning & Service Delivery,5105709941,08.06.2022,CHC Nursing Care,Charges from Independent Providers,"4,021.64",VECTA HOUSE CARE HOME,,
Revenue,Adult Services,Adult Social Care,Commissioning & Service Delivery,5105709956,08.06.2022,CHC Nursing Care,Charges from Independent Providers,"3,704.96",BUCKLAND CARE LTD,,
Revenue,Adult Services,Adult Social Care,Commissioning & Service Delivery,5105709971,08.06.2022,CHC Nursing Care,Charges from Independent Providers,"3,704.96",LONDON RESIDENTIAL HEALTHCARE,,
Revenue,Adult Services,Adult Social Care,Commissioning & Service Delivery,5105709993,08.06.2022,CHC Nursing Care,Charges from Independent Providers,"3,704.96",SCIO HEALTHCARE LTD,,
Revenue,Adult Services,Adult Social Care,Commissioning & Service Delivery,5105709944,08.06.2022,CHC Nursing Care,Charges from Independent Providers,"3,595.20",ISLAND HEALTHCARE LTD,,
Revenue,Adult Services,Adult Social Care,Commissioning & Service Delivery,5105709944,08.06.2022,CHC Nursing Care,Charges from Independent Providers,"3,704.96",ISLAND HEALTHCARE LTD,,
Revenue,Adult Services,Adult Social Care,Commissioning & Service Delivery,5105709944,08.06.2022,CHC Nursing Care,Charges from Independent Providers,"3,861.20",ISLAND HEALTHCARE LTD,,
Revenue,Adult Services,Adult Social Care,Commissioning & Service Delivery,5105709992,08.06.2022,CHC Nursing Care,Charges from Independent Providers,"3,585.40",SCIO HEALTHCARE LTD,,
Revenue,Adult Services,Adult Social Care,Commissioning & Service Delivery,5105709956,08.06.2022,CHC Nursing Care,Charges from Independent Providers,"3,704.96",BUCKLAND CARE LTD,,
Revenue,Adult Services,Adult Social Care,Commissioning & Service Delivery,5105709956,08.06.2022,CHC Nursing Care,Charges from Independent Providers,"3,704.96",BUCKLAND CARE LTD,,
Revenue,Adult Services,Adult Social Care,Commissioning & Service Delivery,5105709944,08.06.2022,CHC Nursing Care,Charges from Independent Providers,"3,704.96",ISLAND HEALTHCARE LTD,,
Revenue,Adult Services,Adult Social Care,Commissioning & Service Delivery,5105709965,08.06.2022,CHC Nursing Care,Charges from Independent Providers,"3,704.96",THE ORCHARD HOUSE CARE HOME,,
Revenue,Adult Services,Adult Social Care,Commissioning & Service Delivery,5105709965,08.06.2022,CHC Nursing Care,Charges from Independent Providers,750.40,THE ORCHARD HOUSE CARE HOME,,
Revenue,Adult Services,Adult Social Care,Commissioning & Service Delivery,5105709956,08.06.2022,CHC Nursing Care,Charges from Independent Providers,"3,704.96",BUCKLAND CARE LTD,,
Revenue,Adult Services,Adult Social Care,Commissioning & Service Delivery,5105709971,08.06.2022,CHC Nursing Care,Charges from Independent Providers,"3,704.96",LONDON RESIDENTIAL HEALTHCARE,,
Revenue,Adult Services,Adult Social Care,Commissioning & Service Delivery,5105709971,08.06.2022,CHC Nursing Care,Charges from Independent Providers,"3,704.96",LONDON RESIDENTIAL HEALTHCARE,,
Revenue,Adult Services,Adult Social Care,Commissioning & Service Delivery,5105709991,08.06.2022,CHC Nursing Care,Charges from Independent Providers,"3,585.40",SCIO HEALTHCARE LTD,,
Revenue,Adult Services,Adult Social Care,Commissioning & Service Delivery,5105709945,08.06.2022,CHC Nursing Care,Charges from Independent Providers,"3,704.96",WOODSIDE HALL NURSING HOME,,
Revenue,Adult Services,Adult Social Care,Commissioning & Service Delivery,5105709945,08.06.2022,CHC Nursing Care,Charges from Independent Providers,"3,704.96",WOODSIDE HALL NURSING HOME,,
Revenue,Adult Services,Adult Social Care,Commissioning & Service Delivery,5105709941,08.06.2022,CHC Nursing Care,Charges from Independent Providers,"4,021.64",VECTA HOUSE CARE HOME,,
Revenue,Adult Services,Adult Social Care,Commissioning & Service Delivery,5105709941,08.06.2022,CHC Nursing Care,Charges from Independent Providers,"3,585.40",VECTA HOUSE CARE HOME,,
Revenue,Adult Services,Adult Social Care,Commissioning & Service Delivery,5105709944,08.06.2022,CHC Nursing Care,Charges from Independent Providers,"5,265.40",ISLAND HEALTHCARE LTD,,
Revenue,Adult Services,Adult Social Care,Commissioning & Service Delivery,5105709954,08.06.2022,CHC Nursing Care,Charges from Independent Providers,"3,704.96",WARD HOUSE LTD,,
Revenue,Adult Services,Adult Social Care,Commissioning & Service Delivery,5105709965,08.06.2022,CHC Nursing Care,Charges from Independent Providers,"3,861.20",THE ORCHARD HOUSE CARE HOME,,
Revenue,Adult Services,Adult Social Care,Commissioning & Service Delivery,5105709956,08.06.2022,CHC Nursing Care,Charges from Independent Providers,"3,704.96",BUCKLAND CARE LTD,,
Revenue,Adult Services,Adult Social Care,Commissioning & Service Delivery,5105709949,08.06.2022,CHC Nursing Care,Charges from Independent Providers,"3,704.96",SANDOWN NURSING HOME,,
Revenue,Adult Services,Adult Social Care,Commissioning & Service Delivery,5105709956,08.06.2022,CHC Nursing Care,Charges from Independent Providers,"3,704.96",BUCKLAND CARE LTD,,
Revenue,Adult Services,Adult Social Care,Commissioning & Service Delivery,5105709956,08.06.2022,CHC Nursing Care,Charges from Independent Providers,"11,424.00",BUCKLAND CARE LTD,,
Revenue,Adult Services,Adult Social Care,Commissioning & Service Delivery,5105710454,15.06.2022,CHC Nursing Care,Charges from Independent Providers,312.09,BUCKLAND CARE LTD,,
Revenue,Adult Services,Adult Social Care,Commissioning & Service Delivery,5105710454,15.06.2022,CHC Nursing Care,Charges from Independent Providers,"2,424.00",BUCKLAND CARE LTD,,
Revenue,Adult Services,Adult Social Care,Commissioning & Service Delivery,5105709949,08.06.2022,CHC Nursing Care,Charges from Independent Providers,"3,704.96",SANDOWN NURSING HOME,,
Revenue,Adult Services,Adult Social Care,Commissioning & Service Delivery,5105709944,08.06.2022,CHC Nursing Care,Charges from Independent Providers,"5,383.00",ISLAND HEALTHCARE LTD,,
Revenue,Adult Services,Adult Social Care,Commissioning & Service Delivery,5105709971,08.06.2022,CHC Nursing Care,Charges from Independent Providers,"3,704.96",LONDON RESIDENTIAL HEALTHCARE,,
Revenue,Adult Services,Adult Social Care,Commissioning & Service Delivery,5105709932,08.06.2022,CHC Nursing Care,Charges from Independent Providers,"2,950.92",ISLANDCARE LTD,,
Revenue,Adult Services,Adult Social Care,Commissioning & Service Delivery,5105710451,15.06.2022,CHC Nursing Care,Charges from Independent Providers,"1,159.29",ISLANDCARE LTD,,
Revenue,Adult Services,Adult Social Care,Commissioning & Service Delivery,5105710451,15.06.2022,CHC Nursing Care,Charges from Independent Providers,520.15,ISLANDCARE LTD,,
Revenue,Adult Services,Adult Social Care,Commissioning & Service Delivery,5105709941,08.06.2022,CHC Nursing Care,Charges from Independent Providers,"4,021.64",VECTA HOUSE CARE HOME,,
Revenue,Adult Services,Adult Social Care,Commissioning & Service Delivery,5105710000,08.06.2022,CHC Nursing Care,Charges from Independent Providers,"10,447.64",BAGSHOT PARK CARE CENTRE,,
Revenue,Adult Services,Adult Social Care,Commissioning & Service Delivery,5105709945,08.06.2022,CHC Nursing Care,Charges from Independent Providers,"3,704.96",WOODSIDE HALL NURSING HOME,,
Revenue,Adult Services,Adult Social Care,Commissioning & Service Delivery,5105709941,08.06.2022,CHC Nursing Care,Charges from Independent Providers,"4,021.64",VECTA HOUSE CARE HOME,,
Revenue,Adult Services,Adult Social Care,Commissioning & Service Delivery,5105709945,08.06.2022,CHC Nursing Care,Charges from Independent Providers,"3,704.96",WOODSIDE HALL NURSING HOME,,
Revenue,Adult Services,Adult Social Care,Commissioning & Service Delivery,5105709992,08.06.2022,CHC Nursing Care,Charges from Independent Providers,"3,585.40",SCIO HEALTHCARE LTD,,
Revenue,Adult Services,Adult Social Care,Commissioning & Service Delivery,5105709945,08.06.2022,CHC Nursing Care,Charges from Independent Providers,"3,704.96",WOODSIDE HALL NURSING HOME,,
Revenue,Adult Services,Adult Social Care,Commissioning & Service Delivery,5105709944,08.06.2022,CHC Nursing Care,Charges from Independent Providers,"3,704.96",ISLAND HEALTHCARE LTD,,
Revenue,Adult Services,Adult Social Care,Commissioning & Service Delivery,5105709944,08.06.2022,CHC Nursing Care,Charges from Independent Providers,"3,704.96",ISLAND HEALTHCARE LTD,,
Revenue,Adult Services,Adult Social Care,Commissioning & Service Delivery,5105709993,08.06.2022,CHC Nursing Care,Charges from Independent Providers,"4,159.68",SCIO HEALTHCARE LTD,,
Revenue,Adult Services,Adult Social Care,Commissioning & Service Delivery,5105709941,08.06.2022,CHC Nursing Care,Charges from Independent Providers,"4,021.64",VECTA HOUSE CARE HOME,,
Revenue,Adult Services,Adult Social Care,Commissioning & Service Delivery,5105709956,08.06.2022,CHC Nursing Care,Charges from Independent Providers,"3,704.96",BUCKLAND CARE LTD,,
Revenue,Adult Services,Adult Social Care,Commissioning & Service Delivery,5105709956,08.06.2022,CHC Nursing Care,Charges from Independent Providers,"13,332.48",BUCKLAND CARE LTD,,
Revenue,Adult Services,Adult Social Care,Commissioning & Service Delivery,5105710454,15.06.2022,CHC Nursing Care,Charges from Independent Providers,208.32,BUCKLAND CARE LTD,,
Revenue,Adult Services,Adult Social Care,Commissioning & Service Delivery,5105710454,15.06.2022,CHC Nursing Care,Charges from Independent Providers,"4,169.28",BUCKLAND CARE LTD,,
Revenue,Adult Services,Adult Social Care,Commissioning & Service Delivery,5105710454,15.06.2022,CHC Nursing Care,Charges from Independent Providers,312.09,BUCKLAND CARE LTD,,
Revenue,Adult Services,Adult Social Care,Commissioning & Service Delivery,5105708709,17.06.2022,CHC Occupational Therapy Contract,Payment to Private Contractors,"3,333.33",NOTTINGHAM REHAB LTD,,
Revenue,Adult Services,Adult Social Care,Commissioning & Service Delivery,5105710668,17.06.2022,CHC Occupational Therapy Contract,Payment to Private Contractors,"3,333.33",NOTTINGHAM REHAB LTD,,
Revenue,Adult Services,Adult Social Care,Long Term Support,5105709970,08.06.2022,Sunny Bay,Charges from Independent Providers,"16,760.00",LEONARD CHESHIRE DISABILITY,,
Revenue,Adult Services,Adult Social Care,Social Care Activities,5105709479,17.06.2022,Safeguarding Adults,Agency staff,"1,731.53",MATRIX SCM LTD,,
Revenue,Adult Services,Adult Social Care,Social Care Activities,5105709157,08.06.2022,Safeguarding Adults,Agency staff,"1,359.95",MATRIX SCM LTD,,
Revenue,Adult Services,Adult Social Care,Social Care Activities,5105711395,22.06.2022,Safeguarding Adults,Agency staff,"2,742.95",MATRIX SCM LTD,,
Revenue,Adult Services,Adult Social Care,Social Care Activities,5105709479,17.06.2022,Safeguarding Adults,Agency staff,"1,773.55",MATRIX SCM LTD,,
Revenue,Adult Services,Adult Social Care,Social Care Activities,5105709157,08.06.2022,Safeguarding Adults,Agency staff,"1,773.55",MATRIX SCM LTD,,
Revenue,Adult Services,Adult Social Care,Social Care Activities,5105710718,15.06.2022,Safeguarding Adults,Agency staff,718.40,MATRIX SCM LTD,,
Revenue,Adult Services,Adult Social Care,Social Care Activities,5105711395,22.06.2022,Safeguarding Adults,Agency staff,359.20,MATRIX SCM LTD,,
Revenue,Adult Services,Adult Social Care,Infection Control Fund,5105710406,10.06.2022,ASC Workforce Recruit & Retention Fd R1,Advertising & Publicity,509.00,ISLE OF WIGHT RADIO LTD,,
Revenue,Adult Services,Adult Social Care,Infection Control Fund,5105710102,08.06.2022,ASC Workforce Recruit & Retention Fd R1,Advertising & Publicity,450.00,ISLE OF WIGHT OBSERVER LTD,,
Revenue,Regeneration,Central Services,Support Services,5105707092,01.06.2022,17 Fairlee Road,Cleaning Contracts,11.37,PHS GROUP PLC,,
Revenue,Regeneration,Central Services,Support Services,5105710020,24.06.2022,17 Fairlee Road,Cleaning Contracts,11.37,PHS GROUP PLC,,
Revenue,Regeneration,Central Services,Support Services,5105707975,01.06.2022,17 Fairlee Road,Property Services - Day to day Maintenance,138.75,WIGHT FIRE CO LTD,,
Revenue,Regeneration,Central Services,Support Services,5105710989,22.06.2022,17 Fairlee Road,Property Services - Day to day Maintenance,56.00,URBAN ENVIRONMENTS LTD,,
Revenue,Regeneration,Central Services,Support Services,5105710519,17.06.2022,17 Fairlee Road,Property Services - Day to day Maintenance,56.00,URBAN ENVIRONMENTS LTD,,
Revenue,Regeneration,Central Services,Support Services,5105707234,15.06.2022,17 Fairlee Road,Property Services - Day to day Maintenance,56.00,URBAN ENVIRONMENTS LTD,,
Revenue,Childrens Services,Children's & Education Services,Safeguarding Children/Young Peoples Svs,5105710971,17.06.2022,ICS & Data,Computer Purchase & Rental,"129,422.00",ACCESS UK LTD,,
Revenue,Childrens Services,Children's & Education Services,Safeguarding Children/Young Peoples Svs,5105710973,22.06.2022,ICS & Data,Agency staff,"8,662.50",PERMANENT FUTURES LTD,,
Revenue,Childrens Services,Children's & Education Services,Safeguarding Children/Young Peoples Svs,5105712046,29.06.2022,ICS & Data,Agency staff,"8,925.00",PERMANENT FUTURES LTD,,
Revenue,Childrens Services,Children's & Education Services,Safeguarding Children/Young Peoples Svs,5105710476,15.06.2022,ICS & Data,Agency staff,"5,900.00",PERMANENT FUTURES LTD,,
Revenue,Childrens Services,Children's & Education Services,Safeguarding Children/Young Peoples Svs,5105712045,29.06.2022,ICS & Data,Agency staff,"2,950.00",PERMANENT FUTURES LTD,,
Revenue,Childrens Services,Children's & Education Services,Safeguarding Children/Young Peoples Svs,5105712047,29.06.2022,ICS & Data,Agency staff,"2,065.00",PERMANENT FUTURES LTD,,
Revenue,Childrens Services,Children's & Education Services,Safeguarding Children/Young Peoples Svs,5105710577,15.06.2022,ICS & Data,Computer Maintenance,306.00,PHOENIX SOFTWARE LTD,,
Revenue,Adult Services,Adult Social Care,Commissioning & Service Delivery,5105709479,17.06.2022,Adult Social Care Admin Hub,Agency staff,55.04,MATRIX SCM LTD,,
Revenue,Adult Services,Adult Social Care,Commissioning & Service Delivery,5105709157,08.06.2022,Adult Social Care Admin Hub,Agency staff,165.12,MATRIX SCM LTD,,
Revenue,Childrens Services,Adult Social Care,Social Care Activities,5105712299,29.06.2022,Adult Social Care - Workforce Development,Training,160.00,HAMPSHIRE COUNTY COUNCIL,,
Revenue,Childrens Services,Adult Social Care,Social Care Activities,5105711761,24.06.2022,Adult Social Care - Workforce Development,Training,160.00,HAMPSHIRE COUNTY COUNCIL,,
Revenue,Childrens Services,Adult Social Care,Social Care Activities,5105711761,24.06.2022,Adult Social Care - Workforce Development,Training,160.00,HAMPSHIRE COUNTY COUNCIL,,
Revenue,Childrens Services,Adult Social Care,Social Care Activities,5105712298,29.06.2022,Adult Social Care - Workforce Development,Training,160.00,HAMPSHIRE COUNTY COUNCIL,,
Revenue,Childrens Services,Adult Social Care,Social Care Activities,5105705167,24.06.2022,Adult Social Care - Workforce Development,Travel Expenses,25.60,WIGHTLINK LTD,,
Revenue,Childrens Services,Adult Social Care,Social Care Activities,5105711229,22.06.2022,Adult Social Care - Workforce Development,Travel Expenses,13.20,WIGHTLINK LTD,,
Revenue,Childrens Services,Adult Social Care,Social Care Activities,5105710579,15.06.2022,Adult Social Care - Workforce Development,Training,179.00,NOTTINGHAM REHAB LTD,,
Revenue,Childrens Services,Adult Social Care,Social Care Activities,5105711308,29.06.2022,Adult Social Care - Workforce Development,Training,"1,395.00",ISLE OF WIGHT NHS TRUST,,
Revenue,Childrens Services,Adult Social Care,Social Care Activities,5105709372,08.06.2022,Adult Social Care - Workforce Development,Public Transport Fares,56.05,RED FUNNEL GROUP,,
Revenue,Childrens Services,Adult Social Care,Social Care Activities,5105709375,08.06.2022,Adult Social Care - Workforce Development,Public Transport Fares,56.05,RED FUNNEL GROUP,,
Revenue,Childrens Services,Adult Social Care,Social Care Activities,5105708790,08.06.2022,Adult Social Care - Workforce Development,Public Transport Fares,56.60,RED FUNNEL GROUP,,
Revenue,Childrens Services,Adult Social Care,Social Care Activities,5105709879,08.06.2022,Adult Social Care - Workforce Development,Public Transport Fares,-56.60,RED FUNNEL GROUP,,
Revenue,Childrens Services,Adult Social Care,Social Care Activities,5105711070,17.06.2022,Adult Social Care - Workforce Development,Public Transport Fares,53.80,RED FUNNEL GROUP,,
Revenue,Childrens Services,Adult Social Care,Social Care Activities,5105711075,17.06.2022,Adult Social Care - Workforce Development,Public Transport Fares,53.80,RED FUNNEL GROUP,,
Revenue,Childrens Services,Adult Social Care,Social Care Activities,5105712006,29.06.2022,Adult Social Care - Workforce Development,Training,259.90,OPUS PHARMACY SERVICES LTD,,
Revenue,Childrens Services,Adult Social Care,Social Care Activities,5105710697,29.06.2022,Adult Social Care - Workforce Development,Training,59.00,NOTTINGHAM REHAB LTD,,
Revenue,Adult Services,Adult Social Care,Commissioning & Service Delivery,5105711730,24.06.2022,ASC County Hall office costs,Postage,26.39,ROYAL MAIL GROUP PLC,,
Revenue,Adult Services,Adult Social Care,Commissioning & Service Delivery,5105711722,24.06.2022,ASC County Hall office costs,Stationery,1.98,BETA PAK LTD,,
Revenue,Adult Services,Adult Social Care,Commissioning & Service Delivery,5105709248,01.06.2022,ASC County Hall office costs,Stationery,47.60,BETA PAK LTD,,
Revenue,Adult Services,Adult Social Care,Commissioning & Service Delivery,5105709248,01.06.2022,ASC County Hall office costs,Stationery,5.53,BETA PAK LTD,,
Revenue,Adult Services,Adult Social Care,Commissioning & Service Delivery,5105711809,24.06.2022,ASC County Hall office costs,Stationery,1.42,BETA PAK LTD,,
Revenue,Adult Services,Adult Social Care,Commissioning & Service Delivery,5105710369,10.06.2022,ASC County Hall office costs,Stationery,1.56,BETA PAK LTD,,
Revenue,Adult Services,Adult Social Care,Commissioning & Service Delivery,5105709316,08.06.2022,ASC County Hall office costs,Stationery,0.78,BETA PAK LTD,,
Revenue,Adult Services,Adult Social Care,Commissioning & Service Delivery,5105710635,15.06.2022,ASC County Hall office costs,Stationery,59.50,BETA PAK LTD,,
Revenue,Adult Services,Adult Social Care,Commissioning & Service Delivery,5105710635,15.06.2022,ASC County Hall office costs,Stationery,11.06,BETA PAK LTD,,
Revenue,Adult Services,Adult Social Care,Commissioning & Service Delivery,5105710635,15.06.2022,ASC County Hall office costs,Stationery,4.34,BETA PAK LTD,,
Revenue,Adult Services,Adult Social Care,Commissioning & Service Delivery,5105710635,15.06.2022,ASC County Hall office costs,Stationery,0.33,BETA PAK LTD,,
Revenue,Adult Services,Adult Social Care,Commissioning & Service Delivery,5105710635,15.06.2022,ASC County Hall office costs,Stationery,4.31,BETA PAK LTD,,
Revenue,Adult Services,Adult Social Care,Commissioning & Service Delivery,5105710635,15.06.2022,ASC County Hall office costs,Stationery,2.09,BETA PAK LTD,,
Revenue,Adult Services,Adult Social Care,Commissioning & Service Delivery,5105711807,24.06.2022,ASC County Hall office costs,Stationery,3.96,BETA PAK LTD,,
Revenue,Adult Services,Adult Social Care,Commissioning & Service Delivery,5105711113,17.06.2022,ASC County Hall office costs,Stationery,2.42,BETA PAK LTD,,
Revenue,Adult Services,Adult Social Care,Commissioning & Service Delivery,5105710635,15.06.2022,ASC County Hall office costs,Stationery,7.82,BETA PAK LTD,,
Revenue,Adult Services,Adult Social Care,Commissioning & Service Delivery,5105710635,15.06.2022,ASC County Hall office costs,Stationery,2.38,BETA PAK LTD,,
Revenue,Adult Services,Adult Social Care,Commissioning & Service Delivery,5105710531,15.06.2022,ASC County Hall office costs,Stationery,0.46,BETA PAK LTD,,
Revenue,Adult Services,Adult Social Care,Commissioning & Service Delivery,5105710635,15.06.2022,ASC County Hall office costs,Stationery,39.96,BETA PAK LTD,,
Revenue,Adult Services,Adult Social Care,Commissioning & Service Delivery,5105703797,01.06.2022,ASC County Hall office costs,Stationery,0.74,BATES OFFICE SERVICES LIMITED,,
Revenue,Adult Services,Adult Social Care,Commissioning & Service Delivery,5105703797,01.06.2022,ASC County Hall office costs,Stationery,7.30,BATES OFFICE SERVICES LIMITED,,
Revenue,Adult Services,Adult Social Care,Commissioning & Service Delivery,5105703797,01.06.2022,ASC County Hall office costs,Stationery,5.40,BATES OFFICE SERVICES LIMITED,,
Revenue,Adult Services,Adult Social Care,Commissioning & Service Delivery,5105703797,01.06.2022,ASC County Hall office costs,Stationery,0.96,BATES OFFICE SERVICES LIMITED,,
Revenue,Adult Services,Adult Social Care,Commissioning & Service Delivery,5105703797,01.06.2022,ASC County Hall office costs,Stationery,1.00,BATES OFFICE SERVICES LIMITED,,
Revenue,Adult Services,Adult Social Care,Commissioning & Service Delivery,5105703797,01.06.2022,ASC County Hall office costs,Stationery,0.91,BATES OFFICE SERVICES LIMITED,,
Revenue,Adult Services,Adult Social Care,Commissioning & Service Delivery,5105703792,01.06.2022,ASC County Hall office costs,Stationery,14.60,BATES OFFICE SERVICES LIMITED,,
Revenue,Adult Services,Adult Social Care,Commissioning & Service Delivery,5105703792,01.06.2022,ASC County Hall office costs,Stationery,4.68,BATES OFFICE SERVICES LIMITED,,
Revenue,Adult Services,Adult Social Care,Commissioning & Service Delivery,5105710368,10.06.2022,FAC Team,Stationery,32.32,BETA PAK LTD,,
Revenue,Adult Services,Adult Social Care,Commissioning & Service Delivery,5105710368,10.06.2022,FAC Team,Stationery,31.84,BETA PAK LTD,,
Revenue,Adult Services,Adult Social Care,Commissioning & Service Delivery,5105709248,01.06.2022,FAC Team,Stationery,10.68,BETA PAK LTD,,
Revenue,Adult Services,Adult Social Care,Commissioning & Service Delivery,5105709826,10.06.2022,Deputyship Office,Payment to Private Contractors,440.80,PREPAID FINANCIAL SERVICES LTD,,
Revenue,Adult Services,Adult Social Care,Commissioning & Service Delivery,5105709825,10.06.2022,Deputyship Office,Payment to Private Contractors,421.30,PREPAID FINANCIAL SERVICES LTD,,
Revenue,Adult Services,Adult Social Care,Commissioning & Service Delivery,5105711378,22.06.2022,Deputyship Office,Payment to Private Contractors,444.20,PREPAID FINANCIAL SERVICES LTD,,
Revenue,Adult Services,Adult Social Care,Commissioning & Service Delivery,5105709826,10.06.2022,Deputyship Office,Payment to Private Contractors,247.15,PREPAID FINANCIAL SERVICES LTD,,
Revenue,Adult Services,Adult Social Care,Commissioning & Service Delivery,5105711378,22.06.2022,Deputyship Office,Payment to Private Contractors,279.74,PREPAID FINANCIAL SERVICES LTD,,
Revenue,Adult Services,Adult Social Care,Commissioning & Service Delivery,5105709825,10.06.2022,Deputyship Office,Payment to Private Contractors,273.65,PREPAID FINANCIAL SERVICES LTD,,
Revenue,Adult Services,Adult Social Care,Assistive Equipment & Technology,5105709561,08.06.2022,Wightcare,Operational Equipment,"1,400.00",TUNSTALL HEALTHCARE (UK) LTD,,
Revenue,Adult Services,Adult Social Care,Assistive Equipment & Technology,5105709814,08.06.2022,Wightcare,Advertising & Publicity,398.00,ON THE WIGHT LTD,,
Revenue,Adult Services,Adult Social Care,Assistive Equipment & Technology,5105710587,22.06.2022,Wightcare,Vehicle Maintenance Costs,10.00,DASHWITNESS LTD,,
Revenue,Adult Services,Adult Social Care,Assistive Equipment & Technology,5105710587,22.06.2022,Wightcare,Vehicle Maintenance Costs,10.00,DASHWITNESS LTD,,
Revenue,Adult Services,Adult Social Care,Assistive Equipment & Technology,5105710587,22.06.2022,Wightcare,Vehicle Maintenance Costs,10.00,DASHWITNESS LTD,,
Revenue,Adult Services,Adult Social Care,Assistive Equipment & Technology,5105710587,22.06.2022,Wightcare,Vehicle Maintenance Costs,10.00,DASHWITNESS LTD,,
Revenue,Adult Services,Adult Social Care,Assistive Equipment & Technology,5105711953,29.06.2022,Wightcare,General Materials,"9,950.00",TEC SERVICES ASSOCIATION C.I.C,,
Revenue,Adult Services,Adult Social Care,Assistive Equipment & Technology,5105711479,24.06.2022,Wightcare,Vehicle Maintenance Costs,141.00,DH PRICE MOTORS,,
Revenue,Adult Services,Adult Social Care,Assistive Equipment & Technology,5105710567,15.06.2022,Wightcare,Advertising & Publicity,"1,350.00",ISLAND ECHO,,
Revenue,Adult Services,Adult Social Care,Assistive Equipment & Technology,5105710630,15.06.2022,Wightcare,Stationery,8.85,BETA PAK LTD,,
Revenue,Adult Services,Adult Social Care,Assistive Equipment & Technology,5105710630,15.06.2022,Wightcare,Stationery,4.15,BETA PAK LTD,,
Revenue,Adult Services,Adult Social Care,Assistive Equipment & Technology,5105711732,24.06.2022,Wightcare,Operational Equipment,660.00,ANYWHERE CARE LIMITED,,
Revenue,Resources,Central Services,Support Services,5105707095,15.06.2022,60 Dodnor Lane Store,Minor Works,8.00,URBAN ENVIRONMENTS LTD,,
Revenue,Adult Services,Central Services,Emergency Planning,5105710735,15.06.2022,NHS C19 Residential,Charges from Independent Providers,115.72,AUTUMN HOUSE CARE LTD,,
Revenue,Adult Services,Central Services,Emergency Planning,5105710451,15.06.2022,NHS C19 Residential,Charges from Independent Providers,"3,240.16",ISLANDCARE LTD,,
Revenue,Adult Services,Central Services,Emergency Planning,5105710451,15.06.2022,NHS C19 Residential,Charges from Independent Providers,"3,240.16",ISLANDCARE LTD,,
Revenue,Adult Services,Central Services,Emergency Planning,5105711018,17.06.2022,NHS C19 Residential,Charges from Independent Providers,"3,240.16",VENETIAN HEALTHCARE LTD,,
Revenue,Adult Services,Central Services,Emergency Planning,5105711345,22.06.2022,NHS C19 Residential,Charges from Independent Providers,"3,095.12",KITE HILL NURSING HOME,,
Revenue,Adult Services,Central Services,Emergency Planning,5105711345,22.06.2022,NHS C19 Residential,Charges from Independent Providers,"3,095.12",KITE HILL NURSING HOME,,
Revenue,Adult Services,Central Services,Emergency Planning,5105711345,22.06.2022,NHS C19 Residential,Charges from Independent Providers,"3,095.12",KITE HILL NURSING HOME,,
Revenue,Adult Services,Central Services,Emergency Planning,5105711491,24.06.2022,NHS C19 Residential,Charges from Independent Providers,"3,095.12",KITE HILL NURSING HOME,,
Revenue,Adult Services,Central Services,Emergency Planning,5105711951,29.06.2022,NHS C19 Residential,Charges from Independent Providers,"1,388.64",OAKRAY CARE LTD,,
Revenue,Adult Services,Central Services,Emergency Planning,5105712074,29.06.2022,NHS C19 Residential,Charges from Independent Providers,"3,240.16",VENETIAN HEALTHCARE LTD,,
Revenue,Adult Services,Central Services,Emergency Planning,5105711420,22.06.2022,NHS C19 Residential,Charges from Independent Providers,"3,095.12",KITE HILL NURSING HOME,,
Revenue,Adult Services,Central Services,Emergency Planning,5105710451,15.06.2022,NHS C19 Residential,Charges from Independent Providers,"3,095.12",ISLANDCARE LTD,,
Revenue,Adult Services,Central Services,Emergency Planning,5105710450,15.06.2022,NHS C19 Residential,Charges from Independent Providers,"3,840.20",OLD CHARLTON HOUSE CARE HOME,,
Revenue,Adult Services,Central Services,Emergency Planning,5105710399,10.06.2022,NHS C19 Residential,Charges from Independent Providers,"3,095.12",MENTFADE LTD,,
Revenue,Adult Services,Central Services,Emergency Planning,5105710451,15.06.2022,NHS C19 Residential,Charges from Independent Providers,"3,095.12",ISLANDCARE LTD,,
Revenue,Adult Services,Central Services,Emergency Planning,5105710451,15.06.2022,NHS C19 Residential,Charges from Independent Providers,"3,095.12",ISLANDCARE LTD,,
Revenue,Adult Services,Central Services,Emergency Planning,5105712263,29.06.2022,NHS C19 Nursing,Charges from Independent Providers,"4,800.04",PEGMAR LIMITED (ST ANNE'S),,
Revenue,Adult Services,Central Services,Emergency Planning,5105711790,24.06.2022,NHS C19 Nursing,Charges from Independent Providers,"3,240.16",HC ONE LIMITED (CHANDLER'S FORD),,
Revenue,Adult Services,Central Services,Emergency Planning,5105711790,24.06.2022,NHS C19 Nursing,Charges from Independent Providers,"3,240.16",HC ONE LIMITED (CHANDLER'S FORD),,
Revenue,Adult Services,Central Services,Emergency Planning,5105711790,24.06.2022,NHS C19 Nursing,Charges from Independent Providers,"3,978.24",HC ONE LIMITED (CHANDLER'S FORD),,
Revenue,Adult Services,Central Services,Emergency Planning,5105711790,24.06.2022,NHS C19 Nursing,Charges from Independent Providers,"3,978.24",HC ONE LIMITED (CHANDLER'S FORD),,
Revenue,Adult Services,Central Services,Emergency Planning,5105711790,24.06.2022,NHS C19 Nursing,Charges from Independent Providers,"2,042.95",HC ONE LIMITED (CHANDLER'S FORD),,
Revenue,Adult Services,Central Services,Emergency Planning,5105711866,29.06.2022,NHS C19 Nursing,Charges from Independent Providers,"4,800.04",PEGMAR LIMITED (ST ANNE'S),,
Revenue,Adult Services,Central Services,Emergency Planning,5105711019,17.06.2022,NHS C19 Nursing,Charges from Independent Providers,"5,800.20",THE ORCHARD HOUSE CARE HOME,,
Revenue,Adult Services,Central Services,Emergency Planning,5105712263,29.06.2022,NHS C19 Nursing,Charges from Independent Providers,"4,800.04",PEGMAR LIMITED (ST ANNE'S),,
Revenue,Adult Services,Adult Social Care,Social Support - Support for Carer,5105708383,10.06.2022,BCF Carers Services,Grants to External Bodies,"70,361.50",CARERS IW,,
Revenue,Adult Services,Adult Social Care,Social Care Activities,5105709479,17.06.2022,Hospital Team,Agency staff,"1,734.91",MATRIX SCM LTD,,
Revenue,Adult Services,Adult Social Care,Social Care Activities,5105709157,08.06.2022,Hospital Team,Agency staff,"1,684.78",MATRIX SCM LTD,,
Revenue,Adult Services,Adult Social Care,Social Care Activities,5105710718,15.06.2022,Hospital Team,Agency staff,"1,684.33",MATRIX SCM LTD,,
Revenue,Adult Services,Adult Social Care,Social Care Activities,5105711395,22.06.2022,Hospital Team,Agency staff,"1,017.68",MATRIX SCM LTD,,
Revenue,Adult Services,Adult Social Care,Social Care Activities,5105703792,01.06.2022,Hospital Team,Stationery,17.48,BATES OFFICE SERVICES LIMITED,,
Revenue,Adult Services,Adult Social Care,Social Care Activities,5105710635,15.06.2022,Hospital Team,Stationery,11.90,BETA PAK LTD,,
Revenue,Adult Services,Adult Social Care,Social Care Activities,5105710635,15.06.2022,Hospital Team,Stationery,0.78,BETA PAK LTD,,
Revenue,Adult Services,Adult Social Care,Social Care Activities,5105711006,17.06.2022,Hospital Team,Stationery,26.98,BETA PAK LTD,,
Revenue,Adult Services,Adult Social Care,Social Care Activities,5105709453,15.06.2022,Hospital Team,Stationery,5.65,BETA PAK LTD,,
Revenue,Adult Services,Adult Social Care,Social Care Activities,5105710587,22.06.2022,Hospital Team,Vehicle Maintenance Costs,10.00,DASHWITNESS LTD,,
Revenue,Adult Services,Adult Social Care,Social Care Activities,5105709479,17.06.2022,IASCC Team,Agency staff,"1,769.73",MATRIX SCM LTD,,
Revenue,Adult Services,Adult Social Care,Social Care Activities,5105709157,08.06.2022,IASCC Team,Agency staff,"1,769.73",MATRIX SCM LTD,,
Revenue,Adult Services,Adult Social Care,Social Care Activities,5105710718,15.06.2022,IASCC Team,Agency staff,"1,769.73",MATRIX SCM LTD,,
Revenue,Adult Services,Adult Social Care,Social Care Activities,5105711395,22.06.2022,IASCC Team,Agency staff,"1,100.10",MATRIX SCM LTD,,
Revenue,Adult Services,Adult Social Care,Social Care Activities,5105709479,17.06.2022,IASCC Team,Agency staff,"1,690.16",MATRIX SCM LTD,,
Revenue,Adult Services,Adult Social Care,Social Care Activities,5105709157,08.06.2022,IASCC Team,Agency staff,"1,690.16",MATRIX SCM LTD,,
Revenue,Adult Services,Adult Social Care,Social Care Activities,5105710718,15.06.2022,IASCC Team,Agency staff,"1,690.16",MATRIX SCM LTD,,
Revenue,Adult Services,Adult Social Care,Social Care Activities,5105711395,22.06.2022,IASCC Team,Agency staff,"1,027.80",MATRIX SCM LTD,,
Revenue,Adult Services,Adult Social Care,Social Care Activities,5105711063,29.06.2022,LD Team,Public Transport Fares,21.00,RED FUNNEL GROUP,,
Revenue,Adult Services,Adult Social Care,Social Care Activities,5105711065,29.06.2022,LD Team,Public Transport Fares,21.00,RED FUNNEL GROUP,,
Revenue,Adult Services,Adult Social Care,Social Care Activities,5105711786,24.06.2022,LD Team,Public Transport Fares,21.00,RED FUNNEL GROUP,,
Revenue,Adult Services,Adult Social Care,Social Care Activities,5105711916,29.06.2022,LD Team,Public Transport Fares,-21.00,RED FUNNEL GROUP,,
Revenue,Adult Services,Adult Social Care,Social Care Activities,5105711917,29.06.2022,LD Team,Public Transport Fares,-21.00,RED FUNNEL GROUP,,
Revenue,Adult Services,Adult Social Care,Social Care Activities,5105709157,08.06.2022,Integrated Locality Services - West/Cent,Agency staff,"3,374.06",MATRIX SCM LTD,,
Revenue,Adult Services,Adult Social Care,Social Care Activities,5105709479,17.06.2022,Integrated Locality Services - West/Cent,Agency staff,"1,738.12",MATRIX SCM LTD,,
Revenue,Adult Services,Adult Social Care,Social Care Activities,5105709157,08.06.2022,Integrated Locality Services - West/Cent,Agency staff,"1,739.02",MATRIX SCM LTD,,
Revenue,Adult Services,Adult Social Care,Social Care Activities,5105710718,15.06.2022,Integrated Locality Services - West/Cent,Agency staff,"1,723.27",MATRIX SCM LTD,,
Revenue,Adult Services,Adult Social Care,Social Care Activities,5105711395,22.06.2022,Integrated Locality Services - West/Cent,Agency staff,"1,120.80",MATRIX SCM LTD,,
Revenue,Adult Services,Adult Social Care,Social Care Activities,5105709479,17.06.2022,Integrated Locality Services -North East,Agency staff,"1,690.16",MATRIX SCM LTD,,
Revenue,Adult Services,Adult Social Care,Social Care Activities,5105709157,08.06.2022,Integrated Locality Services -North East,Agency staff,"1,690.16",MATRIX SCM LTD,,
Revenue,Adult Services,Adult Social Care,Social Care Activities,5105710718,15.06.2022,Integrated Locality Services -North East,Agency staff,"1,690.16",MATRIX SCM LTD,,
Revenue,Adult Services,Adult Social Care,Social Care Activities,5105709514,01.06.2022,Service Manager Principle Social Worker,Professional Services,"1,250.00",REDACTED PERSONAL DATA,,
Revenue,Adult Services,Adult Social Care,Social Care Activities,5105710759,15.06.2022,Service Manager Principle Social Worker,Professional Services,"1,250.00",REDACTED PERSONAL DATA,,
Revenue,Adult Services,Adult Social Care,Social Care Activities,5105711978,29.06.2022,Service Manager Principle Social Worker,Professional Services,"1,250.00",REDACTED PERSONAL DATA,,
Revenue,Adult Services,Adult Social Care,Central Codes (to be reallocated),5105710746,15.06.2022,Community Reablement,Vehicle Maintenance Costs,89.00,DH PRICE MOTORS,,
Revenue,Adult Services,Adult Social Care,Central Codes (to be reallocated),5105710982,17.06.2022,Community Reablement,Vehicle Maintenance Costs,81.00,DH PRICE MOTORS,,
Revenue,Adult Services,Adult Social Care,Central Codes (to be reallocated),5105710983,29.06.2022,Community Reablement,Vehicle Maintenance Costs,85.00,DH PRICE MOTORS,,
Revenue,Adult Services,Adult Social Care,Central Codes (to be reallocated),5105711837,29.06.2022,Community Reablement,Property Services - Day to day Maintenance,59.66,MOUNTJOY LTD,,
Revenue,Adult Services,Adult Social Care,Central Codes (to be reallocated),5105711064,17.06.2022,Community Reablement,Computer Software Licencing,"2,233.00",ACCESS UK LTD,,
Revenue,Adult Services,Adult Social Care,Central Codes (to be reallocated),5105710587,22.06.2022,Community Reablement,Vehicle Maintenance Costs,10.00,DASHWITNESS LTD,,
Revenue,Adult Services,Adult Social Care,Central Codes (to be reallocated),5105710587,22.06.2022,Community Reablement,Vehicle Maintenance Costs,10.00,DASHWITNESS LTD,,
Revenue,Adult Services,Adult Social Care,Central Codes (to be reallocated),5105710587,22.06.2022,Community Reablement,Vehicle Maintenance Costs,10.00,DASHWITNESS LTD,,
Revenue,Adult Services,Adult Social Care,Central Codes (to be reallocated),5105710587,22.06.2022,Community Reablement,Vehicle Maintenance Costs,10.00,DASHWITNESS LTD,,
Revenue,Adult Services,Adult Social Care,Central Codes (to be reallocated),5105710587,22.06.2022,Community Reablement,Vehicle Maintenance Costs,10.00,DASHWITNESS LTD,,
Revenue,Adult Services,Adult Social Care,Central Codes (to be reallocated),5105710587,22.06.2022,Community Reablement,Vehicle Maintenance Costs,10.00,DASHWITNESS LTD,,
Revenue,Adult Services,Adult Social Care,Central Codes (to be reallocated),5105710587,22.06.2022,Community Reablement,Vehicle Maintenance Costs,10.00,DASHWITNESS LTD,,
Revenue,Adult Services,Adult Social Care,Central Codes (to be reallocated),5105710587,22.06.2022,Community Reablement,Vehicle Maintenance Costs,10.00,DASHWITNESS LTD,,
Revenue,Adult Services,Adult Social Care,Central Codes (to be reallocated),5105710587,22.06.2022,Community Reablement,Vehicle Maintenance Costs,10.00,DASHWITNESS LTD,,
Revenue,Adult Services,Adult Social Care,Central Codes (to be reallocated),5105710587,22.06.2022,Community Reablement,Vehicle Maintenance Costs,10.00,DASHWITNESS LTD,,
Revenue,Adult Services,Adult Social Care,Central Codes (to be reallocated),5105710587,22.06.2022,Community Reablement,Vehicle Maintenance Costs,10.00,DASHWITNESS LTD,,
Revenue,Adult Services,Adult Social Care,Central Codes (to be reallocated),5105710587,22.06.2022,Community Reablement,Vehicle Maintenance Costs,10.00,DASHWITNESS LTD,,
Revenue,Adult Services,Adult Social Care,Central Codes (to be reallocated),5105710587,22.06.2022,Community Reablement,Vehicle Maintenance Costs,10.00,DASHWITNESS LTD,,
Revenue,Adult Services,Adult Social Care,Central Codes (to be reallocated),5105710587,22.06.2022,Community Reablement,Vehicle Maintenance Costs,10.00,DASHWITNESS LTD,,
Revenue,Adult Services,Adult Social Care,Central Codes (to be reallocated),5105710587,22.06.2022,Community Reablement,Vehicle Maintenance Costs,10.00,DASHWITNESS LTD,,
Revenue,Adult Services,Adult Social Care,Central Codes (to be reallocated),5105710587,22.06.2022,Community Reablement,Vehicle Maintenance Costs,10.00,DASHWITNESS LTD,,
Revenue,Adult Services,Adult Social Care,Central Codes (to be reallocated),5105710587,22.06.2022,Community Reablement,Vehicle Maintenance Costs,10.00,DASHWITNESS LTD,,
Revenue,Adult Services,Adult Social Care,Central Codes (to be reallocated),5105710587,22.06.2022,Community Reablement,Vehicle Maintenance Costs,10.00,DASHWITNESS LTD,,
Revenue,Adult Services,Adult Social Care,Central Codes (to be reallocated),5105710587,22.06.2022,Community Reablement,Vehicle Maintenance Costs,10.00,DASHWITNESS LTD,,
Revenue,Adult Services,Adult Social Care,Central Codes (to be reallocated),5105710587,22.06.2022,Community Reablement,Vehicle Maintenance Costs,10.00,DASHWITNESS LTD,,
Revenue,Adult Services,Adult Social Care,Central Codes (to be reallocated),5105710616,15.06.2022,Community Reablement,Mobile Telecoms,407.99,INSIGHT DIRECT (UK) LTD,,
Revenue,Adult Services,Adult Social Care,Central Codes (to be reallocated),5105711241,22.06.2022,Community Reablement,Vehicle Maintenance Costs,687.05,DH PRICE MOTORS,,
Revenue,Adult Services,Adult Social Care,Central Codes (to be reallocated),5105711241,22.06.2022,Community Reablement,Vehicle Maintenance Costs,49.50,DH PRICE MOTORS,,
Revenue,Adult Services,Adult Social Care,Central Codes (to be reallocated),5105711372,22.06.2022,Community Reablement,Vehicle Maintenance Costs,601.29,DH PRICE MOTORS,,
Revenue,Adult Services,Adult Social Care,Central Codes (to be reallocated),5105711372,22.06.2022,Community Reablement,Vehicle Maintenance Costs,49.50,DH PRICE MOTORS,,
Revenue,Adult Services,Adult Social Care,Central Codes (to be reallocated),5105711384,22.06.2022,Community Reablement,Vehicle Maintenance Costs,238.34,DH PRICE MOTORS,,
Revenue,Adult Services,Adult Social Care,Central Codes (to be reallocated),5105711384,22.06.2022,Community Reablement,Vehicle Maintenance Costs,33.00,DH PRICE MOTORS,,
Revenue,Adult Services,Adult Social Care,Central Codes (to be reallocated),5105711012,17.06.2022,Community Reablement,Stationery,40.47,BETA PAK LTD,,
Revenue,Adult Services,Adult Social Care,Central Codes (to be reallocated),5105710627,15.06.2022,Community Reablement,Stationery,21.82,BETA PAK LTD,,
Revenue,Adult Services,Adult Social Care,Central Codes (to be reallocated),5105710627,15.06.2022,Community Reablement,Stationery,75.56,BETA PAK LTD,,
Revenue,Adult Services,Adult Social Care,Central Codes (to be reallocated),5105710378,10.06.2022,Community Reablement,Stationery,14.00,BETA PAK LTD,,
Revenue,Adult Services,Adult Social Care,Central Codes (to be reallocated),5105711766,24.06.2022,Community Reablement,Agency staff,"1,251.25",ID MEDICAL GROUP,,
Revenue,Adult Services,Adult Social Care,Central Codes (to be reallocated),5105711766,24.06.2022,Community Reablement,Agency staff,319.38,ID MEDICAL GROUP,,
Revenue,Adult Services,Adult Social Care,Central Codes (to be reallocated),5105711168,22.06.2022,Community Reablement,Office Equipment,25.80,WIGHT CRYSTAL,,
Revenue,Adult Services,Adult Social Care,Central Codes (to be reallocated),5105711168,22.06.2022,Community Reablement,Office Equipment,28.80,WIGHT CRYSTAL,,
Revenue,Adult Services,Adult Social Care,Central Codes (to be reallocated),5105711217,22.06.2022,Community Reablement,Office Equipment,-28.80,WIGHT CRYSTAL,,
Revenue,Adult Services,Adult Social Care,Central Codes (to be reallocated),5105711013,17.06.2022,Adelaide Resource Centre,Stationery,26.98,BETA PAK LTD,,
Revenue,Adult Services,Adult Social Care,Central Codes (to be reallocated),5105711280,22.06.2022,Adelaide Resource Centre,Stationery,26.98,BETA PAK LTD,,
Revenue,Adult Services,Adult Social Care,Central Codes (to be reallocated),5105711808,24.06.2022,Adelaide Resource Centre,Stationery,3.96,BETA PAK LTD,,
Revenue,Adult Services,Adult Social Care,Central Codes (to be reallocated),5105707092,01.06.2022,Adelaide Resource Centre,Cleaning Contracts,193.69,PHS GROUP PLC,,
Revenue,Adult Services,Adult Social Care,Central Codes (to be reallocated),5105710020,24.06.2022,Adelaide Resource Centre,Cleaning Contracts,193.69,PHS GROUP PLC,,
Revenue,Adult Services,Adult Social Care,Central Codes (to be reallocated),5105711184,22.06.2022,Adelaide Resource Centre,Recruitment Advertising,47.04,NEWSQUEST MEDIA GROUP LTD,,
Revenue,Adult Services,Adult Social Care,Central Codes (to be reallocated),5105709339,01.06.2022,Adelaide Resource Centre,Stationery,26.98,BETA PAK LTD,,
Revenue,Adult Services,Adult Social Care,Central Codes (to be reallocated),5105711409,24.06.2022,Adelaide Resource Centre,Stationery,26.98,BETA PAK LTD,,
Revenue,Adult Services,Adult Social Care,Central Codes (to be reallocated),5105710587,22.06.2022,Adelaide Resource Centre,Vehicle Maintenance Costs,10.00,DASHWITNESS LTD,,
Revenue,Adult Services,Adult Social Care,Central Codes (to be reallocated),5105710587,22.06.2022,Adelaide Resource Centre,Vehicle Maintenance Costs,10.00,DASHWITNESS LTD,,
Revenue,Adult Services,Adult Social Care,Central Codes (to be reallocated),5105709291,01.06.2022,Adelaide Resource Centre,"Refuse Collection, Disposal and Recycling Costs","1,231.02",BIFFA WASTE SERVICES LTD,,
Revenue,Adult Services,Adult Social Care,Central Codes (to be reallocated),5105709290,01.06.2022,Adelaide Resource Centre,"Refuse Collection, Disposal and Recycling Costs",236.99,BIFFA WASTE SERVICES LTD,,
Revenue,Adult Services,Adult Social Care,Central Codes (to be reallocated),5105710511,22.06.2022,Adelaide Resource Centre,Property Services - Planned Maintenance,966.40,F W MARSH (ELECT & MECH) LTD,,
Revenue,Adult Services,Adult Social Care,Central Codes (to be reallocated),5105709461,10.06.2022,Adelaide Resource Centre,Property Services - Planned Maintenance,210.00,AIRTEK SERVICES IOW LTD,,
Revenue,Adult Services,Adult Social Care,Central Codes (to be reallocated),5105709876,29.06.2022,Adelaide Resource Centre,Property Services - Planned Maintenance,65.00,TEMPLE LIFTS LTD,,
Revenue,Adult Services,Adult Social Care,Central Codes (to be reallocated),5105711839,29.06.2022,Adelaide Resource Centre,Property Services - Day to day Maintenance,138.46,MOUNTJOY LTD,,
Revenue,Adult Services,Adult Social Care,Central Codes (to be reallocated),5105709857,08.06.2022,Adelaide Resource Centre,Operational Equipment,117.48,CATER WIGHT,,
Revenue,Adult Services,Adult Social Care,Central Codes (to be reallocated),5105710710,15.06.2022,Adelaide Resource Centre,Operational Equipment,141.36,CATER WIGHT,,
Revenue,Adult Services,Adult Social Care,Central Codes (to be reallocated),5105710638,22.06.2022,Adelaide Resource Centre,Operational Equipment,450.00,BETA PAK LTD,,
Revenue,Adult Services,Adult Social Care,Central Codes (to be reallocated),5105710376,10.06.2022,Adelaide Resource Centre,Consumable Cleaning Materials,117.47,BETA PAK LTD,,
Revenue,Adult Services,Adult Social Care,Central Codes (to be reallocated),5105711955,29.06.2022,Adelaide Resource Centre,Consumable Cleaning Materials,238.65,BETA PAK LTD,,
Revenue,Adult Services,Adult Social Care,Central Codes (to be reallocated),5105712053,29.06.2022,Adelaide Resource Centre,Consumable Cleaning Materials,153.80,BETA PAK LTD,,
Revenue,Adult Services,Adult Social Care,Central Codes (to be reallocated),5105712319,29.06.2022,Adelaide Resource Centre,Consumable Cleaning Materials,32.84,BETA PAK LTD,,
Revenue,Adult Services,Adult Social Care,Central Codes (to be reallocated),5105712320,29.06.2022,Adelaide Resource Centre,Consumable Cleaning Materials,85.12,BETA PAK LTD,,
Revenue,Adult Services,Adult Social Care,Central Codes (to be reallocated),5105710664,15.06.2022,Adelaide Resource Centre,Consumable Cleaning Materials,242.00,A & M APPLIANCE CARE,,
Revenue,Adult Services,Adult Social Care,Central Codes (to be reallocated),5105711043,17.06.2022,Adelaide Resource Centre,Maintenance of Operational Equipment,54.00,ISLAND MOBILITY,,
Revenue,Adult Services,Adult Social Care,Central Codes (to be reallocated),5105712037,29.06.2022,Adelaide Resource Centre,Agency staff,176.92,NEWCROSS HELATHCARE SOLUTIONS LTD,,
Revenue,Adult Services,Adult Social Care,Central Codes (to be reallocated),5105710022,08.06.2022,Adelaide Resource Centre,Catering Purchases,61.38,FARMHOUSE FAYRE (NEWPORT) LIMITED,,
Revenue,Adult Services,Adult Social Care,Central Codes (to be reallocated),5105710389,10.06.2022,Adelaide Resource Centre,Catering Purchases,30.10,FARMHOUSE FAYRE (NEWPORT) LIMITED,,
Revenue,Adult Services,Adult Social Care,Central Codes (to be reallocated),5105710990,17.06.2022,Adelaide Resource Centre,Catering Purchases,47.68,FARMHOUSE FAYRE (NEWPORT) LIMITED,,
Revenue,Adult Services,Adult Social Care,Central Codes (to be reallocated),5105712322,29.06.2022,Adelaide Resource Centre,Catering Purchases,53.82,FARMHOUSE FAYRE (NEWPORT) LIMITED,,
Revenue,Adult Services,Adult Social Care,Central Codes (to be reallocated),5105711034,17.06.2022,Adelaide Resource Centre,Catering Purchases,44.33,FARMHOUSE FAYRE (NEWPORT) LIMITED,,
Revenue,Adult Services,Adult Social Care,Central Codes (to be reallocated),5105711195,22.06.2022,Adelaide Resource Centre,Catering Purchases,29.56,FARMHOUSE FAYRE (NEWPORT) LIMITED,,
Revenue,Adult Services,Adult Social Care,Central Codes (to be reallocated),5105711411,22.06.2022,Adelaide Resource Centre,Catering Purchases,10.60,FARMHOUSE FAYRE (NEWPORT) LIMITED,,
Revenue,Adult Services,Adult Social Care,Central Codes (to be reallocated),5105711675,24.06.2022,Adelaide Resource Centre,Catering Purchases,48.84,FARMHOUSE FAYRE (NEWPORT) LIMITED,,
Revenue,Adult Services,Adult Social Care,Central Codes (to be reallocated),5105711894,29.06.2022,Adelaide Resource Centre,Catering Purchases,30.21,FARMHOUSE FAYRE (NEWPORT) LIMITED,,
Revenue,Adult Services,Adult Social Care,Central Codes (to be reallocated),5105711935,29.06.2022,Adelaide Resource Centre,Catering Purchases,37.98,FARMHOUSE FAYRE (NEWPORT) LIMITED,,
Revenue,Adult Services,Adult Social Care,Central Codes (to be reallocated),5105711839,29.06.2022,Adelaide Resource Centre,Property Services - Day to day Maintenance,41.50,MOUNTJOY LTD,,
Revenue,Adult Services,Adult Social Care,Central Codes (to be reallocated),5105710025,08.06.2022,Adelaide Resource Centre,Catering Purchases,437.32,MEDINA FOODSERVICE T/A MEDINA QUAY MEATS,,
Revenue,Adult Services,Adult Social Care,Central Codes (to be reallocated),5105712391,29.06.2022,Adelaide Resource Centre,Catering Purchases,68.78,MEDINA FOODSERVICE T/A MEDINA QUAY MEATS,,
Revenue,Adult Services,Adult Social Care,Central Codes (to be reallocated),5105712057,29.06.2022,Adelaide Resource Centre,Catering Purchases,43.71,MEDINA FOODSERVICE T/A MEDINA QUAY MEATS,,
Revenue,Adult Services,Adult Social Care,Central Codes (to be reallocated),5105712059,29.06.2022,Adelaide Resource Centre,Catering Purchases,203.97,MEDINA FOODSERVICE T/A MEDINA QUAY MEATS,,
Revenue,Adult Services,Adult Social Care,Central Codes (to be reallocated),5105712390,29.06.2022,Adelaide Resource Centre,Catering Purchases,16.20,MEDINA FOODSERVICE T/A MEDINA QUAY MEATS,,
Revenue,Adult Services,Adult Social Care,Central Codes (to be reallocated),5105711697,24.06.2022,Adelaide Resource Centre,Catering Purchases,36.21,MEDINA FOODSERVICE T/A MEDINA QUAY MEATS,,
Revenue,Adult Services,Adult Social Care,Central Codes (to be reallocated),5105711713,24.06.2022,Adelaide Resource Centre,Catering Purchases,43.71,MEDINA FOODSERVICE T/A MEDINA QUAY MEATS,,
Revenue,Adult Services,Adult Social Care,Central Codes (to be reallocated),5105711714,24.06.2022,Adelaide Resource Centre,Catering Purchases,485.08,MEDINA FOODSERVICE T/A MEDINA QUAY MEATS,,
Revenue,Adult Services,Adult Social Care,Central Codes (to be reallocated),5105711931,29.06.2022,Adelaide Resource Centre,Catering Purchases,10.95,MEDINA FOODSERVICE T/A MEDINA QUAY MEATS,,
Revenue,Adult Services,Adult Social Care,Central Codes (to be reallocated),5105711932,29.06.2022,Adelaide Resource Centre,Catering Purchases,178.43,MEDINA FOODSERVICE T/A MEDINA QUAY MEATS,,
Revenue,Adult Services,Adult Social Care,Central Codes (to be reallocated),5105711193,22.06.2022,Adelaide Resource Centre,Catering Purchases,74.39,MEDINA FOODSERVICE T/A MEDINA QUAY MEATS,,
Revenue,Adult Services,Adult Social Care,Central Codes (to be reallocated),5105711696,24.06.2022,Adelaide Resource Centre,Catering Purchases,43.71,MEDINA FOODSERVICE T/A MEDINA QUAY MEATS,,
Revenue,Adult Services,Adult Social Care,Central Codes (to be reallocated),5105710777,17.06.2022,Adelaide Resource Centre,Catering Purchases,36.18,MEDINA FOODSERVICE T/A MEDINA QUAY MEATS,,
Revenue,Adult Services,Adult Social Care,Central Codes (to be reallocated),5105710778,17.06.2022,Adelaide Resource Centre,Catering Purchases,43.71,MEDINA FOODSERVICE T/A MEDINA QUAY MEATS,,
Revenue,Adult Services,Adult Social Care,Central Codes (to be reallocated),5105710779,17.06.2022,Adelaide Resource Centre,Catering Purchases,17.87,MEDINA FOODSERVICE T/A MEDINA QUAY MEATS,,
Revenue,Adult Services,Adult Social Care,Central Codes (to be reallocated),5105711192,22.06.2022,Adelaide Resource Centre,Catering Purchases,16.67,MEDINA FOODSERVICE T/A MEDINA QUAY MEATS,,
Revenue,Adult Services,Adult Social Care,Central Codes (to be reallocated),5105710590,15.06.2022,Adelaide Resource Centre,Catering Purchases,96.38,MEDINA FOODSERVICE T/A MEDINA QUAY MEATS,,
Revenue,Adult Services,Adult Social Care,Central Codes (to be reallocated),5105710591,15.06.2022,Adelaide Resource Centre,Catering Purchases,9.78,MEDINA FOODSERVICE T/A MEDINA QUAY MEATS,,
Revenue,Adult Services,Adult Social Care,Central Codes (to be reallocated),5105710763,15.06.2022,Adelaide Resource Centre,Catering Purchases,37.92,MEDINA FOODSERVICE T/A MEDINA QUAY MEATS,,
Revenue,Adult Services,Adult Social Care,Central Codes (to be reallocated),5105710764,17.06.2022,Adelaide Resource Centre,Catering Purchases,287.92,MEDINA FOODSERVICE T/A MEDINA QUAY MEATS,,
Revenue,Adult Services,Adult Social Care,Central Codes (to be reallocated),5105710026,08.06.2022,Adelaide Resource Centre,Catering Purchases,37.92,MEDINA FOODSERVICE T/A MEDINA QUAY MEATS,,
Revenue,Adult Services,Adult Social Care,Central Codes (to be reallocated),5105710097,08.06.2022,Adelaide Resource Centre,Catering Purchases,158.75,MEDINA FOODSERVICE T/A MEDINA QUAY MEATS,,
Revenue,Adult Services,Adult Social Care,Central Codes (to be reallocated),5105710098,08.06.2022,Adelaide Resource Centre,Catering Purchases,9.78,MEDINA FOODSERVICE T/A MEDINA QUAY MEATS,,
Revenue,Adult Services,Adult Social Care,Central Codes (to be reallocated),5105710172,10.06.2022,Adelaide Resource Centre,Catering Purchases,66.89,MEDINA FOODSERVICE T/A MEDINA QUAY MEATS,,
Revenue,Adult Services,Adult Social Care,Central Codes (to be reallocated),5105710173,10.06.2022,Adelaide Resource Centre,Catering Purchases,37.92,MEDINA FOODSERVICE T/A MEDINA QUAY MEATS,,
Revenue,Adult Services,Adult Social Care,Central Codes (to be reallocated),5105710764,17.06.2022,Adelaide Resource Centre,Catering Purchases,32.06,MEDINA FOODSERVICE T/A MEDINA QUAY MEATS,,
Revenue,Adult Services,Adult Social Care,Central Codes (to be reallocated),5105711714,24.06.2022,Adelaide Resource Centre,Catering Purchases,12.15,MEDINA FOODSERVICE T/A MEDINA QUAY MEATS,,
Revenue,Adult Services,Adult Social Care,Central Codes (to be reallocated),5105712059,29.06.2022,Adelaide Resource Centre,Catering Purchases,26.23,MEDINA FOODSERVICE T/A MEDINA QUAY MEATS,,
Revenue,Adult Services,Adult Social Care,Central Codes (to be reallocated),5105710025,08.06.2022,Adelaide Resource Centre,Catering Purchases,40.09,MEDINA FOODSERVICE T/A MEDINA QUAY MEATS,,
Revenue,Adult Services,Adult Social Care,Central Codes (to be reallocated),5105711839,29.06.2022,Adelaide Resource Centre,Property Services - Day to day Maintenance,572.25,MOUNTJOY LTD,,
Revenue,Adult Services,Adult Social Care,Central Codes (to be reallocated),5105710521,17.06.2022,Adelaide Resource Centre,Property Services - Day to day Maintenance,24.00,URBAN ENVIRONMENTS LTD,,
Revenue,Adult Services,Adult Social Care,Central Codes (to be reallocated),5105710519,17.06.2022,Adelaide Resource Centre,Property Services - Day to day Maintenance,184.00,URBAN ENVIRONMENTS LTD,,
Revenue,Adult Services,Adult Social Care,Central Codes (to be reallocated),5105710991,22.06.2022,Adelaide Resource Centre,Property Services - Day to day Maintenance,277.50,URBAN ENVIRONMENTS LTD,,
Revenue,Adult Services,Adult Social Care,Central Codes (to be reallocated),5105710518,17.06.2022,Adelaide Resource Centre,Property Services - Day to day Maintenance,24.00,URBAN ENVIRONMENTS LTD,,
Revenue,Adult Services,Adult Social Care,Central Codes (to be reallocated),5105710989,22.06.2022,Adelaide Resource Centre,Property Services - Day to day Maintenance,160.00,URBAN ENVIRONMENTS LTD,,
Revenue,Adult Services,Adult Social Care,Central Codes (to be reallocated),5105710992,24.06.2022,Adelaide Resource Centre,Property Services - Day to day Maintenance,24.00,URBAN ENVIRONMENTS LTD,,
Revenue,Adult Services,Adult Social Care,Central Codes (to be reallocated),5105710520,15.06.2022,Adelaide Resource Centre,Property Services - Day to day Maintenance,8.00,URBAN ENVIRONMENTS LTD,,
Revenue,Adult Services,Adult Social Care,Central Codes (to be reallocated),5105707234,15.06.2022,Adelaide Resource Centre,Property Services - Day to day Maintenance,160.00,URBAN ENVIRONMENTS LTD,,
Revenue,Adult Services,Adult Social Care,Central Codes (to be reallocated),5105707325,15.06.2022,Adelaide Resource Centre,Property Services - Day to day Maintenance,48.00,URBAN ENVIRONMENTS LTD,,
Revenue,Adult Services,Adult Social Care,Central Codes (to be reallocated),5105707235,15.06.2022,Adelaide Resource Centre,Property Services - Day to day Maintenance,8.00,URBAN ENVIRONMENTS LTD,,
Revenue,Adult Services,Adult Social Care,Central Codes (to be reallocated),5105711139,22.06.2022,Adelaide Resource Centre,Property Services - Day to day Maintenance,16.00,URBAN ENVIRONMENTS LTD,,
Revenue,Adult Services,Adult Social Care,Central Codes (to be reallocated),5105711106,24.06.2022,Adelaide Resource Centre,Property Services - Day to day Maintenance,24.00,URBAN ENVIRONMENTS LTD,,
Revenue,Adult Services,Adult Social Care,Central Codes (to be reallocated),5105711139,22.06.2022,Gouldings Resource Centre,Property Services - Day to day Maintenance,56.00,URBAN ENVIRONMENTS LTD,,
Revenue,Adult Services,Adult Social Care,Central Codes (to be reallocated),5105707235,15.06.2022,Gouldings Resource Centre,Property Services - Day to day Maintenance,112.00,URBAN ENVIRONMENTS LTD,,
Revenue,Adult Services,Adult Social Care,Central Codes (to be reallocated),5105707234,15.06.2022,Gouldings Resource Centre,Property Services - Day to day Maintenance,40.00,URBAN ENVIRONMENTS LTD,,
Revenue,Adult Services,Adult Social Care,Central Codes (to be reallocated),5105707233,15.06.2022,Gouldings Resource Centre,Property Services - Day to day Maintenance,37.00,URBAN ENVIRONMENTS LTD,,
Revenue,Adult Services,Adult Social Care,Central Codes (to be reallocated),5105710989,22.06.2022,Gouldings Resource Centre,Property Services - Day to day Maintenance,72.00,URBAN ENVIRONMENTS LTD,,
Revenue,Adult Services,Adult Social Care,Central Codes (to be reallocated),5105710992,24.06.2022,Gouldings Resource Centre,Property Services - Day to day Maintenance,24.00,URBAN ENVIRONMENTS LTD,,
Revenue,Adult Services,Adult Social Care,Central Codes (to be reallocated),5105710520,15.06.2022,Gouldings Resource Centre,Property Services - Day to day Maintenance,56.00,URBAN ENVIRONMENTS LTD,,
Revenue,Adult Services,Adult Social Care,Central Codes (to be reallocated),5105710991,22.06.2022,Gouldings Resource Centre,Property Services - Day to day Maintenance,185.00,URBAN ENVIRONMENTS LTD,,
Revenue,Adult Services,Adult Social Care,Central Codes (to be reallocated),5105710519,17.06.2022,Gouldings Resource Centre,Property Services - Day to day Maintenance,72.00,URBAN ENVIRONMENTS LTD,,
Revenue,Adult Services,Adult Social Care,Central Codes (to be reallocated),5105710669,17.06.2022,Gouldings Resource Centre,Agency staff,"1,969.88",NEWCROSS HEALTHCARE SOLUTIONS LTD,,
Revenue,Adult Services,Adult Social Care,Central Codes (to be reallocated),5105710377,15.06.2022,Gouldings Resource Centre,Consumable Cleaning Materials,475.21,BETA PAK LTD,,
Revenue,Adult Services,Adult Social Care,Central Codes (to be reallocated),5105710642,22.06.2022,Gouldings Resource Centre,Consumable Cleaning Materials,3.59,BETA PAK LTD,,
Revenue,Adult Services,Adult Social Care,Central Codes (to be reallocated),5105711721,24.06.2022,Gouldings Resource Centre,Consumable Cleaning Materials,360.57,BETA PAK LTD,,
Revenue,Adult Services,Adult Social Care,Central Codes (to be reallocated),5105712383,29.06.2022,Gouldings Resource Centre,Consumable Cleaning Materials,290.81,BETA PAK LTD,,
Revenue,Adult Services,Adult Social Care,Central Codes (to be reallocated),5105709917,08.06.2022,Gouldings Resource Centre,Catering Purchases,44.80,CHAPEL NURSERIES,,
Revenue,Adult Services,Adult Social Care,Central Codes (to be reallocated),5105709918,08.06.2022,Gouldings Resource Centre,Catering Purchases,48.30,CHAPEL NURSERIES,,
Revenue,Adult Services,Adult Social Care,Central Codes (to be reallocated),5105709919,08.06.2022,Gouldings Resource Centre,Catering Purchases,98.10,CHAPEL NURSERIES,,
Revenue,Adult Services,Adult Social Care,Central Codes (to be reallocated),5105709066,08.06.2022,Gouldings Resource Centre,Catering Purchases,72.20,MEDINA FOODSERVICE T/A MEDINA QUAY MEATS,,
Revenue,Adult Services,Adult Social Care,Central Codes (to be reallocated),5105710592,15.06.2022,Gouldings Resource Centre,Catering Purchases,211.57,MEDINA FOODSERVICE T/A MEDINA QUAY MEATS,,
Revenue,Adult Services,Adult Social Care,Central Codes (to be reallocated),5105710023,08.06.2022,Gouldings Resource Centre,Catering Purchases,123.69,MEDINA FOODSERVICE T/A MEDINA QUAY MEATS,,
Revenue,Adult Services,Adult Social Care,Central Codes (to be reallocated),5105710385,10.06.2022,Gouldings Resource Centre,Catering Purchases,128.19,MEDINA FOODSERVICE T/A MEDINA QUAY MEATS,,
Revenue,Adult Services,Adult Social Care,Central Codes (to be reallocated),5105710164,08.06.2022,Gouldings Resource Centre,Catering Purchases,149.92,MEDINA FOODSERVICE T/A MEDINA QUAY MEATS,,
Revenue,Adult Services,Adult Social Care,Central Codes (to be reallocated),5105710164,08.06.2022,Gouldings Resource Centre,Catering Purchases,19.71,MEDINA FOODSERVICE T/A MEDINA QUAY MEATS,,
Revenue,Adult Services,Adult Social Care,Central Codes (to be reallocated),5105710385,10.06.2022,Gouldings Resource Centre,Catering Purchases,43.35,MEDINA FOODSERVICE T/A MEDINA QUAY MEATS,,
Revenue,Adult Services,Adult Social Care,Central Codes (to be reallocated),5105710023,08.06.2022,Gouldings Resource Centre,Catering Purchases,20.10,MEDINA FOODSERVICE T/A MEDINA QUAY MEATS,,
Revenue,Adult Services,Adult Social Care,Central Codes (to be reallocated),5105709066,08.06.2022,Gouldings Resource Centre,Catering Purchases,34.28,MEDINA FOODSERVICE T/A MEDINA QUAY MEATS,,
Revenue,Adult Services,Adult Social Care,Central Codes (to be reallocated),5105709913,08.06.2022,Gouldings Resource Centre,Catering Purchases,186.07,3663 (BFS GROUP LTD),,
Revenue,Adult Services,Adult Social Care,Central Codes (to be reallocated),5105709914,08.06.2022,Gouldings Resource Centre,Catering Purchases,230.32,3663 (BFS GROUP LTD),,
Revenue,Adult Services,Adult Social Care,Central Codes (to be reallocated),5105709913,08.06.2022,Gouldings Resource Centre,Catering Purchases,26.76,3663 (BFS GROUP LTD),,
Revenue,Adult Services,Adult Social Care,Central Codes (to be reallocated),5105711839,29.06.2022,Gouldings Resource Centre,Property Services - Day to day Maintenance,433.12,MOUNTJOY LTD,,
Revenue,Adult Services,Adult Social Care,Central Codes (to be reallocated),5105711837,29.06.2022,Gouldings Resource Centre,Property Services - Day to day Maintenance,106.95,MOUNTJOY LTD,,
Revenue,Adult Services,Adult Social Care,Central Codes (to be reallocated),5105709854,08.06.2022,Gouldings Resource Centre,Property Services - Planned Maintenance,70.00,TEMPLE LIFTS LTD,,
Revenue,Adult Services,Adult Social Care,Central Codes (to be reallocated),5105710656,15.06.2022,Gouldings Resource Centre,Property Services - Day to day Maintenance,203.75,WIGHT FIRE CO LTD,,
Revenue,Adult Services,Adult Social Care,Central Codes (to be reallocated),5105710587,22.06.2022,Gouldings Resource Centre,Vehicle Maintenance Costs,10.00,DASHWITNESS LTD,,
Revenue,Adult Services,Adult Social Care,Central Codes (to be reallocated),5105710587,22.06.2022,Gouldings Resource Centre,Vehicle Maintenance Costs,10.00,DASHWITNESS LTD,,
Revenue,Adult Services,Adult Social Care,Central Codes (to be reallocated),5105709456,01.06.2022,Gouldings Resource Centre,Property Services - Day to day Maintenance,70.00,AIRTEK SERVICES IOW LTD,,
Revenue,Adult Services,Adult Social Care,Central Codes (to be reallocated),5105710170,10.06.2022,Gouldings Resource Centre,Property Services - Day to day Maintenance,190.00,F W MARSH (ELECT & MECH) LTD,,
Revenue,Adult Services,Adult Social Care,Central Codes (to be reallocated),5105711005,17.06.2022,Gouldings Resource Centre,Stationery,40.47,BETA PAK LTD,,
Revenue,Adult Services,Adult Social Care,Central Codes (to be reallocated),5105710555,15.06.2022,Gouldings Resource Centre,Stationery,4.50,BETA PAK LTD,,
Revenue,Adult Services,Adult Social Care,Central Codes (to be reallocated),5105711110,17.06.2022,Gouldings Resource Centre,Stationery,3.44,BETA PAK LTD,,
Revenue,Adult Services,Adult Social Care,Central Codes (to be reallocated),5105710555,15.06.2022,Gouldings Resource Centre,Stationery,9.70,BETA PAK LTD,,
Revenue,Adult Services,Adult Social Care,Central Codes (to be reallocated),5105710665,15.06.2022,Gouldings Resource Centre,Consumable Cleaning Materials,266.00,A & M APPLIANCE CARE,,
Revenue,Adult Services,Adult Social Care,Central Codes (to be reallocated),5105709475,08.06.2022,Gouldings Resource Centre,Agency staff,"1,350.82",NEWCROSS HEALTHCARE SOLUTIONS LTD,,
Revenue,Adult Services,Adult Social Care,Central Codes (to be reallocated),5105711898,29.06.2022,Gouldings Resource Centre,Property Services - Day to day Maintenance,66.67,HILLBANS PEST CONTROL LTD,,
Revenue,Adult Services,Adult Social Care,Central Codes (to be reallocated),5105711102,17.06.2022,Gouldings Resource Centre,Catering Purchases,210.41,MEDINA FOODSERVICE T/A MEDINA QUAY MEATS,,
Revenue,Adult Services,Adult Social Care,Central Codes (to be reallocated),5105711194,22.06.2022,Gouldings Resource Centre,Catering Purchases,172.33,MEDINA FOODSERVICE T/A MEDINA QUAY MEATS,,
Revenue,Adult Services,Adult Social Care,Central Codes (to be reallocated),5105711686,24.06.2022,Gouldings Resource Centre,Catering Purchases,223.91,MEDINA FOODSERVICE T/A MEDINA QUAY MEATS,,
Revenue,Adult Services,Adult Social Care,Central Codes (to be reallocated),5105711727,24.06.2022,Gouldings Resource Centre,Catering Purchases,170.12,MEDINA FOODSERVICE T/A MEDINA QUAY MEATS,,
Revenue,Adult Services,Adult Social Care,Central Codes (to be reallocated),5105711803,24.06.2022,Gouldings Resource Centre,Catering Purchases,231.36,MEDINA FOODSERVICE T/A MEDINA QUAY MEATS,,
Revenue,Adult Services,Adult Social Care,Central Codes (to be reallocated),5105710762,17.06.2022,Gouldings Resource Centre,Catering Purchases,217.09,MEDINA FOODSERVICE T/A MEDINA QUAY MEATS,,
Revenue,Adult Services,Adult Social Care,Central Codes (to be reallocated),5105712387,29.06.2022,Gouldings Resource Centre,Catering Purchases,116.15,MEDINA FOODSERVICE T/A MEDINA QUAY MEATS,,
Revenue,Adult Services,Adult Social Care,Central Codes (to be reallocated),5105712387,29.06.2022,Gouldings Resource Centre,Catering Purchases,16.05,MEDINA FOODSERVICE T/A MEDINA QUAY MEATS,,
Revenue,Adult Services,Adult Social Care,Central Codes (to be reallocated),5105710762,17.06.2022,Gouldings Resource Centre,Catering Purchases,6.40,MEDINA FOODSERVICE T/A MEDINA QUAY MEATS,,
Revenue,Adult Services,Adult Social Care,Central Codes (to be reallocated),5105711727,24.06.2022,Gouldings Resource Centre,Catering Purchases,34.28,MEDINA FOODSERVICE T/A MEDINA QUAY MEATS,,
Revenue,Adult Services,Adult Social Care,Central Codes (to be reallocated),5105711750,29.06.2022,Gouldings Resource Centre,Catering Purchases,-41.09,MEDINA FOODSERVICE T/A MEDINA QUAY MEATS,,
Revenue,Adult Services,Adult Social Care,Central Codes (to be reallocated),5105711686,24.06.2022,Gouldings Resource Centre,Catering Purchases,105.20,MEDINA FOODSERVICE T/A MEDINA QUAY MEATS,,
Revenue,Adult Services,Adult Social Care,Central Codes (to be reallocated),5105711194,22.06.2022,Gouldings Resource Centre,Catering Purchases,67.69,MEDINA FOODSERVICE T/A MEDINA QUAY MEATS,,
Revenue,Adult Services,Adult Social Care,Central Codes (to be reallocated),5105711102,17.06.2022,Gouldings Resource Centre,Catering Purchases,16.05,MEDINA FOODSERVICE T/A MEDINA QUAY MEATS,,
Revenue,Adult Services,Adult Social Care,Central Codes (to be reallocated),5105710587,22.06.2022,Community Outreach,Vehicle Maintenance Costs,10.00,DASHWITNESS LTD,,
Revenue,Adult Services,Adult Social Care,Central Codes (to be reallocated),5105710587,22.06.2022,Community Outreach,Vehicle Maintenance Costs,10.00,DASHWITNESS LTD,,
Revenue,Adult Services,Adult Social Care,Central Codes (to be reallocated),5105710587,22.06.2022,Community Outreach,Vehicle Maintenance Costs,10.00,DASHWITNESS LTD,,
Revenue,Adult Services,Adult Social Care,Central Codes (to be reallocated),5105710587,22.06.2022,Community Outreach,Vehicle Maintenance Costs,10.00,DASHWITNESS LTD,,
Revenue,Adult Services,Adult Social Care,Central Codes (to be reallocated),5105712334,29.06.2022,Community Outreach,Vehicle Maintenance Costs,116.50,DH PRICE MOTORS,,
Revenue,Adult Services,Adult Social Care,Central Codes (to be reallocated),5105710587,22.06.2022,Onwards Care & Independence,Vehicle Maintenance Costs,10.00,DASHWITNESS LTD,,
Revenue,Adult Services,Adult Social Care,Central Codes (to be reallocated),5105710587,22.06.2022,Onwards Care & Independence,Vehicle Maintenance Costs,10.00,DASHWITNESS LTD,,
Revenue,Adult Services,Adult Social Care,Central Codes (to be reallocated),5105710587,22.06.2022,Onwards Care & Independence,Vehicle Maintenance Costs,10.00,DASHWITNESS LTD,,
Revenue,Adult Services,Adult Social Care,Social Support - Support for Carer,5105710587,22.06.2022,Westminster House,Vehicle Maintenance Costs,10.00,DASHWITNESS LTD,,
Revenue,Adult Services,Adult Social Care,Social Support - Support for Carer,5105707092,01.06.2022,Westminster House,Cleaning Contracts,115.86,PHS GROUP PLC,,
Revenue,Adult Services,Adult Social Care,Social Support - Support for Carer,5105710020,24.06.2022,Westminster House,Cleaning Contracts,115.86,PHS GROUP PLC,,
Revenue,Adult Services,Adult Social Care,Social Support - Support for Carer,5105710667,15.06.2022,Westminster House,Agency staff,"1,574.92",NEWCROSS HEALTHCARE SOLUTIONS LTD,,
Revenue,Adult Services,Adult Social Care,Social Support - Support for Carer,5105711385,22.06.2022,Westminster House,Agency staff,568.87,NEWCROSS HEALTHCARE SOLUTIONS LTD,,
Revenue,Adult Services,Adult Social Care,Social Support - Support for Carer,5105712032,29.06.2022,Westminster House,Agency staff,525.01,NEWCROSS HEALTHCARE SOLUTIONS LTD,,
Revenue,Adult Services,Adult Social Care,Social Support - Support for Carer,5105712291,29.06.2022,Westminster House,Property Services - Day to day Maintenance,462.00,TL ELECTRICAL (IOW) LTD,,
Revenue,Adult Services,Adult Social Care,Social Support - Support for Carer,5105710656,15.06.2022,Westminster House,Property Services - Day to day Maintenance,20.00,WIGHT FIRE CO LTD,,
Revenue,Adult Services,Adult Social Care,Social Support - Support for Carer,5105711369,26.06.2022,Westminster House,Property Services - Planned Maintenance,159.00,ARJO UK LTD,,
Revenue,Adult Services,Adult Social Care,Social Support - Support for Carer,5105710373,17.06.2022,Westminster House,Operational Equipment,62.94,BETA PAK LTD,,
Revenue,Adult Services,Adult Social Care,Social Support - Support for Carer,5105710552,17.06.2022,Westminster House,Operational Equipment,10.49,BETA PAK LTD,,
Revenue,Adult Services,Adult Social Care,Social Support - Support for Carer,5105711956,29.06.2022,Westminster House,Operational Equipment,1.28,BETA PAK LTD,,
Revenue,Adult Services,Adult Social Care,Social Support - Support for Carer,5105712048,29.06.2022,Westminster House,Operational Equipment,209.48,BETA PAK LTD,,
Revenue,Adult Services,Adult Social Care,Social Support - Support for Carer,5105710617,17.06.2022,Westminster House,Operational Equipment,295.82,BETA PAK LTD,,
Revenue,Adult Services,Adult Social Care,Social Support - Support for Carer,5105711037,17.06.2022,Westminster House,Operational Equipment,30.00,BETA PAK LTD,,
Revenue,Adult Services,Adult Social Care,Social Support - Support for Carer,5105711410,22.06.2022,Westminster House,Operational Equipment,48.78,BETA PAK LTD,,
Revenue,Adult Services,Adult Social Care,Social Support - Support for Carer,5105711830,24.06.2022,Westminster House,Operational Equipment,24.99,BETA PAK LTD,,
Revenue,Adult Services,Adult Social Care,Social Support - Support for Carer,5105711838,29.06.2022,Westminster House,Property Services - Day to day Maintenance,574.67,MOUNTJOY LTD,,
Revenue,Adult Services,Adult Social Care,Social Support - Support for Carer,5105709310,08.06.2022,Westminster House,Catering Purchases,23.17,FARMHOUSE FAYRE (NEWPORT) LIMITED,,
Revenue,Adult Services,Adult Social Care,Social Support - Support for Carer,5105710096,08.06.2022,Westminster House,Catering Purchases,6.03,FARMHOUSE FAYRE (NEWPORT) LIMITED,,
Revenue,Adult Services,Adult Social Care,Social Support - Support for Carer,5105710988,17.06.2022,Westminster House,Catering Purchases,34.28,FARMHOUSE FAYRE (NEWPORT) LIMITED,,
Revenue,Adult Services,Adult Social Care,Social Support - Support for Carer,5105711788,24.06.2022,Westminster House,Catering Purchases,40.42,FARMHOUSE FAYRE (NEWPORT) LIMITED,,
Revenue,Adult Services,Adult Social Care,Social Support - Support for Carer,5105712384,29.06.2022,Westminster House,Catering Purchases,24.13,FARMHOUSE FAYRE (NEWPORT) LIMITED,,
Revenue,Adult Services,Adult Social Care,Social Support - Support for Carer,5105710519,17.06.2022,Westminster House,Property Services - Day to day Maintenance,56.00,URBAN ENVIRONMENTS LTD,,
Revenue,Adult Services,Adult Social Care,Social Support - Support for Carer,5105710989,22.06.2022,Westminster House,Property Services - Day to day Maintenance,56.00,URBAN ENVIRONMENTS LTD,,
Revenue,Adult Services,Adult Social Care,Social Support - Support for Carer,5105707234,15.06.2022,Westminster House,Property Services - Day to day Maintenance,56.00,URBAN ENVIRONMENTS LTD,,
Revenue,Adult Services,Adult Social Care,Social Support - Support for Carer,5105707233,15.06.2022,Westminster House,Property Services - Day to day Maintenance,37.00,URBAN ENVIRONMENTS LTD,,
Revenue,Adult Services,Adult Social Care,Social Support - Support for Carer,5105711139,22.06.2022,Westminster House,Property Services - Day to day Maintenance,24.00,URBAN ENVIRONMENTS LTD,,
Revenue,Adult Services,Adult Social Care,Long Term support - residential,5105711867,29.06.2022,Ryde Village Extra Care,Payments to Voluntary and Other Associations,600.00,SOUTHERN HOUSING GROUP - DAY CARE,,
Revenue,Adult Services,Adult Social Care,Long Term support - residential,5105711867,29.06.2022,Ryde Village Extra Care,Payments to Voluntary and Other Associations,600.00,SOUTHERN HOUSING GROUP - DAY CARE,,
Revenue,Adult Services,Adult Social Care,Long Term support - residential,5105711867,29.06.2022,Ryde Village Extra Care,Payments to Voluntary and Other Associations,600.00,SOUTHERN HOUSING GROUP - DAY CARE,,
Revenue,Adult Services,Adult Social Care,Long Term support - residential,5105711867,29.06.2022,Ryde Village Extra Care,Payments to Voluntary and Other Associations,600.00,SOUTHERN HOUSING GROUP - DAY CARE,,
Revenue,Adult Services,Adult Social Care,Long Term support - residential,5105711867,29.06.2022,Ryde Village Extra Care,Payments to Voluntary and Other Associations,600.00,SOUTHERN HOUSING GROUP - DAY CARE,,
Revenue,Adult Services,Adult Social Care,Long Term support - residential,5105711867,29.06.2022,Ryde Village Extra Care,Payments to Voluntary and Other Associations,600.00,SOUTHERN HOUSING GROUP - DAY CARE,,
Revenue,Adult Services,Adult Social Care,Long Term support - residential,5105711867,29.06.2022,Ryde Village Extra Care,Payments to Voluntary and Other Associations,600.00,SOUTHERN HOUSING GROUP - DAY CARE,,
Revenue,Adult Services,Adult Social Care,Long Term support - residential,5105711867,29.06.2022,Ryde Village Extra Care,Payments to Voluntary and Other Associations,600.00,SOUTHERN HOUSING GROUP - DAY CARE,,
Revenue,Adult Services,Adult Social Care,Long Term support - residential,5105711867,29.06.2022,Ryde Village Extra Care,Payments to Voluntary and Other Associations,600.00,SOUTHERN HOUSING GROUP - DAY CARE,,
Revenue,Adult Services,Adult Social Care,Long Term support - residential,5105711867,29.06.2022,Ryde Village Extra Care,Payments to Voluntary and Other Associations,600.00,SOUTHERN HOUSING GROUP - DAY CARE,,
Revenue,Adult Services,Adult Social Care,Long Term support - residential,5105711867,29.06.2022,Ryde Village Extra Care,Payments to Voluntary and Other Associations,600.00,SOUTHERN HOUSING GROUP - DAY CARE,,
Revenue,Adult Services,Adult Social Care,Long Term support - residential,5105711867,29.06.2022,Ryde Village Extra Care,Payments to Voluntary and Other Associations,600.00,SOUTHERN HOUSING GROUP - DAY CARE,,
Revenue,Adult Services,Adult Social Care,Long Term support - residential,5105711867,29.06.2022,Ryde Village Extra Care,Payments to Voluntary and Other Associations,600.00,SOUTHERN HOUSING GROUP - DAY CARE,,
Revenue,Adult Services,Adult Social Care,Long Term support - residential,5105711867,29.06.2022,Ryde Village Extra Care,Payments to Voluntary and Other Associations,600.00,SOUTHERN HOUSING GROUP - DAY CARE,,
Revenue,Adult Services,Adult Social Care,Long Term support - residential,5105711867,29.06.2022,Ryde Village Extra Care,Payments to Voluntary and Other Associations,600.00,SOUTHERN HOUSING GROUP - DAY CARE,,
Revenue,Adult Services,Adult Social Care,Long Term support - residential,5105711867,29.06.2022,Ryde Village Extra Care,Payments to Voluntary and Other Associations,600.00,SOUTHERN HOUSING GROUP - DAY CARE,,
Revenue,Adult Services,Adult Social Care,Long Term support - residential,5105711867,29.06.2022,Ryde Village Extra Care,Payments to Voluntary and Other Associations,600.00,SOUTHERN HOUSING GROUP - DAY CARE,,
Revenue,Adult Services,Adult Social Care,Long Term support - residential,5105711867,29.06.2022,Ryde Village Extra Care,Payments to Voluntary and Other Associations,600.00,SOUTHERN HOUSING GROUP - DAY CARE,,
Revenue,Adult Services,Adult Social Care,Long Term support - residential,5105711867,29.06.2022,Ryde Village Extra Care,Payments to Voluntary and Other Associations,600.00,SOUTHERN HOUSING GROUP - DAY CARE,,
Revenue,Adult Services,Adult Social Care,Long Term support - residential,5105711867,29.06.2022,Ryde Village Extra Care,Payments to Voluntary and Other Associations,600.00,SOUTHERN HOUSING GROUP - DAY CARE,,
Revenue,Adult Services,Adult Social Care,Long Term support - residential,5105711867,29.06.2022,Ryde Village Extra Care,Payments to Voluntary and Other Associations,600.00,SOUTHERN HOUSING GROUP - DAY CARE,,
Revenue,Adult Services,Adult Social Care,Long Term support - residential,5105711867,29.06.2022,Ryde Village Extra Care,Payments to Voluntary and Other Associations,600.00,SOUTHERN HOUSING GROUP - DAY CARE,,
Revenue,Adult Services,Adult Social Care,Long Term support - residential,5105711867,29.06.2022,Ryde Village Extra Care,Payments to Voluntary and Other Associations,600.00,SOUTHERN HOUSING GROUP - DAY CARE,,
Revenue,Adult Services,Adult Social Care,Long Term support - residential,5105711867,29.06.2022,Ryde Village Extra Care,Payments to Voluntary and Other Associations,600.00,SOUTHERN HOUSING GROUP - DAY CARE,,
Revenue,Adult Services,Adult Social Care,Long Term support - residential,5105711137,22.06.2022,Green Meadows Extra Care,Charges from Independent Providers,200.00,SOUTHERN HOUSING GROUP - DAY CARE,,
Revenue,Adult Services,Adult Social Care,Long Term support - residential,5105711137,22.06.2022,Green Meadows Extra Care,Charges from Independent Providers,200.00,SOUTHERN HOUSING GROUP - DAY CARE,,
Revenue,Adult Services,Adult Social Care,Commissioning & Service Delivery,5105711766,24.06.2022,S256 Workforce Resilience 2021/22,Agency staff,"1,873.75",ID MEDICAL GROUP,,
